Workbook

Sheet Accueil

Sheet Classement
CM2: Date | CO2: 2018-06-11
CM3: R | CO3: C
CM4: 1 | CO4: 1
C5: D | E5: 1 | G5: C | I5: 2 | K5: C | M5: 3 | O5: D | Q5: 4 | S5: D | U5: 5 | W5: D | Y5: 6 | AA5: D | AC5: 7 | AE5: C | AG5: 8 | AI5: D | AK5: 9 | AM5: D | AO5: 10 | AQ5: D | AS5: 11 | AU5: C | AW5: 12 | AY5: D | BA5: 13 | BC5: D | BE5: 14 | BG5: C | BI5: 15 | BK5: D | BM5: 16 | BO5: C | BQ5: 17 | BS5: D | BU5: 18 | BW5: D | BY5: 19 | CA5: D | CC5: 20 | CE5: C | CG5: 21 | CI5: D | CK5: 22 | CM5: D | CO5: 23 | CQ5: D | CS5: 24 | CU5: D | CW5: 25 | CY5: D | DA5: 26 | DK5: 2 | DP5: 3 | DU5: 4 | DZ5: 5 | EE5: 6 | EJ5: 7 | EO5: 8
A6: N° | B6: N° | C6: Points Victoire | D6: R | E6: Clt | F6: N° | G6: ET 3 | H6: R | I6: Clt | J6: N° | K6: ET 6 | L6: R | M6: Clt | N6: N° | O6: Dudziack | P6: R | Q6: Clt | R6: N° | S6: VO | T6: R | U6: Clt | V6: N° | W6: Bollinger | X6: R | Y6: Clt | Z6: N° | AA6: CR3DP | AB6: R | AC6: Clt | AD6: N° | AE6: IF 5DP | AF6: R | AG6: Clt | AH6: N° | AI6: CR*IF | AJ6: R | AK6: Clt | AL6: N° | AM6: CR/IF | AN6: R | AO6: Clt | AP6: N° | AQ6: CR6DP | AR6: R | AS6: Clt | AT6: N° | AU6: IF 6DP | AV6: R | AW6: Clt | AX6: N° | AY6: CR*IF | AZ6: R | BA6: Clt | BB6: N° | BC6: CR/IF | BD6: R | BE6: Clt | BF6: N° | BG6: Forme | BH6: R | BI6: Clt | BJ6: N° | BK6: Trend | BL6: R | BM6: Clt | BN6: N° | BO6: IR | BP6: R | BQ6: Clt | BR6: N° | BS6: LSC | BT6: R | BU6: Clt | BV6: N° | BW6: Standart Deviation | BX6: R | BY6: Clt | BZ6: N° | CA6: RC | CB6: R | CC6: Clt | CD6: N° | CE6: M.H | CF6: R | CG6: Clt | CH6: N° | CI6: Rcourse | CJ6: R | CK6: Clt | CL6: N° | CM6: RCL | CN6: R | CO6: Clt | CP6: N° | CQ6: % RC | CR6: R | CS6: Clt | CT6: N° | CU6: Gain par Course | CV6: R | CW6: Clt | CX6: N° | CY6: AGC | CZ6: R | DA6: Clt | DC6: Arrivée: | DH6: N° | DI6: Nbe Cit | DJ6: R | DK6: Clt | DM6: N° | DN6: Nbe Cit | DO6: R | DP6: Clt | DR6: N° | DS6: Nbe Cit | DT6: R | DU6: Clt | DW6: N° | DX6: Nbe Cit | DY6: R | DZ6: Clt | EB6: N° | EC6: Nbe Cit | ED6: R | EE6: Clt | EG6: N° | EH6: Nbe Cit | EI6: R | EJ6: Clt | EL6: N° | EM6: Nbe Cit | EN6: R | EO6: Clt | EU6: 1 | EV6: 2 | EW6: 3 | EX6: 4 | EY6: 5 | EZ6: 6 | FA6: 7 | FB6: 8 | FC6: 9 | FD6: 10 | FE6: 11 | FF6: 12 | FG6: 13 | FH6: 14 | FI6: 15 | FJ6: 16 | FK6: 17 | FL6: 18 | FM6: 19 | FN6: 20 | FO6: 21 | FP6: 22 | FQ6: 23 | FR6: 24 | FS6: 25 | FT6: 26 | FU6: 27
A7: 1 | B7: =' Musique'!A3 -> 1 | C7: ='Points Vic '!AL4 -> 315.9064152 | D7: =IF(C7="","",COUNTIF($C$7:$C$26,">"&C7)+COUNTIF($C$6:C6,C7)) -> 0 | E7: =IF((A7-1)>MAX(D$7:D$26),"",(MATCH(B7-1,D$7:D$26,0))) -> 1 | F7: 1 | G7: =' Musique'!AJ3 -> 2.581988897 | H7: =IF(G7="","",IF(G7=0,COUNTIF(G$7:G$26,">0")+COUNTIF(G$6:G6,0),COUNTIF($G$7:$G$26,"<"&G7)+COUNTIF($G$6:G6,G7)-COUNTIF(G$6:G$26,0))) -> 2 | I7: =IF((F7-1)>MAX(H$7:H$26),"",(MATCH(F7-1,H$7:H$26,0))) -> 11 | J7: 1 | K7: =' Musique'!AK3 -> 0.8164965809 | L7: =IF(K7="","",IF(K7=0,COUNTIF(K$7:K$26,">0")+COUNTIF(K$6:K6,0),COUNTIF($K$7:$K$26,"<"&K7)+COUNTIF($K$6:K6,K7)-COUNTIF(K$6:K$26,0))) -> 0 | M7: =IF((J7-1)>MAX(L$7:L$26),"",(MATCH(J7-1,L$7:L$26,0))) -> 1 | N7: 1 | O7: =' Musique'!AO3 -> 0.4438137822 | P7: =IF(O7="","",COUNTIF($O$7:$O$26,">"&O7)+COUNTIF($O$6:O6,O7)) -> 2 | Q7: =IF((N7-1)>MAX(P$7:P$26),"",(MATCH(N7-1,P$7:P$26,0))) -> 5 | R7: 1 | S7: =' Musique'!AQ3 -> 32.27486122 | T7: =IF(S7="","",COUNTIF($S$7:$S$26,">"&S7)+COUNTIF($S$6:S6,S7)) -> 10 | U7: =IF((R7-1)>MAX(T$7:T$26),"",(MATCH(R7-1,T$7:T$26,0))) -> 2 | V7: 1 | W7: =' Musique'!AR3 -> 1.666666667 | X7: =IF(W7="","",COUNTIF($W$7:$W$26,">"&W7)+COUNTIF($W$6:W6,W7)) -> 3 | Y7: =IF((V7-1)>MAX(X$7:X$26),"",(MATCH(V7-1,X$7:X$26,0))) -> 11 | Z7: 1 | AA7: =' Musique'!AS3 -> 15.33333333 | AB7: =IF(AA7="","",COUNTIF($AA$7:$AA$26,">"&AA7)+COUNTIF($AA$6:AA6,AA7)) -> 1 | AC7: =IF((Z7-1)>MAX(AB$7:AB$26),"",(MATCH(Z7-1,AB$7:AB$26,0))) -> 11 | AD7: 1 | AE7: =' Musique'!AT3 -> 3 | AF7: =IF(AE7="","",IF(AE7=0,COUNTIF(AE$7:AE$26,">0")+COUNTIF(AE$6:AE6,0),COUNTIF($AE$7:$AE$26,"<"&AE7)+COUNTIF($AE$6:AE6,AE7)-COUNTIF(AE$6:AE$26,0))) -> 1 | AG7: =IF((AD7-1)>MAX(AF$7:AF$26),"",(MATCH(AD7-1,AF$7:AF$26,0))) -> 11 | AH7: 1 | AI7: =' Musique'!AU3 -> 46 | AJ7: =IF(AI7="","",COUNTIF($AI$7:$AI$26,">"&AI7)+COUNTIF($AI$6:AI6,AI7)) -> 7 | AK7: =IF((AH7-1)>MAX(AJ$7:AJ$26),"",(MATCH(AH7-1,AJ$7:AJ$26,0))) -> 3 | AL7: 1 | AM7: =' Musique'!AV3 -> 5.111111111 | AN7: =IF(AM7="","",COUNTIF($AM$7:$AM$26,">"&AM7)+COUNTIF($AM$6:AM6,AM7)) -> 1 | AO7: =IF((AL7-1)>MAX(AN$7:AN$26),"",(MATCH(AL7-1,AN$7:AN$26,0))) -> 11 | AP7: 1 | AQ7: =' Musique'!AW3 -> 27 | AR7: =IF(AQ7="","",COUNTIF($AQ$7:$AQ$26,">"&AQ7)+COUNTIF($AQ$6:AQ6,AQ7)) -> 1 | AS7: =IF((AP7-1)>MAX(AR$7:AR$26),"",(MATCH(AP7-1,AR$7:AR$26,0))) -> 11 | AT7: 1 | AU7: =' Musique'!AX3 -> 4 | AV7: =IF(AU7="","",IF(AU7=0,COUNTIF(AU$7:AU$26,">0")+COUNTIF(AU$6:AU6,0),COUNTIF($AU$7:$AU$26,"<"&AU7)+COUNTIF($AU$6:AU6,AU7)-COUNTIF(AU$6:AU$26,0))) -> 3 | AW7: =IF((AT7-1)>MAX(AV$7:AV$26),"",(MATCH(AT7-1,AV$7:AV$26,0))) -> 11 | AX7: 1 | AY7: =' Musique'!AZ3 -> 108 | AZ7: =IF(AY7="","",COUNTIF($AY$7:$AY$26,">"&AY7)+COUNTIF($AY$6:AY6,AY7)) -> 0 | BA7: =IF((AX7-1)>MAX(AZ$7:AZ$26),"",(MATCH(AX7-1,AZ$7:AZ$26,0))) -> 1 | BB7: 1 | BC7: =' Musique'!AV3 -> 5.111111111 | BD7: =IF(BC7="","",COUNTIF($BC$7:$BC$26,">"&BC7)+COUNTIF($BC$6:BC6,BC7)) -> 1 | BE7: =IF((BB7-1)>MAX(BD$7:BD$26),"",(MATCH(BB7-1,BD$7:BD$26,0))) -> 11 | BF7: 1 | BG7: =' Musique'!BM3 -> 1 | BH7: =IF(BG7="","",IF(BG7=0,COUNTIF(BG$7:BG$26,">0")+COUNTIF(BG$6:BG6,0),COUNTIF($BG$7:$BG$26,"<"&BG7)+COUNTIF($BG$6:BG6,BG7)-COUNTIF(BG$6:BG$26,0))) -> 5 | BI7: =IF((BF7-1)>MAX(BH$7:BH$26),"",(MATCH(BF7-1,BH$7:BH$26,0))) -> 2 | BJ7: 1 | BK7: =' Musique'!BJ3 -> 5.872712039 | BL7: =IF(BK7="","",COUNTIF($BK$7:$BK$26,">"&BK7)+COUNTIF($BK$6:BK6,BK7)) -> 9 | BM7: =IF((BJ7-1)>MAX(BL$7:BL$26),"",(MATCH(BJ7-1,BL$7:BL$26,0))) -> 15 | BN7: 1 | BO7: =' Musique'!BK3 -> 3.098386677 | BP7: =IF(BO7="","",IF(BO7=0,COUNTIF(BO$7:BO$26,">0")+COUNTIF(BO$6:BO6,0),COUNTIF($BO$7:$BO$26,"<"&BO7)+COUNTIF($BO$6:BO6,BO7)-COUNTIF(BO$6:BO$26,0))) -> 1 | BQ7: =IF((BN7-1)>MAX(BP$7:BP$26),"",(MATCH(BN7-1,BP$7:BP$26,0))) -> 11 | BR7: 1 | BS7: =' Musique'!BE3 -> 3.415322231 | BT7: =IF(BS7="","",COUNTIF($BS$7:$BS$26,">"&BS7)+COUNTIF($BS$6:BS6,BS7)) -> 10 | BU7: =IF((BR7-1)>MAX(BT$7:BT$26),"",(MATCH(BR7-1,BT$7:BT$26,0))) -> 13 | BV7: 1 | BW7: =' Musique'!BP3 -> 0.747099768 | BX7: =IF(BW7="","",COUNTIF($BW$7:$BW$26,">"&BW7)+COUNTIF($BW$6:BW6,BW7)) -> 10 | BY7: =IF((BV7-1)>MAX(BX$7:BX$26),"",(MATCH(BV7-1,BX$7:BX$26,0))) -> 13 | BZ7: 1 | CA7: =' Musique'!AL3 -> 0.5 | CB7: =IF(CA7="","",COUNTIF($CA$7:$CA$26,">"&CA7)+COUNTIF($CA$6:CA6,CA7)) -> 2 | CC7: =IF((BZ7-1)>MAX(CB$7:CB$26),"",(MATCH(BZ7-1,CB$7:CB$26,0))) -> 5 | CD7: 1 | CE7: =' Musique'!BB3 -> 2.505800464 | CF7: =IF(CE7="","",IF(CE7=0,COUNTIF(CE$7:CE$26,">0")+COUNTIF(CE$6:CE6,0),COUNTIF($CE$7:$CE$26,"<"&CE7)+COUNTIF($CE$6:CE6,CE7)-COUNTIF(CE$6:CE$26,0))) -> 6 | CG7: =IF((CD7-1)>MAX(CF$7:CF$26),"",(MATCH(CD7-1,CF$7:CF$26,0))) -> 11 | CH7: 1 | CI7: =' Musique'!BH3 -> 3.415322231 | CJ7: =IF(CI7="","",COUNTIF($CI$7:$CI$26,">"&CI7)+COUNTIF($CI$6:CI6,CI7)) -> 6 | CK7: =IF((CH7-1)>MAX(CJ$7:CJ$26),"",(MATCH(CH7-1,CJ$7:CJ$26,0))) -> 13 | CL7: 1 | CM7: =' Musique'!BN3 -> 16.66666667 | CN7: =IF(CM7="","",COUNTIF($CM$7:$CM$26,">"&CM7)+COUNTIF($CM$6:CM6,CM7)) -> 4 | CO7: =IF((CL7-1)>MAX(CN$7:CN$26),"",(MATCH(CL7-1,CN$7:CN$26,0))) -> 2 | CP7: 1 | CQ7: =AGC!AP4 -> 41.66666667 | CR7: =IF(CQ7="","",COUNTIF($CQ$7:$CQ$26,">"&CQ7)+COUNTIF($CQ$6:CQ6,CQ7)) -> 7 | CS7: =IF((CP7-1)>MAX(CR$7:CR$26),"",(MATCH(CP7-1,CR$7:CR$26,0))) -> 11 | CT7: 1 | CU7: =AGC!AQ4 -> 4975.416667 | CV7: =IF(CU7="","",COUNTIF($CU$7:$CU$26,">"&CU7)+COUNTIF($CU$6:CU6,CU7)) -> 0 | CW7: =IF((CT7-1)>MAX(CV$7:CV$26),"",(MATCH(CT7-1,CV$7:CV$26,0))) -> 1 | CX7: 1 | CY7: =AGC!AN4 -> 66.66666667 | CZ7: =IF(CY7="","",COUNTIF($CY$7:$CY$26,">"&CY7)+COUNTIF($CY$6:CY6,CY7)) -> 7 | DA7: =IF((CX7-1)>MAX(CZ$7:CZ$26),"",(MATCH(CX7-1,CZ$7:CZ$26,0))) -> 10 | DD7: 1 | DE7: 1 | DH7: =' Musique'!A3 -> 1 | DI7: =COUNTIF($EU$7:$FU$8,"1") -> 10 | DJ7: =IF(DI7="","",COUNTIF($DI$7:$DI$26,">"&DI7)+COUNTIF($DI$6:DI6,DI7)) -> 1 | DK7: =IFERROR(IF((DH7-1)>MAX(DJ$7:DJ$26),"",(MATCH(DH7-1,DJ$7:DJ$26,0)))," ") -> 11 | DM7: =DH7 -> 1 | DN7: =COUNTIF($EU$7:$FU$9,"1") -> 13 | DO7: =IF(DN7="","",COUNTIF($DN$7:$DN$26,">"&DN7)+COUNTIF($DN$6:DN6,DN7)) -> 1 | DP7: =IFERROR(IF((DM7-1)>MAX(DO$7:DO$26),"",(MATCH(DM7-1,DO$7:DO$26,0))),"") -> 11 | DR7: =DM7 -> 1 | DS7: =COUNTIF($EU$7:$FU$10,"1") -> 15 | DT7: =IF(DS7="","",COUNTIF($DS$7:$DS$26,">"&DS7)+COUNTIF($DS$6:DS6,DS7)) -> 1 | DU7: =IFERROR(IF((DR7-1)>MAX(DT$7:DT$26),"",(MATCH(DR7-1,DT$7:DT$26,0)))," ") -> 11 | DW7: =DH7 -> 1 | DX7: =COUNTIF($EU$7:$FU$11,"1") -> 16 | DY7: =IF(DX7="","",COUNTIF($DX$7:$DX$26,">"&DX7)+COUNTIF($DX$6:DX6,DX7)) -> 1 | DZ7: =IFERROR(IF((DW7-1)>MAX(DY$7:DY$26),"",(MATCH(DW7-1,DY$7:DY$26,0)))," ") -> 11 | EB7: =DH7 -> 1 | EC7: =COUNTIF($EU$7:$FU$12,"1") -> 17 | ED7: =IF(EC7="","",COUNTIF($EC$7:$EC$26,">"&EC7)+COUNTIF($EC$6:EC6,EC7)) -> 2 | EE7: =IFERROR(IF((EB7-1)>MAX(ED$7:ED$26),"",(MATCH(EB7-1,ED$7:ED$26,0))),"") -> 10 | EG7: =DH7 -> 1 | EH7: =COUNTIF($EU$7:$FU$13,"1") -> 19 | EI7: =IF(EH7="","",COUNTIF($EH$7:$EH$26,">"&EH7)+COUNTIF($EH$6:EH6,EH7)) -> 1 | EJ7: =IFERROR(IF((EG7-1)>MAX(EI$7:EI$26),"",(MATCH(EG7-1,EI$7:EI$26,0))),"") -> 10 | EL7: =DH7 -> 1 | EM7: =COUNTIF($EU$7:$FU$14,"1") -> 22 | EN7: =IF(EM7="","",COUNTIF($EM$7:$EM$26,">"&EM7)+COUNTIF($EM$6:EM6,EM7)) -> 0 | EO7: =IFERROR(IF((EL7-1)>MAX(EN$7:EN$26),"",(MATCH(EL7-1,EN$7:EN$26,0))),"") -> 1 | ET7: 1 | EU7: =E7 -> 1 | EV7: =I7 -> 11 | EW7: =M7 -> 1 | EX7: =Q7 -> 5 | EY7: =U7 -> 2 | EZ7: =Y7 -> 11 | FA7: =AC7 -> 11 | FB7: =AG7 -> 11 | FC7: =AK7 -> 3 | FD7: =AO7 -> 11 | FE7: =AS7 -> 11 | FF7: =AW7 -> 11 | FG7: =BA7 -> 1 | FH7: =BE7 -> 11 | FI7: =BI7 -> 2 | FJ7: =BM7 -> 15 | FK7: =BQ7 -> 11 | FL7: =BU7 -> 13 | FM7: =BY7 -> 13 | FN7: =CC7 -> 5 | FO7: =CG7 -> 11 | FP7: =#REF! ->  | FQ7: =CK7 -> 13 | FR7: =CO7 -> 2 | FS7: =CS7 -> 11 | FT7: =CW7 -> 1 | FU7: =DA7 -> 10
A8: 2 | B8: =' Musique'!A4 -> 2 | C8: ='Points Vic '!AL5 -> 38.90957949 | D8: =IF(C8="","",COUNTIF($C$7:$C$26,">"&C8)+COUNTIF($C$6:C7,C8)) -> 13 | E8: =IF((A8-1)>MAX(D$7:D$26),"",(MATCH(B8-1,D$7:D$26,0))) -> 11 | F8: 2 | G8: =' Musique'!AJ4 -> 4.242640687 | H8: =IF(G8="","",IF(G8=0,COUNTIF(G$7:G$26,">0")+COUNTIF(G$6:G7,0),COUNTIF($G$7:$G$26,"<"&G8)+COUNTIF($G$6:G7,G8)-COUNTIF(G$6:G$26,0))) -> 12 | I8: 9 | J8: 2 | K8: =' Musique'!AK4 -> 4.242640687 | L8: =IF(K8="","",IF(K8=0,COUNTIF(K$7:K$26,">0")+COUNTIF(K$6:K7,0),COUNTIF($K$7:$K$26,"<"&K8)+COUNTIF($K$6:K7,K8)-COUNTIF(K$6:K$26,0))) -> 14 | M8: 11 | N8: 2 | O8: =' Musique'!AO4 -> -0.1798669059 | P8: =IF(O8="","",COUNTIF($O$7:$O$26,">"&O8)+COUNTIF($O$6:O7,O8)) -> 9 | Q8: 11 | R8: 2 | S8: =' Musique'!AQ4 -> 53.03300859 | T8: =IF(S8="","",COUNTIF($S$7:$S$26,">"&S8)+COUNTIF($S$6:S7,S8)) -> 0 | U8: 13 | V8: 2 | W8: =' Musique'!AR4 -> 1.461538462 | X8: =IF(W8="","",COUNTIF($W$7:$W$26,">"&W8)+COUNTIF($W$6:W7,W8)) -> 10 | Y8: 10 | Z8: 2 | AA8: =' Musique'!AS4 -> 11 | AB8: =IF(AA8="","",COUNTIF($AA$7:$AA$26,">"&AA8)+COUNTIF($AA$6:AA7,AA8)) -> 6 | AC8: 1 | AD8: 2 | AE8: =' Musique'!AT4 -> 5.6 | AF8: =IF(AE8="","",IF(AE8=0,COUNTIF(AE$7:AE$26,">0")+COUNTIF(AE$6:AE7,0),COUNTIF($AE$7:$AE$26,"<"&AE8)+COUNTIF($AE$6:AE7,AE8)-COUNTIF(AE$6:AE$26,0))) -> 10 | AG8: 1 | AH8: 2 | AI8: =' Musique'!AU4 -> 61.6 | AJ8: =IF(AI8="","",COUNTIF($AI$7:$AI$26,">"&AI8)+COUNTIF($AI$6:AI7,AI8)) -> 2 | AK8: 8 | AL8: 2 | AM8: =' Musique'!AV4 -> 1.964285714 | AN8: =IF(AM8="","",COUNTIF($AM$7:$AM$26,">"&AM8)+COUNTIF($AM$6:AM7,AM8)) -> 8 | AO8: =IF((AL8-1)>MAX(AN$7:AN$26),"",(MATCH(AL8-1,AN$7:AN$26,0))) -> 1 | AP8: 2 | AQ8: =' Musique'!AW4 -> 19.33333333 | AR8: =IF(AQ8="","",COUNTIF($AQ$7:$AQ$26,">"&AQ8)+COUNTIF($AQ$6:AQ7,AQ8)) -> 8 | AS8: 1 | AT8: 2 | AU8: =' Musique'!AX4 -> 5.333333333 | AV8: =IF(AU8="","",IF(AU8=0,COUNTIF(AU$7:AU$26,">0")+COUNTIF(AU$6:AU7,0),COUNTIF($AU$7:$AU$26,"<"&AU8)+COUNTIF($AU$6:AU7,AU8)-COUNTIF(AU$6:AU$26,0))) -> 11 | AW8: =IF((AT8-1)>MAX(AV$7:AV$26),"",(MATCH(AT8-1,AV$7:AV$26,0))) -> 10 | AX8: 2 | AY8: =' Musique'!AZ4 -> 103.1111111 | AZ8: =IF(AY8="","",COUNTIF($AY$7:$AY$26,">"&AY8)+COUNTIF($AY$6:AY7,AY8)) -> 2 | BA8: =IF((AX8-1)>MAX(AZ$7:AZ$26),"",(MATCH(AX8-1,AZ$7:AZ$26,0))) -> 8 | BB8: 2 | BC8: =' Musique'!AV4 -> 1.964285714 | BD8: =IF(BC8="","",COUNTIF($BC$7:$BC$26,">"&BC8)+COUNTIF($BC$6:BC7,BC8)) -> 8 | BE8: =IF((BB8-1)>MAX(BD$7:BD$26),"",(MATCH(BB8-1,BD$7:BD$26,0))) -> 1 | BF8: 2 | BG8: =' Musique'!BM4 -> -0.7333333333 | BH8: =IF(BG8="","",IF(BG8=0,COUNTIF(BG$7:BG$26,">0")+COUNTIF(BG$6:BG7,0),COUNTIF($BG$7:$BG$26,"<"&BG8)+COUNTIF($BG$6:BG7,BG8)-COUNTIF(BG$6:BG$26,0))) -> 0 | BI8: 8 | BJ8: 2 | BK8: =' Musique'!BJ4 -> 6.215517241 | BL8: =IF(BK8="","",COUNTIF($BK$7:$BK$26,">"&BK8)+COUNTIF($BK$6:BK7,BK8)) -> 7 | BM8: =IF((BJ8-1)>MAX(BL$7:BL$26),"",(MATCH(BJ8-1,BL$7:BL$26,0))) -> 12 | BN8: 2 | BO8: =' Musique'!BK4 -> 8.485281374 | BP8: =IF(BO8="","",IF(BO8=0,COUNTIF(BO$7:BO$26,">0")+COUNTIF(BO$6:BO7,0),COUNTIF($BO$7:$BO$26,"<"&BO8)+COUNTIF($BO$6:BO7,BO8)-COUNTIF(BO$6:BO$26,0))) -> 13 | BQ8: 1 | BR8: 2 | BS8: =' Musique'!BE4 -> 4.909307354 | BT8: =IF(BS8="","",COUNTIF($BS$7:$BS$26,">"&BS8)+COUNTIF($BS$6:BS7,BS8)) -> 1 | BU8: =IF((BR8-1)>MAX(BT$7:BT$26),"",(MATCH(BR8-1,BT$7:BT$26,0))) -> 2 | BV8: 2 | BW8: =' Musique'!BP4 -> 0.6464968153 | BX8: =IF(BW8="","",COUNTIF($BW$7:$BW$26,">"&BW8)+COUNTIF($BW$6:BW7,BW8)) -> 11 | BY8: =IF((BV8-1)>MAX(BX$7:BX$26),"",(MATCH(BV8-1,BX$7:BX$26,0))) -> 7 | BZ8: 2 | CA8: =' Musique'!AL4 -> 0.3333333333 | CB8: =IF(CA8="","",COUNTIF($CA$7:$CA$26,">"&CA8)+COUNTIF($CA$6:CA7,CA8)) -> 9 | CC8: =IF((BZ8-1)>MAX(CB$7:CB$26),"",(MATCH(BZ8-1,CB$7:CB$26,0))) -> 11 | CD8: 2 | CE8: =' Musique'!BB4 -> 2.292993631 | CF8: =IF(CE8="","",IF(CE8=0,COUNTIF(CE$7:CE$26,">0")+COUNTIF(CE$6:CE7,0),COUNTIF($CE$7:$CE$26,"<"&CE8)+COUNTIF($CE$6:CE7,CE8)-COUNTIF(CE$6:CE$26,0))) -> 4 | CG8: =IF((CD8-1)>MAX(CF$7:CF$26),"",(MATCH(CD8-1,CF$7:CF$26,0))) -> 10 | CH8: 2 | CI8: =' Musique'!BH4 -> 3.681980515 | CJ8: =IF(CI8="","",COUNTIF($CI$7:$CI$26,">"&CI8)+COUNTIF($CI$6:CI7,CI8)) -> 4 | CK8: =IF((CH8-1)>MAX(CJ$7:CJ$26),"",(MATCH(CH8-1,CJ$7:CJ$26,0))) -> 14 | CL8: 2 | CM8: =' Musique'!BN4 -> 33.33333333 | CN8: =IF(CM8="","",COUNTIF($CM$7:$CM$26,">"&CM8)+COUNTIF($CM$6:CM7,CM8)) -> 0 | CO8: =IF((CL8-1)>MAX(CN$7:CN$26),"",(MATCH(CL8-1,CN$7:CN$26,0))) -> 3 | CP8: 2 | CQ8: =AGC!AP5 -> 41.66666667 | CR8: =IF(CQ8="","",COUNTIF($CQ$7:$CQ$26,">"&CQ8)+COUNTIF($CQ$6:CQ7,CQ8)) -> 8 | CS8: =IF((CP8-1)>MAX(CR$7:CR$26),"",(MATCH(CP8-1,CR$7:CR$26,0))) -> 5 | CT8: 2 | CU8: =AGC!AQ5 -> 4716.666667 | CV8: =IF(CU8="","",COUNTIF($CU$7:$CU$26,">"&CU8)+COUNTIF($CU$6:CU7,CU8)) -> 2 | CW8: =IF((CT8-1)>MAX(CV$7:CV$26),"",(MATCH(CT8-1,CV$7:CV$26,0))) -> 10 | CX8: 2 | CY8: =AGC!AN5 -> 66.66666667 | CZ8: =IF(CY8="","",COUNTIF($CY$7:$CY$26,">"&CY8)+COUNTIF($CY$6:CY7,CY8)) -> 8 | DA8: =IF((CX8-1)>MAX(CZ$7:CZ$26),"",(MATCH(CX8-1,CZ$7:CZ$26,0))) -> 3 | DD8: 2 | DE8: 10 | DH8: =' Musique'!A4 -> 2 | DI8: =COUNTIF($EU$7:$FU$8,"2") -> 4 | DJ8: =IF(DI8="","",COUNTIF($DI$7:$DI$26,">"&DI8)+COUNTIF($DI$6:DI7,DI8)) -> 3 | DK8: 1 | DM8: =DH8 -> 2 | DN8: =COUNTIF($EU$7:$FU$9,"2") -> 7 | DO8: =IF(DN8="","",COUNTIF($DN$7:$DN$26,">"&DN8)+COUNTIF($DN$6:DN7,DN8)) -> 3 | DP8: 1 | DR8: =DM8 -> 2 | DS8: =COUNTIF($EU$7:$FU$10,"2") -> 7 | DT8: =IF(DS8="","",COUNTIF($DS$7:$DS$26,">"&DS8)+COUNTIF($DS$6:DS7,DS8)) -> 5 | DU8: 1 | DW8: =DH8 -> 2 | DX8: =COUNTIF($EU$7:$FU$11,"2") -> 9 | DY8: =IF(DX8="","",COUNTIF($DX$7:$DX$26,">"&DX8)+COUNTIF($DX$6:DX7,DX8)) -> 4 | DZ8: 1 | EB8: =DH8 -> 2 | EC8: =COUNTIF($EU$7:$FU$12,"2") -> 9 | ED8: =IF(EC8="","",COUNTIF($EC$7:$EC$26,">"&EC8)+COUNTIF($EC$6:EC7,EC8)) -> 9 | EE8: 11 | EG8: =DH8 -> 2 | EH8: =COUNTIF($EU$7:$FU$13,"2") -> 10 | EI8: =IF(EH8="","",COUNTIF($EH$7:$EH$26,">"&EH8)+COUNTIF($EH$6:EH7,EH8)) -> 8 | EJ8: 1 | EL8: =DH8 -> 2 | EM8: =COUNTIF($EU$7:$FU$14,"2") -> 11 | EN8: =IF(EM8="","",COUNTIF($EM$7:$EM$26,">"&EM8)+COUNTIF($EM$6:EM7,EM8)) -> 8 | EO8: 10 | ET8: 2 | EU8: =E8 -> 11 | EV8: =I8 -> 9 | EW8: =M8 -> 11 | EX8: =Q8 -> 11 | EY8: =U8 -> 13 | EZ8: =Y8 -> 10 | FA8: =AC8 -> 1 | FB8: =AG8 -> 1 | FC8: =AK8 -> 8 | FD8: =AO8 -> 1 | FE8: =AS8 -> 1 | FF8: =AW8 -> 10 | FG8: =BA8 -> 8 | FH8: =BE8 -> 1 | FI8: =BI8 -> 8 | FJ8: =BM8 -> 12 | FK8: =BQ8 -> 1 | FL8: =BU8 -> 2 | FM8: =BY8 -> 7 | FN8: =CC8 -> 11 | FO8: =CG8 -> 10 | FP8: =#REF! ->  | FQ8: =CK8 -> 14 | FR8: =CO8 -> 3 | FS8: =CS8 -> 5 | FT8: =CW8 -> 10 | FU8: =DA8 -> 3
A9: 3 | B9: =' Musique'!A5 -> 3 | C9: ='Points Vic '!AL6 -> 50.02660221 | D9: =IF(C9="","",COUNTIF($C$7:$C$26,">"&C9)+COUNTIF($C$6:C8,C9)) -> 9 | E9: 9 | F9: 3 | G9: =' Musique'!AJ5 -> 3.299831646 | H9: =IF(G9="","",IF(G9=0,COUNTIF(G$7:G$26,">0")+COUNTIF(G$6:G8,0),COUNTIF($G$7:$G$26,"<"&G9)+COUNTIF($G$6:G8,G9)-COUNTIF(G$6:G$26,0))) -> 9 | I9: 1 | J9: 3 | K9: =' Musique'!AK5 -> 3.771236166 | L9: =IF(K9="","",IF(K9=0,COUNTIF(K$7:K$26,">0")+COUNTIF(K$6:K8,0),COUNTIF($K$7:$K$26,"<"&K9)+COUNTIF($K$6:K8,K9)-COUNTIF(K$6:K$26,0))) -> 12 | M9: 8 | N9: 3 | O9: =' Musique'!AO5 -> 0.4438137822 | P9: =IF(O9="","",COUNTIF($O$7:$O$26,">"&O9)+COUNTIF($O$6:O8,O9)) -> 3 | Q9: 1 | R9: 3 | S9: =' Musique'!AQ5 -> 35.35533906 | T9: =IF(S9="","",COUNTIF($S$7:$S$26,">"&S9)+COUNTIF($S$6:S8,S9)) -> 7 | U9: 14 | V9: 3 | W9: =' Musique'!AR5 -> 1.545454545 | X9: =IF(W9="","",COUNTIF($W$7:$W$26,">"&W9)+COUNTIF($W$6:W8,W9)) -> 6 | Y9: 5 | Z9: 3 | AA9: =' Musique'!AS5 -> 12.33333333 | AB9: =IF(AA9="","",COUNTIF($AA$7:$AA$26,">"&AA9)+COUNTIF($AA$6:AA8,AA9)) -> 5 | AC9: 10 | AD9: 3 | AE9: =' Musique'!AT5 -> 5.4 | AF9: =IF(AE9="","",IF(AE9=0,COUNTIF(AE$7:AE$26,">0")+COUNTIF(AE$6:AE8,0),COUNTIF($AE$7:$AE$26,"<"&AE9)+COUNTIF($AE$6:AE8,AE9)-COUNTIF(AE$6:AE$26,0))) -> 7 | AG9: 10 | AH9: 3 | AI9: =' Musique'!AU5 -> 66.6 | AJ9: =IF(AI9="","",COUNTIF($AI$7:$AI$26,">"&AI9)+COUNTIF($AI$6:AI8,AI9)) -> 0 | AK9: 2 | AL9: 3 | AM9: =' Musique'!AV5 -> 2.283950617 | AN9: =IF(AM9="","",COUNTIF($AM$7:$AM$26,">"&AM9)+COUNTIF($AM$6:AM8,AM9)) -> 7 | AO9: 10 | AP9: 3 | AQ9: =' Musique'!AW5 -> 20.33333333 | AR9: =IF(AQ9="","",COUNTIF($AQ$7:$AQ$26,">"&AQ9)+COUNTIF($AQ$6:AQ8,AQ9)) -> 7 | AS9: 10 | AT9: 3 | AU9: =' Musique'!AX5 -> 4.666666667 | AV9: =IF(AU9="","",IF(AU9=0,COUNTIF(AU$7:AU$26,">0")+COUNTIF(AU$6:AU8,0),COUNTIF($AU$7:$AU$26,"<"&AU9)+COUNTIF($AU$6:AU8,AU9)-COUNTIF(AU$6:AU$26,0))) -> 6 | AW9: 5 | AX9: 3 | AY9: =' Musique'!AZ5 -> 94.88888889 | AZ9: =IF(AY9="","",COUNTIF($AY$7:$AY$26,">"&AY9)+COUNTIF($AY$6:AY8,AY9)) -> 6 | BA9: 2 | BB9: 3 | BC9: =' Musique'!AV5 -> 2.283950617 | BD9: =IF(BC9="","",COUNTIF($BC$7:$BC$26,">"&BC9)+COUNTIF($BC$6:BC8,BC9)) -> 7 | BE9: 10 | BF9: 3 | BG9: =' Musique'!BM5 -> 1.533333333 | BH9: =IF(BG9="","",IF(BG9=0,COUNTIF(BG$7:BG$26,">0")+COUNTIF(BG$6:BG8,0),COUNTIF($BG$7:$BG$26,"<"&BG9)+COUNTIF($BG$6:BG8,BG9)-COUNTIF(BG$6:BG$26,0))) -> 7 | BI9: 14 | BJ9: 3 | BK9: =' Musique'!BJ5 -> 5.431623932 | BL9: =IF(BK9="","",COUNTIF($BK$7:$BK$26,">"&BK9)+COUNTIF($BK$6:BK8,BK9)) -> 11 | BM9: 4 | BN9: 3 | BO9: =' Musique'!BK5 -> 6.599663291 | BP9: =IF(BO9="","",IF(BO9=0,COUNTIF(BO$7:BO$26,">0")+COUNTIF(BO$6:BO8,0),COUNTIF($BO$7:$BO$26,"<"&BO9)+COUNTIF($BO$6:BO8,BO9)-COUNTIF(BO$6:BO$26,0))) -> 12 | BQ9: 10 | BR9: 3 | BS9: =' Musique'!BE5 -> 3.966498312 | BT9: =IF(BS9="","",COUNTIF($BS$7:$BS$26,">"&BS9)+COUNTIF($BS$6:BS8,BS9)) -> 4 | BU9: 6 | BV9: 3 | BW9: =' Musique'!BP5 -> 1.961538462 | BX9: =IF(BW9="","",COUNTIF($BW$7:$BW$26,">"&BW9)+COUNTIF($BW$6:BW8,BW9)) -> 7 | BY9: 5 | BZ9: 3 | CA9: =' Musique'!AL5 -> 0.5 | CB9: =IF(CA9="","",COUNTIF($CA$7:$CA$26,">"&CA9)+COUNTIF($CA$6:CA8,CA9)) -> 3 | CC9: 1 | CD9: 3 | CE9: =' Musique'!BB5 -> 2.076923077 | CF9: =IF(CE9="","",IF(CE9=0,COUNTIF(CE$7:CE$26,">0")+COUNTIF(CE$6:CE8,0),COUNTIF($CE$7:$CE$26,"<"&CE9)+COUNTIF($CE$6:CE8,CE9)-COUNTIF(CE$6:CE$26,0))) -> 3 | CG9: 13 | CH9: 3 | CI9: =' Musique'!BH5 -> 3.966498312 | CJ9: =IF(CI9="","",COUNTIF($CI$7:$CI$26,">"&CI9)+COUNTIF($CI$6:CI8,CI9)) -> 2 | CK9: 3 | CL9: 3 | CM9: =' Musique'!BN5 -> 33.33333333 | CN9: =IF(CM9="","",COUNTIF($CM$7:$CM$26,">"&CM9)+COUNTIF($CM$6:CM8,CM9)) -> 1 | CO9: 10 | CP9: 3 | CQ9: =AGC!AP6 -> 25 | CR9: =IF(CQ9="","",COUNTIF($CQ$7:$CQ$26,">"&CQ9)+COUNTIF($CQ$6:CQ8,CQ9)) -> 12 | CS9: 6 | CT9: 3 | CU9: =AGC!AQ6 -> 3973.75 | CV9: =IF(CU9="","",COUNTIF($CU$7:$CU$26,">"&CU9)+COUNTIF($CU$6:CU8,CU9)) -> 5 | CW9: 2 | CX9: 3 | CY9: =AGC!AN6 -> 200 | CZ9: =IF(CY9="","",COUNTIF($CY$7:$CY$26,">"&CY9)+COUNTIF($CY$6:CY8,CY9)) -> 1 | DA9: 13 | DD9: 3 | DE9: 11 | DH9: =' Musique'!A5 -> 3 | DI9: =COUNTIF($EU$7:$FU$8,"3") -> 3 | DJ9: =IF(DI9="","",COUNTIF($DI$7:$DI$26,">"&DI9)+COUNTIF($DI$6:DI8,DI9)) -> 5 | DK9: 10 | DM9: 3 | DN9: =COUNTIF($EU$7:$FU$9,"3") -> 4 | DO9: =IF(DN9="","",COUNTIF($DN$7:$DN$26,">"&DN9)+COUNTIF($DN$6:DN8,DN9)) -> 6 | DP9: 10 | DR9: 3 | DS9: =COUNTIF($EU$7:$FU$10,"3") -> 7 | DT9: =IF(DS9="","",COUNTIF($DS$7:$DS$26,">"&DS9)+COUNTIF($DS$6:DS8,DS9)) -> 6 | DU9: 10 | DW9: 3 | DX9: =COUNTIF($EU$7:$FU$11,"3") -> 8 | DY9: =IF(DX9="","",COUNTIF($DX$7:$DX$26,">"&DX9)+COUNTIF($DX$6:DX8,DX9)) -> 6 | DZ9: 10 | EB9: 3 | EC9: =COUNTIF($EU$7:$FU$12,"3") -> 10 | ED9: =IF(EC9="","",COUNTIF($EC$7:$EC$26,">"&EC9)+COUNTIF($EC$6:EC8,EC9)) -> 7 | EE9: 1 | EG9: 3 | EH9: =COUNTIF($EU$7:$FU$13,"3") -> 13 | EI9: =IF(EH9="","",COUNTIF($EH$7:$EH$26,">"&EH9)+COUNTIF($EH$6:EH8,EH9)) -> 6 | EJ9: 11 | EL9: 3 | EM9: =COUNTIF($EU$7:$FU$14,"3") -> 20 | EN9: =IF(EM9="","",COUNTIF($EM$7:$EM$26,">"&EM9)+COUNTIF($EM$6:EM8,EM9)) -> 2 | EO9: 3 | ET9: 3 | EU9: 9 | EV9: 1 | EW9: 8 | EX9: 1 | EY9: 14 | EZ9: 5 | FA9: 10 | FB9: 10 | FC9: 2 | FD9: 10 | FE9: 10 | FF9: 5 | FG9: 2 | FH9: 10 | FI9: 14 | FJ9: 4 | FK9: 10 | FL9: 6 | FM9: 5 | FN9: 1 | FO9: 13 | FP9: =#REF! ->  | FQ9: 3 | FR9: 10 | FS9: 6 | FT9: 2 | FU9: 13
A10: 4 | B10: =' Musique'!A6 -> 4 | C10: ='Points Vic '!AL7 -> 57.57025919 | D10: =IF(C10="","",COUNTIF($C$7:$C$26,">"&C10)+COUNTIF($C$6:C9,C10)) -> 7 | E10: 5 | F10: 4 | G10: =' Musique'!AJ6 -> 2.867441756 | H10: =IF(G10="","",IF(G10=0,COUNTIF(G$7:G$26,">0")+COUNTIF(G$6:G9,0),COUNTIF($G$7:$G$26,"<"&G10)+COUNTIF($G$6:G9,G10)-COUNTIF(G$6:G$26,0))) -> 5 | I10: 15 | J10: 4 | K10: =' Musique'!AK6 -> 1.699673171 | L10: =IF(K10="","",IF(K10=0,COUNTIF(K$7:K$26,">0")+COUNTIF(K$6:K9,0),COUNTIF($K$7:$K$26,"<"&K10)+COUNTIF($K$6:K9,K10)-COUNTIF(K$6:K$26,0))) -> 4 | M10: 12 | N10: 4 | O10: =' Musique'!AO6 -> 0.4438137822 | P10: =IF(O10="","",COUNTIF($O$7:$O$26,">"&O10)+COUNTIF($O$6:O9,O10)) -> 4 | Q10: 3 | R10: 4 | S10: =' Musique'!AQ6 -> 25.30095667 | T10: =IF(S10="","",COUNTIF($S$7:$S$26,">"&S10)+COUNTIF($S$6:S9,S10)) -> 11 | U10: 10 | V10: 4 | W10: =' Musique'!AR6 -> 1.428571429 | X10: =IF(W10="","",COUNTIF($W$7:$W$26,">"&W10)+COUNTIF($W$6:W9,W10)) -> 11 | Y10: 1 | Z10: 4 | AA10: =' Musique'!AS6 -> 8 | AB10: =IF(AA10="","",COUNTIF($AA$7:$AA$26,">"&AA10)+COUNTIF($AA$6:AA9,AA10)) -> 10 | AC10: 8 | AD10: 4 | AE10: =' Musique'!AT6 -> 6.2 | AF10: =IF(AE10="","",IF(AE10=0,COUNTIF(AE$7:AE$26,">0")+COUNTIF(AE$6:AE9,0),COUNTIF($AE$7:$AE$26,"<"&AE10)+COUNTIF($AE$6:AE9,AE10)-COUNTIF(AE$6:AE$26,0))) -> 12 | AG10: 13 | AH10: 4 | AI10: =' Musique'!AU6 -> 49.6 | AJ10: =IF(AI10="","",COUNTIF($AI$7:$AI$26,">"&AI10)+COUNTIF($AI$6:AI9,AI10)) -> 4 | AK10: 14 | AL10: 4 | AM10: =' Musique'!AV6 -> 1.290322581 | AN10: =IF(AM10="","",COUNTIF($AM$7:$AM$26,">"&AM10)+COUNTIF($AM$6:AM9,AM10)) -> 11 | AO10: 14 | AP10: 4 | AQ10: =' Musique'!AW6 -> 17.16666667 | AR10: =IF(AQ10="","",COUNTIF($AQ$7:$AQ$26,">"&AQ10)+COUNTIF($AQ$6:AQ9,AQ10)) -> 11 | AS10: 14 | AT10: 4 | AU10: =' Musique'!AX6 -> 5.666666667 | AV10: =IF(AU10="","",IF(AU10=0,COUNTIF(AU$7:AU$26,">0")+COUNTIF(AU$6:AU9,0),COUNTIF($AU$7:$AU$26,"<"&AU10)+COUNTIF($AU$6:AU9,AU10)-COUNTIF(AU$6:AU$26,0))) -> 12 | AW10: 1 | AX10: 4 | AY10: =' Musique'!AZ6 -> 97.27777778 | AZ10: =IF(AY10="","",COUNTIF($AY$7:$AY$26,">"&AY10)+COUNTIF($AY$6:AY9,AY10)) -> 5 | BA10: 14 | BB10: 4 | BC10: =' Musique'!AV6 -> 1.290322581 | BD10: =IF(BC10="","",COUNTIF($BC$7:$BC$26,">"&BC10)+COUNTIF($BC$6:BC9,BC10)) -> 11 | BE10: 14 | BF10: 4 | BG10: =' Musique'!BM6 -> 2.733333333 | BH10: =IF(BG10="","",IF(BG10=0,COUNTIF(BG$7:BG$26,">0")+COUNTIF(BG$6:BG9,0),COUNTIF($BG$7:$BG$26,"<"&BG10)+COUNTIF($BG$6:BG9,BG10)-COUNTIF(BG$6:BG$26,0))) -> 10 | BI10: 11 | BJ10: 4 | BK10: =' Musique'!BJ6 -> 9.5 | BL10: =IF(BK10="","",COUNTIF($BK$7:$BK$26,">"&BK10)+COUNTIF($BK$6:BK9,BK10)) -> 2 | BM10: 9 | BN10: 4 | BO10: =' Musique'!BK6 -> 5.734883511 | BP10: =IF(BO10="","",IF(BO10=0,COUNTIF(BO$7:BO$26,">0")+COUNTIF(BO$6:BO9,0),COUNTIF($BO$7:$BO$26,"<"&BO10)+COUNTIF($BO$6:BO9,BO10)-COUNTIF(BO$6:BO$26,0))) -> 9 | BQ10: 9 | BR10: 4 | BS10: =' Musique'!BE6 -> 3.534108422 | BT10: =IF(BS10="","",COUNTIF($BS$7:$BS$26,">"&BS10)+COUNTIF($BS$6:BS9,BS10)) -> 8 | BU10: 14 | BV10: 4 | BW10: =' Musique'!BP6 -> 3.043478261 | BX10: =IF(BW10="","",COUNTIF($BW$7:$BW$26,">"&BW10)+COUNTIF($BW$6:BW9,BW10)) -> 5 | BY10: 12 | BZ10: 4 | CA10: =' Musique'!AL6 -> 0.5 | CB10: =IF(CA10="","",COUNTIF($CA$7:$CA$26,">"&CA10)+COUNTIF($CA$6:CA9,CA10)) -> 4 | CC10: 3 | CD10: 4 | CE10: =' Musique'!BB6 -> 3.913043478 | CF10: =IF(CE10="","",IF(CE10=0,COUNTIF(CE$7:CE$26,">0")+COUNTIF(CE$6:CE9,0),COUNTIF($CE$7:$CE$26,"<"&CE10)+COUNTIF($CE$6:CE9,CE10)-COUNTIF(CE$6:CE$26,0))) -> 13 | CG10: 3 | CH10: 4 | CI10: =' Musique'!BH6 -> 3.534108422 | CJ10: =IF(CI10="","",COUNTIF($CI$7:$CI$26,">"&CI10)+COUNTIF($CI$6:CI9,CI10)) -> 5 | CK10: 10 | CL10: 4 | CM10: =' Musique'!BN6 -> 0 | CN10: =IF(CM10="","",COUNTIF($CM$7:$CM$26,">"&CM10)+COUNTIF($CM$6:CM9,CM10)) -> 10 | CO10: 11 | CP10: 4 | CQ10: =AGC!AP7 -> 60 | CR10: =IF(CQ10="","",COUNTIF($CQ$7:$CQ$26,">"&CQ10)+COUNTIF($CQ$6:CQ9,CQ10)) -> 4 | CS10: 14 | CT10: 4 | CU10: =AGC!AQ7 -> 3380 | CV10: =IF(CU10="","",COUNTIF($CU$7:$CU$26,">"&CU10)+COUNTIF($CU$6:CU9,CU10)) -> 9 | CW10: 5 | CX10: 4 | CY10: =AGC!AN7 -> 20 | CZ10: =IF(CY10="","",COUNTIF($CY$7:$CY$26,">"&CY10)+COUNTIF($CY$6:CY9,CY10)) -> 12 | DA10: 11 | DD10: 4 | DE10: 6 | DH10: =' Musique'!A6 -> 4 | DI10: =COUNTIF($EU$7:$FU$8,"4") -> 0 | DJ10: =IF(DI10="","",COUNTIF($DI$7:$DI$26,">"&DI10)+COUNTIF($DI$6:DI9,DI10)) -> 13 | DK10: 2 | DM10: 4 | DN10: =COUNTIF($EU$7:$FU$9,"4") -> 1 | DO10: =IF(DN10="","",COUNTIF($DN$7:$DN$26,">"&DN10)+COUNTIF($DN$6:DN9,DN10)) -> 11 | DP10: 2 | DR10: 4 | DS10: =COUNTIF($EU$7:$FU$10,"4") -> 1 | DT10: =IF(DS10="","",COUNTIF($DS$7:$DS$26,">"&DS10)+COUNTIF($DS$6:DS9,DS10)) -> 13 | DU10: 14 | DW10: 4 | DX10: =COUNTIF($EU$7:$FU$11,"4") -> 6 | DY10: =IF(DX10="","",COUNTIF($DX$7:$DX$26,">"&DX10)+COUNTIF($DX$6:DX9,DX10)) -> 9 | DZ10: 14 | EB10: 4 | EC10: =COUNTIF($EU$7:$FU$12,"4") -> 10 | ED10: =IF(EC10="","",COUNTIF($EC$7:$EC$26,">"&EC10)+COUNTIF($EC$6:EC9,EC10)) -> 8 | EE10: 14 | EG10: 4 | EH10: =COUNTIF($EU$7:$FU$13,"4") -> 10 | EI10: =IF(EH10="","",COUNTIF($EH$7:$EH$26,">"&EH10)+COUNTIF($EH$6:EH9,EH10)) -> 9 | EJ10: 5 | EL10: 4 | EM10: =COUNTIF($EU$7:$FU$14,"4") -> 11 | EN10: =IF(EM10="","",COUNTIF($EM$7:$EM$26,">"&EM10)+COUNTIF($EM$6:EM9,EM10)) -> 9 | EO10: 11 | ET10: 4 | EU10: 5 | EV10: 15 | EW10: 12 | EX10: 3 | EY10: 10 | EZ10: 1 | FA10: 8 | FB10: 13 | FC10: 14 | FD10: 14 | FE10: 14 | FF10: 1 | FG10: 14 | FH10: 14 | FI10: 11 | FJ10: 9 | FK10: 9 | FL10: 14 | FM10: 12 | FN10: 3 | FO10: 3 | FP10: =#REF! ->  | FQ10: 10 | FR10: 11 | FS10: 14 | FT10: 5 | FU10: 11
A11: 5 | B11: =' Musique'!A7 -> 5 | C11: ='Points Vic '!AL8 -> 89.95352998 | D11: =IF(C11="","",COUNTIF($C$7:$C$26,">"&C11)+COUNTIF($C$6:C10,C11)) -> 3 | E11: 10 | F11: 5 | G11: =' Musique'!AJ7 -> 2.867441756 | H11: =IF(G11="","",IF(G11=0,COUNTIF(G$7:G$26,">0")+COUNTIF(G$6:G10,0),COUNTIF($G$7:$G$26,"<"&G11)+COUNTIF($G$6:G10,G11)-COUNTIF(G$6:G$26,0))) -> 6 | I11: 7 | J11: 5 | K11: =' Musique'!AK7 -> 1.885618083 | L11: =IF(K11="","",IF(K11=0,COUNTIF(K$7:K$26,">0")+COUNTIF(K$6:K10,0),COUNTIF($K$7:$K$26,"<"&K11)+COUNTIF($K$6:K10,K11)-COUNTIF(K$6:K$26,0))) -> 5 | M11: 4 | N11: 5 | O11: =' Musique'!AO7 -> 1.205033274 | P11: =IF(O11="","",COUNTIF($O$7:$O$26,">"&O11)+COUNTIF($O$6:O10,O11)) -> 0 | Q11: 4 | R11: 5 | S11: =' Musique'!AQ7 -> 24.93427614 | T11: =IF(S11="","",COUNTIF($S$7:$S$26,">"&S11)+COUNTIF($S$6:S10,S11)) -> 12 | U11: 15 | V11: 5 | W11: =' Musique'!AR7 -> 1.705882353 | X11: =IF(W11="","",COUNTIF($W$7:$W$26,">"&W11)+COUNTIF($W$6:W10,W11)) -> 2 | Y11: 14 | Z11: 5 | AA11: =' Musique'!AS7 -> 9.666666667 | AB11: =IF(AA11="","",COUNTIF($AA$7:$AA$26,">"&AA11)+COUNTIF($AA$6:AA10,AA11)) -> 8 | AC11: 14 | AD11: 5 | AE11: =' Musique'!AT7 -> 4 | AF11: =IF(AE11="","",IF(AE11=0,COUNTIF(AE$7:AE$26,">0")+COUNTIF(AE$6:AE10,0),COUNTIF($AE$7:$AE$26,"<"&AE11)+COUNTIF($AE$6:AE10,AE11)-COUNTIF(AE$6:AE$26,0))) -> 5 | AG11: 14 | AH11: 5 | AI11: =' Musique'!AU7 -> 38.66666667 | AJ11: =IF(AI11="","",COUNTIF($AI$7:$AI$26,">"&AI11)+COUNTIF($AI$6:AI10,AI11)) -> 11 | AK11: 4 | AL11: 5 | AM11: =' Musique'!AV7 -> 2.416666667 | AN11: =IF(AM11="","",COUNTIF($AM$7:$AM$26,">"&AM11)+COUNTIF($AM$6:AM10,AM11)) -> 6 | AO11: 8 | AP11: 5 | AQ11: =' Musique'!AW7 -> 22 | AR11: =IF(AQ11="","",COUNTIF($AQ$7:$AQ$26,">"&AQ11)+COUNTIF($AQ$6:AQ10,AQ11)) -> 6 | AS11: 13 | AT11: 5 | AU11: =' Musique'!AX7 -> 3.833333333 | AV11: =IF(AU11="","",IF(AU11=0,COUNTIF(AU$7:AU$26,">0")+COUNTIF(AU$6:AU10,0),COUNTIF($AU$7:$AU$26,"<"&AU11)+COUNTIF($AU$6:AU10,AU11)-COUNTIF(AU$6:AU$26,0))) -> 2 | AW11: 14 | AX11: 5 | AY11: =' Musique'!AZ7 -> 84.33333333 | AZ11: =IF(AY11="","",COUNTIF($AY$7:$AY$26,">"&AY11)+COUNTIF($AY$6:AY10,AY11)) -> 11 | BA11: 13 | BB11: 5 | BC11: =' Musique'!AV7 -> 2.416666667 | BD11: =IF(BC11="","",COUNTIF($BC$7:$BC$26,">"&BC11)+COUNTIF($BC$6:BC10,BC11)) -> 6 | BE11: 8 | BF11: 5 | BG11: =' Musique'!BM7 -> 3.066666667 | BH11: =IF(BG11="","",IF(BG11=0,COUNTIF(BG$7:BG$26,">0")+COUNTIF(BG$6:BG10,0),COUNTIF($BG$7:$BG$26,"<"&BG11)+COUNTIF($BG$6:BG10,BG11)-COUNTIF(BG$6:BG$26,0))) -> 13 | BI11: 10 | BJ11: 5 | BK11: =' Musique'!BJ7 -> 5.206855792 | BL11: =IF(BK11="","",COUNTIF($BK$7:$BK$26,">"&BK11)+COUNTIF($BK$6:BK10,BK11)) -> 13 | BM11: 7 | BN11: 5 | BO11: =' Musique'!BK7 -> 4.301162634 | BP11: =IF(BO11="","",IF(BO11=0,COUNTIF(BO$7:BO$26,">0")+COUNTIF(BO$6:BO10,0),COUNTIF($BO$7:$BO$26,"<"&BO11)+COUNTIF($BO$6:BO10,BO11)-COUNTIF(BO$6:BO$26,0))) -> 5 | BQ11: 14 | BR11: 5 | BS11: =' Musique'!BE7 -> 3.700775089 | BT11: =IF(BS11="","",COUNTIF($BS$7:$BS$26,">"&BS11)+COUNTIF($BS$6:BS10,BS11)) -> 6 | BU11: 3 | BV11: 5 | BW11: =' Musique'!BP7 -> 3.35106383 | BX11: =IF(BW11="","",COUNTIF($BW$7:$BW$26,">"&BW11)+COUNTIF($BW$6:BW10,BW11)) -> 2 | BY11: 6 | BZ11: 5 | CA11: =' Musique'!AL7 -> 0.6666666667 | CB11: =IF(CA11="","",COUNTIF($CA$7:$CA$26,">"&CA11)+COUNTIF($CA$6:CA10,CA11)) -> 0 | CC11: 4 | CD11: 5 | CE11: =' Musique'!BB7 -> 2.29787234 | CF11: =IF(CE11="","",IF(CE11=0,COUNTIF(CE$7:CE$26,">0")+COUNTIF(CE$6:CE10,0),COUNTIF($CE$7:$CE$26,"<"&CE11)+COUNTIF($CE$6:CE10,CE11)-COUNTIF(CE$6:CE$26,0))) -> 5 | CG11: 2 | CH11: 5 | CJ11: =IF(CI11="","",COUNTIF($CI$7:$CI$26,">"&CI11)+COUNTIF($CI$6:CI10,CI11)) ->  | CK11: 2 | CL11: 5 | CM11: =' Musique'!BN7 -> 16.66666667 | CN11: =IF(CM11="","",COUNTIF($CM$7:$CM$26,">"&CM11)+COUNTIF($CM$6:CM10,CM11)) -> 5 | CO11: 1 | CP11: 5 | CQ11: =AGC!AP8 -> 66.66666667 | CR11: =IF(CQ11="","",COUNTIF($CQ$7:$CQ$26,">"&CQ11)+COUNTIF($CQ$6:CQ10,CQ11)) -> 1 | CS11: 4 | CT11: 5 | CU11: =AGC!AQ8 -> 4450 | CV11: =IF(CU11="","",COUNTIF($CU$7:$CU$26,">"&CU11)+COUNTIF($CU$6:CU10,CU11)) -> 3 | CW11: 7 | CX11: 5 | CY11: =AGC!AN8 -> 50 | CZ11: =IF(CY11="","",COUNTIF($CY$7:$CY$26,">"&CY11)+COUNTIF($CY$6:CY10,CY11)) -> 10 | DA11: 7 | DD11: 5 | DE11: 5 | DH11: =' Musique'!A7 -> 5 | DI11: =COUNTIF($EU$7:$FU$8,"5") -> 3 | DJ11: =IF(DI11="","",COUNTIF($DI$7:$DI$26,">"&DI11)+COUNTIF($DI$6:DI10,DI11)) -> 6 | DK11: 13 | DM11: 5 | DN11: =COUNTIF($EU$7:$FU$9,"5") -> 6 | DO11: =IF(DN11="","",COUNTIF($DN$7:$DN$26,">"&DN11)+COUNTIF($DN$6:DN10,DN11)) -> 4 | DP11: 5 | DR11: 5 | DS11: =COUNTIF($EU$7:$FU$10,"5") -> 8 | DT11: =IF(DS11="","",COUNTIF($DS$7:$DS$26,">"&DS11)+COUNTIF($DS$6:DS10,DS11)) -> 4 | DU11: 5 | DW11: 5 | DX11: =COUNTIF($EU$7:$FU$11,"5") -> 8 | DY11: =IF(DX11="","",COUNTIF($DX$7:$DX$26,">"&DX11)+COUNTIF($DX$6:DX10,DX11)) -> 7 | DZ11: 2 | EB11: 5 | EC11: =COUNTIF($EU$7:$FU$12,"5") -> 13 | ED11: =IF(EC11="","",COUNTIF($EC$7:$EC$26,">"&EC11)+COUNTIF($EC$6:EC10,EC11)) -> 4 | EE11: 5 | EG11: 5 | EH11: =COUNTIF($EU$7:$FU$13,"5") -> 18 | EI11: =IF(EH11="","",COUNTIF($EH$7:$EH$26,">"&EH11)+COUNTIF($EH$6:EH10,EH11)) -> 3 | EJ11: 14 | EL11: 5 | EM11: =COUNTIF($EU$7:$FU$14,"5") -> 18 | EN11: =IF(EM11="","",COUNTIF($EM$7:$EM$26,">"&EM11)+COUNTIF($EM$6:EM10,EM11)) -> 4 | EO11: 5 | ET11: 5 | EU11: 10 | EV11: 7 | EW11: 4 | EX11: 4 | EY11: 15 | EZ11: 14 | FA11: 14 | FB11: 14 | FC11: 4 | FD11: 8 | FE11: 13 | FF11: 14 | FG11: 13 | FH11: 8 | FI11: 10 | FJ11: 7 | FK11: 14 | FL11: 3 | FM11: 6 | FN11: 4 | FO11: 2 | FP11: =#REF! ->  | FQ11: 2 | FR11: 1 | FS11: 4 | FT11: 7 | FU11: 7
A12: 6 | B12: =' Musique'!A8 -> 6 | C12: ='Points Vic '!AL9 -> 40.98619639 | D12: =IF(C12="","",COUNTIF($C$7:$C$26,">"&C12)+COUNTIF($C$6:C11,C12)) -> 12 | E12: 14 | F12: 6 | G12: =' Musique'!AJ8 -> 4.027681991 | H12: =IF(G12="","",IF(G12=0,COUNTIF(G$7:G$26,">0")+COUNTIF(G$6:G11,0),COUNTIF($G$7:$G$26,"<"&G12)+COUNTIF($G$6:G11,G12)-COUNTIF(G$6:G$26,0))) -> 11 | I12: 4 | J12: 6 | K12: =' Musique'!AK8 -> 4.027681991 | L12: =IF(K12="","",IF(K12=0,COUNTIF(K$7:K$26,">0")+COUNTIF(K$6:K11,0),COUNTIF($K$7:$K$26,"<"&K12)+COUNTIF($K$6:K11,K12)-COUNTIF(K$6:K$26,0))) -> 13 | M12: 5 | N12: 6 | O12: =' Musique'!AO8 -> 0.4438137822 | P12: =IF(O12="","",COUNTIF($O$7:$O$26,">"&O12)+COUNTIF($O$6:O11,O12)) -> 5 | Q12: 6 | R12: 6 | S12: =' Musique'!AQ8 -> 40.27681991 | T12: =IF(S12="","",COUNTIF($S$7:$S$26,">"&S12)+COUNTIF($S$6:S11,S12)) -> 6 | U12: 8 | V12: 6 | W12: =' Musique'!AR8 -> 1.5 | X12: =IF(W12="","",COUNTIF($W$7:$W$26,">"&W12)+COUNTIF($W$6:W11,W12)) -> 8 | Y12: 13 | Z12: 6 | AA12: =' Musique'!AS8 -> 9 | AB12: =IF(AA12="","",COUNTIF($AA$7:$AA$26,">"&AA12)+COUNTIF($AA$6:AA11,AA12)) -> 9 | AC12: 3 | AD12: 6 | AE12: =' Musique'!AT8 -> 5.4 | AF12: =IF(AE12="","",IF(AE12=0,COUNTIF(AE$7:AE$26,">0")+COUNTIF(AE$6:AE11,0),COUNTIF($AE$7:$AE$26,"<"&AE12)+COUNTIF($AE$6:AE11,AE12)-COUNTIF(AE$6:AE$26,0))) -> 8 | AG12: 5 | AH12: 6 | AI12: =' Musique'!AU8 -> 48.6 | AJ12: =IF(AI12="","",COUNTIF($AI$7:$AI$26,">"&AI12)+COUNTIF($AI$6:AI11,AI12)) -> 6 | AK12: 10 | AL12: 6 | AM12: =' Musique'!AV8 -> 1.666666667 | AN12: =IF(AM12="","",COUNTIF($AM$7:$AM$26,">"&AM12)+COUNTIF($AM$6:AM11,AM12)) -> 9 | AO12: 13 | AP12: 6 | AQ12: =' Musique'!AW8 -> 18.83333333 | AR12: =IF(AQ12="","",COUNTIF($AQ$7:$AQ$26,">"&AQ12)+COUNTIF($AQ$6:AQ11,AQ12)) -> 9 | AS12: 8 | AT12: 6 | AU12: =' Musique'!AX8 -> 5 | AV12: =IF(AU12="","",IF(AU12=0,COUNTIF(AU$7:AU$26,">0")+COUNTIF(AU$6:AU11,0),COUNTIF($AU$7:$AU$26,"<"&AU12)+COUNTIF($AU$6:AU11,AU12)-COUNTIF(AU$6:AU$26,0))) -> 8 | AW12: 13 | AX12: 6 | AY12: =' Musique'!AZ8 -> 94.16666667 | AZ12: =IF(AY12="","",COUNTIF($AY$7:$AY$26,">"&AY12)+COUNTIF($AY$6:AY11,AY12)) -> 7 | BA12: 4 | BB12: 6 | BC12: =' Musique'!AV8 -> 1.666666667 | BD12: =IF(BC12="","",COUNTIF($BC$7:$BC$26,">"&BC12)+COUNTIF($BC$6:BC11,BC12)) -> 9 | BE12: 13 | BF12: 6 | BG12: =' Musique'!BM8 -> 2.6 | BH12: =IF(BG12="","",IF(BG12=0,COUNTIF(BG$7:BG$26,">0")+COUNTIF(BG$6:BG11,0),COUNTIF($BG$7:$BG$26,"<"&BG12)+COUNTIF($BG$6:BG11,BG12)-COUNTIF(BG$6:BG$26,0))) -> 9 | BI12: 1 | BJ12: 6 | BK12: =' Musique'!BJ8 -> 6.040299367 | BL12: =IF(BK12="","",COUNTIF($BK$7:$BK$26,">"&BK12)+COUNTIF($BK$6:BK11,BK12)) -> 8 | BM12: 8 | BN12: 6 | BO12: =' Musique'!BK8 -> 6.041522987 | BP12: =IF(BO12="","",IF(BO12=0,COUNTIF(BO$7:BO$26,">0")+COUNTIF(BO$6:BO11,0),COUNTIF($BO$7:$BO$26,"<"&BO12)+COUNTIF($BO$6:BO11,BO12)-COUNTIF(BO$6:BO$26,0))) -> 10 | BQ12: 5 | BR12: 6 | BS12: =' Musique'!BE8 -> 4.694348658 | BT12: =IF(BS12="","",COUNTIF($BS$7:$BS$26,">"&BS12)+COUNTIF($BS$6:BS11,BS12)) -> 2 | BU12: 10 | BV12: 6 | BW12: =' Musique'!BP8 -> 3.163366337 | BX12: =IF(BW12="","",COUNTIF($BW$7:$BW$26,">"&BW12)+COUNTIF($BW$6:BW11,BW12)) -> 4 | BY12: 4 | BZ12: 6 | CA12: =' Musique'!AL8 -> 0.5 | CB12: =IF(CA12="","",COUNTIF($CA$7:$CA$26,">"&CA12)+COUNTIF($CA$6:CA11,CA12)) -> 5 | CC12: 6 | CD12: 6 | CE12: =' Musique'!BB8 -> 2.673267327 | CF12: =IF(CE12="","",IF(CE12=0,COUNTIF(CE$7:CE$26,">0")+COUNTIF(CE$6:CE11,0),COUNTIF($CE$7:$CE$26,"<"&CE12)+COUNTIF($CE$6:CE11,CE12)-COUNTIF(CE$6:CE$26,0))) -> 8 | CG12: 5 | CH12: 6 | CJ12: =IF(CI12="","",COUNTIF($CI$7:$CI$26,">"&CI12)+COUNTIF($CI$6:CI11,CI12)) ->  | CK12: 4 | CL12: 6 | CM12: =' Musique'!BN8 -> 16.66666667 | CN12: =IF(CM12="","",COUNTIF($CM$7:$CM$26,">"&CM12)+COUNTIF($CM$6:CM11,CM12)) -> 6 | CO12: 5 | CP12: 6 | CQ12: =AGC!AP9 -> 62.5 | CR12: =IF(CQ12="","",COUNTIF($CQ$7:$CQ$26,">"&CQ12)+COUNTIF($CQ$6:CQ11,CQ12)) -> 2 | CS12: 10 | CT12: 6 | CU12: =AGC!AQ9 -> 3112.5 | CV12: =IF(CU12="","",COUNTIF($CU$7:$CU$26,">"&CU12)+COUNTIF($CU$6:CU11,CU12)) -> 10 | CW12: 3 | CX12: 6 | CY12: =AGC!AN9 -> 66.66666667 | CZ12: =IF(CY12="","",COUNTIF($CY$7:$CY$26,">"&CY12)+COUNTIF($CY$6:CY11,CY12)) -> 9 | DA12: 8 | DH12: =' Musique'!A8 -> 6 | DI12: =COUNTIF($EU$7:$FU$8,"6") -> 0 | DJ12: =IF(DI12="","",COUNTIF($DI$7:$DI$26,">"&DI12)+COUNTIF($DI$6:DI11,DI12)) -> 14 | DK12: 3 | DM12: 6 | DN12: =COUNTIF($EU$7:$FU$9,"6") -> 2 | DO12: =IF(DN12="","",COUNTIF($DN$7:$DN$26,">"&DN12)+COUNTIF($DN$6:DN11,DN12)) -> 9 | DP12: 13 | DR12: 6 | DS12: =COUNTIF($EU$7:$FU$10,"6") -> 2 | DT12: =IF(DS12="","",COUNTIF($DS$7:$DS$26,">"&DS12)+COUNTIF($DS$6:DS11,DS12)) -> 11 | DU12: 2 | DW12: 6 | DX12: =COUNTIF($EU$7:$FU$11,"6") -> 3 | DY12: =IF(DX12="","",COUNTIF($DX$7:$DX$26,">"&DX12)+COUNTIF($DX$6:DX11,DX12)) -> 12 | DZ12: 13 | EB12: 6 | EC12: =COUNTIF($EU$7:$FU$12,"6") -> 5 | ED12: =IF(EC12="","",COUNTIF($EC$7:$EC$26,">"&EC12)+COUNTIF($EC$6:EC11,EC12)) -> 10 | EE12: 13 | EG12: 6 | EH12: =COUNTIF($EU$7:$FU$13,"6") -> 8 | EI12: =IF(EH12="","",COUNTIF($EH$7:$EH$26,">"&EH12)+COUNTIF($EH$6:EH11,EH12)) -> 10 | EJ12: 13 | EL12: 6 | EM12: =COUNTIF($EU$7:$FU$14,"6") -> 9 | EN12: =IF(EM12="","",COUNTIF($EM$7:$EM$26,">"&EM12)+COUNTIF($EM$6:EM11,EM12)) -> 10 | EO12: 13 | ET12: 6 | EU12: 14 | EV12: 4 | EW12: 5 | EX12: 6 | EY12: 8 | EZ12: 13 | FA12: 3 | FB12: 5 | FC12: 10 | FD12: 13 | FE12: 8 | FF12: 13 | FG12: 4 | FH12: 13 | FI12: 1 | FJ12: 8 | FK12: 5 | FL12: 10 | FM12: 4 | FN12: 6 | FO12: 5 | FP12: =#REF! ->  | FQ12: 4 | FR12: 5 | FS12: 10 | FT12: 3 | FU12: 8
A13: 7 | B13: =' Musique'!A9 -> 7 | C13: ='Points Vic '!AL10 -> 58.36436924 | D13: =IF(C13="","",COUNTIF($C$7:$C$26,">"&C13)+COUNTIF($C$6:C12,C13)) -> 6 | E13: 7 | F13: 7 | G13: =' Musique'!AJ9 -> 2.828427125 | H13: =IF(G13="","",IF(G13=0,COUNTIF(G$7:G$26,">0")+COUNTIF(G$6:G12,0),COUNTIF($G$7:$G$26,"<"&G13)+COUNTIF($G$6:G12,G13)-COUNTIF(G$6:G$26,0))) -> 4 | I13: 5 | J13: 7 | K13: =' Musique'!AK9 -> 3.091206165 | L13: =IF(K13="","",IF(K13=0,COUNTIF(K$7:K$26,">0")+COUNTIF(K$6:K12,0),COUNTIF($K$7:$K$26,"<"&K13)+COUNTIF($K$6:K12,K13)-COUNTIF(K$6:K$26,0))) -> 9 | M13: 13 | N13: 7 | O13: =' Musique'!AO9 -> -0.1798669059 | P13: =IF(O13="","",COUNTIF($O$7:$O$26,">"&O13)+COUNTIF($O$6:O12,O13)) -> 10 | Q13: 10 | R13: 7 | S13: =' Musique'!AQ9 -> 33.27561323 | T13: =IF(S13="","",COUNTIF($S$7:$S$26,">"&S13)+COUNTIF($S$6:S12,S13)) -> 8 | U13: 6 | V13: 7 | W13: =' Musique'!AR9 -> 1.428571429 | X13: =IF(W13="","",COUNTIF($W$7:$W$26,">"&W13)+COUNTIF($W$6:W12,W13)) -> 12 | Y13: 3 | Z13: 7 | AA13: =' Musique'!AS9 -> 6 | AB13: =IF(AA13="","",COUNTIF($AA$7:$AA$26,">"&AA13)+COUNTIF($AA$6:AA12,AA13)) -> 12 | AC13: 2 | AD13: 7 | AE13: =' Musique'!AT9 -> 6.6 | AF13: =IF(AE13="","",IF(AE13=0,COUNTIF(AE$7:AE$26,">0")+COUNTIF(AE$6:AE12,0),COUNTIF($AE$7:$AE$26,"<"&AE13)+COUNTIF($AE$6:AE12,AE13)-COUNTIF(AE$6:AE$26,0))) -> 13 | AG13: 8 | AH13: 7 | AI13: =' Musique'!AU9 -> 39.6 | AJ13: =IF(AI13="","",COUNTIF($AI$7:$AI$26,">"&AI13)+COUNTIF($AI$6:AI12,AI13)) -> 10 | AK13: 6 | AL13: 7 | AM13: =' Musique'!AV9 -> 0.9090909091 | AN13: =IF(AM13="","",COUNTIF($AM$7:$AM$26,">"&AM13)+COUNTIF($AM$6:AM12,AM13)) -> 12 | AO13: 5 | AP13: 7 | AQ13: =' Musique'!AW9 -> 14.83333333 | AR13: =IF(AQ13="","",COUNTIF($AQ$7:$AQ$26,">"&AQ13)+COUNTIF($AQ$6:AQ12,AQ13)) -> 13 | AS13: 5 | AT13: 7 | AU13: =' Musique'!AX9 -> 5.666666667 | AV13: =IF(AU13="","",IF(AU13=0,COUNTIF(AU$7:AU$26,">0")+COUNTIF(AU$6:AU12,0),COUNTIF($AU$7:$AU$26,"<"&AU13)+COUNTIF($AU$6:AU12,AU13)-COUNTIF(AU$6:AU$26,0))) -> 13 | AW13: 3 | AX13: 7 | AY13: =' Musique'!AZ9 -> 84.05555556 | AZ13: =IF(AY13="","",COUNTIF($AY$7:$AY$26,">"&AY13)+COUNTIF($AY$6:AY12,AY13)) -> 12 | BA13: 3 | BB13: 7 | BC13: =' Musique'!AV9 -> 0.9090909091 | BD13: =IF(BC13="","",COUNTIF($BC$7:$BC$26,">"&BC13)+COUNTIF($BC$6:BC12,BC13)) -> 12 | BE13: 5 | BF13: 7 | BG13: =' Musique'!BM9 -> 2.733333333 | BH13: =IF(BG13="","",IF(BG13=0,COUNTIF(BG$7:BG$26,">0")+COUNTIF(BG$6:BG12,0),COUNTIF($BG$7:$BG$26,"<"&BG13)+COUNTIF($BG$6:BG12,BG13)-COUNTIF(BG$6:BG$26,0))) -> 11 | BI13: 9 | BJ13: 7 | BK13: =' Musique'!BJ9 -> 7.857142857 | BL13: =IF(BK13="","",COUNTIF($BK$7:$BK$26,">"&BK13)+COUNTIF($BK$6:BK12,BK13)) -> 4 | BM13: 14 | BN13: 7 | BO13: =' Musique'!BK9 -> 5.656854249 | BP13: =IF(BO13="","",IF(BO13=0,COUNTIF(BO$7:BO$26,">0")+COUNTIF(BO$6:BO12,0),COUNTIF($BO$7:$BO$26,"<"&BO13)+COUNTIF($BO$6:BO12,BO13)-COUNTIF(BO$6:BO$26,0))) -> 8 | BQ13: 8 | BR13: 7 | BS13: =' Musique'!BE9 -> 3.495093791 | BT13: =IF(BS13="","",COUNTIF($BS$7:$BS$26,">"&BS13)+COUNTIF($BS$6:BS12,BS13)) -> 9 | BU13: 5 | BV13: 7 | BW13: =' Musique'!BP9 -> 3.461538462 | BX13: =IF(BW13="","",COUNTIF($BW$7:$BW$26,">"&BW13)+COUNTIF($BW$6:BW12,BW13)) -> 1 | BY13: 15 | BZ13: 7 | CA13: =' Musique'!AL9 -> 0.3333333333 | CB13: =IF(CA13="","",COUNTIF($CA$7:$CA$26,">"&CA13)+COUNTIF($CA$6:CA12,CA13)) -> 10 | CC13: 10 | CD13: 7 | CE13: =' Musique'!BB9 -> 3.076923077 | CF13: =IF(CE13="","",IF(CE13=0,COUNTIF(CE$7:CE$26,">0")+COUNTIF(CE$6:CE12,0),COUNTIF($CE$7:$CE$26,"<"&CE13)+COUNTIF($CE$6:CE12,CE13)-COUNTIF(CE$6:CE$26,0))) -> 10 | CG13: 1 | CH13: 7 | CI13: =' Musique'!BH9 -> 2.621320344 | CJ13: =IF(CI13="","",COUNTIF($CI$7:$CI$26,">"&CI13)+COUNTIF($CI$6:CI12,CI13)) -> 9 | CK13: 1 | CL13: 7 | CM13: =' Musique'!BN9 -> 16.66666667 | CN13: =IF(CM13="","",COUNTIF($CM$7:$CM$26,">"&CM13)+COUNTIF($CM$6:CM12,CM13)) -> 7 | CO13: 6 | CP13: 7 | CQ13: =AGC!AP10 -> 33.33333333 | CR13: =IF(CQ13="","",COUNTIF($CQ$7:$CQ$26,">"&CQ13)+COUNTIF($CQ$6:CQ12,CQ13)) -> 11 | CS13: 9 | CT13: 7 | CU13: =AGC!AQ10 -> 4266.666667 | CV13: =IF(CU13="","",COUNTIF($CU$7:$CU$26,">"&CU13)+COUNTIF($CU$6:CU12,CU13)) -> 4 | CW13: 11 | CX13: 7 | CY13: =AGC!AN10 -> 100 | CZ13: =IF(CY13="","",COUNTIF($CY$7:$CY$26,">"&CY13)+COUNTIF($CY$6:CY12,CY13)) -> 4 | DA13: 12 | DH13: =' Musique'!A9 -> 7 | DI13: =COUNTIF($EU$7:$FU$8,"7") -> 1 | DJ13: =IF(DI13="","",COUNTIF($DI$7:$DI$26,">"&DI13)+COUNTIF($DI$6:DI12,DI13)) -> 8 | DK13: 5 | DM13: 7 | DN13: =COUNTIF($EU$7:$FU$9,"7") -> 1 | DO13: =IF(DN13="","",COUNTIF($DN$7:$DN$26,">"&DN13)+COUNTIF($DN$6:DN12,DN13)) -> 12 | DP13: 3 | DR13: 7 | DS13: =COUNTIF($EU$7:$FU$10,"7") -> 1 | DT13: =IF(DS13="","",COUNTIF($DS$7:$DS$26,">"&DS13)+COUNTIF($DS$6:DS12,DS13)) -> 14 | DU13: 3 | DW13: 7 | DX13: =COUNTIF($EU$7:$FU$11,"7") -> 5 | DY13: =IF(DX13="","",COUNTIF($DX$7:$DX$26,">"&DX13)+COUNTIF($DX$6:DX12,DX13)) -> 10 | DZ13: 3 | EB13: 7 | EC13: =COUNTIF($EU$7:$FU$12,"7") -> 5 | ED13: =IF(EC13="","",COUNTIF($EC$7:$EC$26,">"&EC13)+COUNTIF($EC$6:EC12,EC13)) -> 11 | EE13: 8 | EG13: 7 | EH13: =COUNTIF($EU$7:$FU$13,"7") -> 6 | EI13: =IF(EH13="","",COUNTIF($EH$7:$EH$26,">"&EH13)+COUNTIF($EH$6:EH12,EH13)) -> 11 | EJ13: 3 | EL13: 7 | EM13: =COUNTIF($EU$7:$FU$14,"7") -> 7 | EN13: =IF(EM13="","",COUNTIF($EM$7:$EM$26,">"&EM13)+COUNTIF($EM$6:EM12,EM13)) -> 11 | EO13: 14 | ET13: 7 | EU13: 7 | EV13: 5 | EW13: 13 | EX13: 10 | EY13: 6 | EZ13: 3 | FA13: 2 | FB13: 8 | FC13: 6 | FD13: 5 | FE13: 5 | FF13: 3 | FG13: 3 | FH13: 5 | FI13: 9 | FJ13: 14 | FK13: 8 | FL13: 5 | FM13: 15 | FN13: 10 | FO13: 1 | FP13: =#REF! ->  | FQ13: 1 | FR13: 6 | FS13: 9 | FT13: 11 | FU13: 12
A14: 8 | B14: =' Musique'!A10 -> 8 | C14: ='Points Vic '!AL11 -> 57.57025919 | D14: =IF(C14="","",COUNTIF($C$7:$C$26,">"&C14)+COUNTIF($C$6:C13,C14)) -> 8 | E14: 4 | F14: 8 | G14: =' Musique'!AJ10 -> 2.867441756 | H14: =IF(G14="","",IF(G14=0,COUNTIF(G$7:G$26,">0")+COUNTIF(G$6:G13,0),COUNTIF($G$7:$G$26,"<"&G14)+COUNTIF($G$6:G13,G14)-COUNTIF(G$6:G$26,0))) -> 7 | I14: 8 | J14: 8 | K14: =' Musique'!AK10 -> 1.247219129 | L14: =IF(K14="","",IF(K14=0,COUNTIF(K$7:K$26,">0")+COUNTIF(K$6:K13,0),COUNTIF($K$7:$K$26,"<"&K14)+COUNTIF($K$6:K13,K14)-COUNTIF(K$6:K$26,0))) -> 2 | M14: 9 | N14: 8 | O14: =' Musique'!AO10 -> -0.1798669059 | P14: =IF(O14="","",COUNTIF($O$7:$O$26,">"&O14)+COUNTIF($O$6:O13,O14)) -> 11 | Q14: 13 | R14: 8 | S14: =' Musique'!AQ10 -> 40.96345365 | T14: =IF(S14="","",COUNTIF($S$7:$S$26,">"&S14)+COUNTIF($S$6:S13,S14)) -> 5 | U14: 3 | V14: 8 | W14: =' Musique'!AR10 -> 1.545454545 | X14: =IF(W14="","",COUNTIF($W$7:$W$26,">"&W14)+COUNTIF($W$6:W13,W14)) -> 7 | Y14: 8 | Z14: 8 | AA14: =' Musique'!AS10 -> 14 | AB14: =IF(AA14="","",COUNTIF($AA$7:$AA$26,">"&AA14)+COUNTIF($AA$6:AA13,AA14)) -> 3 | AC14: 13 | AD14: 8 | AE14: =' Musique'!AT10 -> 4.6 | AF14: =IF(AE14="","",IF(AE14=0,COUNTIF(AE$7:AE$26,">0")+COUNTIF(AE$6:AE13,0),COUNTIF($AE$7:$AE$26,"<"&AE14)+COUNTIF($AE$6:AE13,AE14)-COUNTIF(AE$6:AE$26,0))) -> 6 | AG14: 3 | AH14: 8 | AI14: =' Musique'!AU10 -> 64.4 | AJ14: =IF(AI14="","",COUNTIF($AI$7:$AI$26,">"&AI14)+COUNTIF($AI$6:AI13,AI14)) -> 1 | AK14: 1 | AL14: 8 | AM14: =' Musique'!AV10 -> 3.043478261 | AN14: =IF(AM14="","",COUNTIF($AM$7:$AM$26,">"&AM14)+COUNTIF($AM$6:AM13,AM14)) -> 4 | AO14: 3 | AP14: 8 | AQ14: =' Musique'!AW10 -> 22.5 | AR14: =IF(AQ14="","",COUNTIF($AQ$7:$AQ$26,">"&AQ14)+COUNTIF($AQ$6:AQ13,AQ14)) -> 5 | AS14: 3 | AT14: 8 | AU14: =' Musique'!AX10 -> 4.666666667 | AV14: =IF(AU14="","",IF(AU14=0,COUNTIF(AU$7:AU$26,">0")+COUNTIF(AU$6:AU13,0),COUNTIF($AU$7:$AU$26,"<"&AU14)+COUNTIF($AU$6:AU13,AU14)-COUNTIF(AU$6:AU$26,0))) -> 7 | AW14: 8 | AX14: 8 | AY14: =' Musique'!AZ10 -> 105 | AZ14: =IF(AY14="","",COUNTIF($AY$7:$AY$26,">"&AY14)+COUNTIF($AY$6:AY13,AY14)) -> 1 | BA14: 6 | BB14: 8 | BC14: =' Musique'!AV10 -> 3.043478261 | BD14: =IF(BC14="","",COUNTIF($BC$7:$BC$26,">"&BC14)+COUNTIF($BC$6:BC13,BC14)) -> 4 | BE14: 3 | BF14: 8 | BG14: =' Musique'!BM10 -> -0.4666666667 | BH14: =IF(BG14="","",IF(BG14=0,COUNTIF(BG$7:BG$26,">0")+COUNTIF(BG$6:BG13,0),COUNTIF($BG$7:$BG$26,"<"&BG14)+COUNTIF($BG$6:BG13,BG14)-COUNTIF(BG$6:BG$26,0))) -> 1 | BI14: 3 | BJ14: 8 | BK14: =' Musique'!BJ10 -> 6.935420099 | BL14: =IF(BK14="","",COUNTIF($BK$7:$BK$26,">"&BK14)+COUNTIF($BK$6:BK13,BK14)) -> 5 | BM14: 2 | BN14: 8 | BO14: =' Musique'!BK10 -> 4.301162634 | BP14: =IF(BO14="","",IF(BO14=0,COUNTIF(BO$7:BO$26,">0")+COUNTIF(BO$6:BO13,0),COUNTIF($BO$7:$BO$26,"<"&BO14)+COUNTIF($BO$6:BO13,BO14)-COUNTIF(BO$6:BO$26,0))) -> 6 | BQ14: 15 | BR14: 8 | BS14: =' Musique'!BE10 -> 3.700775089 | BT14: =IF(BS14="","",COUNTIF($BS$7:$BS$26,">"&BS14)+COUNTIF($BS$6:BS13,BS14)) -> 7 | BU14: 8 | BV14: 8 | BW14: =' Musique'!BP10 -> 0.8838550247 | BX14: =IF(BW14="","",COUNTIF($BW$7:$BW$26,">"&BW14)+COUNTIF($BW$6:BW13,BW14)) -> 9 | BY14: 3 | BZ14: 8 | CA14: =' Musique'!AL10 -> 0.3333333333 | CB14: =IF(CA14="","",COUNTIF($CA$7:$CA$26,">"&CA14)+COUNTIF($CA$6:CA13,CA14)) -> 11 | CC14: 13 | CD14: 8 | CE14: =' Musique'!BB10 -> 2.767710049 | CF14: =IF(CE14="","",IF(CE14=0,COUNTIF(CE$7:CE$26,">0")+COUNTIF(CE$6:CE13,0),COUNTIF($CE$7:$CE$26,"<"&CE14)+COUNTIF($CE$6:CE13,CE14)-COUNTIF(CE$6:CE$26,0))) -> 9 | CG14: 14 | CH14: 8 | CI14: =' Musique'!BH10 -> 2.775581317 | CJ14: =IF(CI14="","",COUNTIF($CI$7:$CI$26,">"&CI14)+COUNTIF($CI$6:CI13,CI14)) -> 8 | CK14: 11 | CL14: 8 | CM14: =' Musique'!BN10 -> 0 | CN14: =IF(CM14="","",COUNTIF($CM$7:$CM$26,">"&CM14)+COUNTIF($CM$6:CM13,CM14)) -> 11 | CO14: 7 | CP14: 8 | CQ14: =AGC!AP11 -> 40 | CR14: =IF(CQ14="","",COUNTIF($CQ$7:$CQ$26,">"&CQ14)+COUNTIF($CQ$6:CQ13,CQ14)) -> 9 | CS14: 1 | CT14: 8 | CU14: =AGC!AQ11 -> 3460 | CV14: =IF(CU14="","",COUNTIF($CU$7:$CU$26,">"&CU14)+COUNTIF($CU$6:CU13,CU14)) -> 8 | CW14: 13 | CX14: 8 | CY14: =AGC!AN11 -> 100 | CZ14: =IF(CY14="","",COUNTIF($CY$7:$CY$26,">"&CY14)+COUNTIF($CY$6:CY13,CY14)) -> 5 | DA14: 1 | DH14: =' Musique'!A10 -> 8 | DI14: =COUNTIF($EU$7:$FU$8,"8") -> 3 | DJ14: =IF(DI14="","",COUNTIF($DI$7:$DI$26,">"&DI14)+COUNTIF($DI$6:DI13,DI14)) -> 7 | DK14: 8 | DM14: 8 | DN14: =COUNTIF($EU$7:$FU$9,"8") -> 4 | DO14: =IF(DN14="","",COUNTIF($DN$7:$DN$26,">"&DN14)+COUNTIF($DN$6:DN13,DN14)) -> 7 | DP14: 8 | DR14: 8 | DS14: =COUNTIF($EU$7:$FU$10,"8") -> 5 | DT14: =IF(DS14="","",COUNTIF($DS$7:$DS$26,">"&DS14)+COUNTIF($DS$6:DS13,DS14)) -> 8 | DU14: 13 | DW14: 8 | DX14: =COUNTIF($EU$7:$FU$11,"8") -> 7 | DY14: =IF(DX14="","",COUNTIF($DX$7:$DX$26,">"&DX14)+COUNTIF($DX$6:DX13,DX14)) -> 8 | DZ14: 5 | EB14: 8 | EC14: =COUNTIF($EU$7:$FU$12,"8") -> 11 | ED14: =IF(EC14="","",COUNTIF($EC$7:$EC$26,">"&EC14)+COUNTIF($EC$6:EC13,EC14)) -> 6 | EE14: 3 | EG14: 8 | EH14: =COUNTIF($EU$7:$FU$13,"8") -> 13 | EI14: =IF(EH14="","",COUNTIF($EH$7:$EH$26,">"&EH14)+COUNTIF($EH$6:EH13,EH14)) -> 7 | EJ14: 8 | EL14: 8 | EM14: =COUNTIF($EU$7:$FU$14,"8") -> 17 | EN14: =IF(EM14="","",COUNTIF($EM$7:$EM$26,">"&EM14)+COUNTIF($EM$6:EM13,EM14)) -> 7 | EO14: 8 | ET14: 8 | EU14: 4 | EV14: 8 | EW14: 9 | EX14: 13 | EY14: 3 | EZ14: 8 | FA14: 13 | FB14: 3 | FC14: 1 | FD14: 3 | FE14: 3 | FF14: 8 | FG14: 6 | FH14: 3 | FI14: 3 | FJ14: 2 | FK14: 15 | FL14: 8 | FM14: 3 | FN14: 13 | FO14: 14 | FP14: =#REF! ->  | FQ14: 11 | FR14: 7 | FS14: 1 | FT14: 13 | FU14: 1
A15: 9 | B15: =' Musique'!A11 -> 9 | C15: ='Points Vic '!AL12 -> 103.4046472 | D15: =IF(C15="","",COUNTIF($C$7:$C$26,">"&C15)+COUNTIF($C$6:C14,C15)) -> 2 | E15: 8 | F15: 9 | G15: =' Musique'!AJ11 -> 2.494438258 | H15: =IF(G15="","",IF(G15=0,COUNTIF(G$7:G$26,">0")+COUNTIF(G$6:G14,0),COUNTIF($G$7:$G$26,"<"&G15)+COUNTIF($G$6:G14,G15)-COUNTIF(G$6:G$26,0))) -> 1 | I15: 10 | J15: 9 | K15: =' Musique'!AK11 -> 2.624669291 | L15: =IF(K15="","",IF(K15=0,COUNTIF(K$7:K$26,">0")+COUNTIF(K$6:K14,0),COUNTIF($K$7:$K$26,"<"&K15)+COUNTIF($K$6:K14,K15)-COUNTIF(K$6:K$26,0))) -> 7 | M15: 15 | N15: 9 | O15: =' Musique'!AO11 -> -0.1798669059 | P15: =IF(O15="","",COUNTIF($O$7:$O$26,">"&O15)+COUNTIF($O$6:O14,O15)) -> 12 | Q15: 14 | R15: 9 | S15: =' Musique'!AQ11 -> 33.25917677 | T15: =IF(S15="","",COUNTIF($S$7:$S$26,">"&S15)+COUNTIF($S$6:S14,S15)) -> 9 | U15: 7 | V15: 9 | W15: =' Musique'!AR11 -> 1.5 | X15: =IF(W15="","",COUNTIF($W$7:$W$26,">"&W15)+COUNTIF($W$6:W14,W15)) -> 9 | Y15: 6 | Z15: 9 | AA15: =' Musique'!AS11 -> 8 | AB15: =IF(AA15="","",COUNTIF($AA$7:$AA$26,">"&AA15)+COUNTIF($AA$6:AA14,AA15)) -> 11 | AC15: 5 | AD15: 9 | AE15: =' Musique'!AT11 -> 5.4 | AF15: =IF(AE15="","",IF(AE15=0,COUNTIF(AE$7:AE$26,">0")+COUNTIF(AE$6:AE14,0),COUNTIF($AE$7:$AE$26,"<"&AE15)+COUNTIF($AE$6:AE14,AE15)-COUNTIF(AE$6:AE$26,0))) -> 9 | AG15: 6 | AH15: 9 | AI15: =' Musique'!AU11 -> 43.2 | AJ15: =IF(AI15="","",COUNTIF($AI$7:$AI$26,">"&AI15)+COUNTIF($AI$6:AI14,AI15)) -> 8 | AK15: 9 | AL15: 9 | AM15: =' Musique'!AV11 -> 1.481481481 | AN15: =IF(AM15="","",COUNTIF($AM$7:$AM$26,">"&AM15)+COUNTIF($AM$6:AM14,AM15)) -> 10 | AO15: 2 | AP15: 9 | AQ15: =' Musique'!AW11 -> 17.83333333 | AR15: =IF(AQ15="","",COUNTIF($AQ$7:$AQ$26,">"&AQ15)+COUNTIF($AQ$6:AQ14,AQ15)) -> 10 | AS15: 2 | AT15: 9 | AU15: =' Musique'!AX11 -> 5 | AV15: =IF(AU15="","",IF(AU15=0,COUNTIF(AU$7:AU$26,">0")+COUNTIF(AU$6:AU14,0),COUNTIF($AU$7:$AU$26,"<"&AU15)+COUNTIF($AU$6:AU14,AU15)-COUNTIF(AU$6:AU$26,0))) -> 9 | AW15: 6 | AX15: 9 | AY15: =' Musique'!AZ11 -> 89.16666667 | AZ15: =IF(AY15="","",COUNTIF($AY$7:$AY$26,">"&AY15)+COUNTIF($AY$6:AY14,AY15)) -> 10 | BA15: 10 | BB15: 9 | BC15: =' Musique'!AV11 -> 1.481481481 | BD15: =IF(BC15="","",COUNTIF($BC$7:$BC$26,">"&BC15)+COUNTIF($BC$6:BC14,BC15)) -> 10 | BE15: 2 | BF15: 9 | BG15: =' Musique'!BM11 -> 1.4 | BH15: =IF(BG15="","",IF(BG15=0,COUNTIF(BG$7:BG$26,">0")+COUNTIF(BG$6:BG14,0),COUNTIF($BG$7:$BG$26,"<"&BG15)+COUNTIF($BG$6:BG14,BG15)-COUNTIF(BG$6:BG$26,0))) -> 6 | BI15: 12 | BJ15: 9 | BK15: =' Musique'!BJ11 -> 9.025862069 | BL15: =IF(BK15="","",COUNTIF($BK$7:$BK$26,">"&BK15)+COUNTIF($BK$6:BK14,BK15)) -> 3 | BM15: 6 | BN15: 9 | BO15: =' Musique'!BK11 -> 3.741657387 | BP15: =IF(BO15="","",IF(BO15=0,COUNTIF(BO$7:BO$26,">0")+COUNTIF(BO$6:BO14,0),COUNTIF($BO$7:$BO$26,"<"&BO15)+COUNTIF($BO$6:BO14,BO15)-COUNTIF(BO$6:BO$26,0))) -> 3 | BQ15: 7 | BR15: 9 | BS15: =' Musique'!BE11 -> 3.327771591 | BT15: =IF(BS15="","",COUNTIF($BS$7:$BS$26,">"&BS15)+COUNTIF($BS$6:BS14,BS15)) -> 11 | BU15: 4 | BV15: 9 | BW15: =' Musique'!BP11 -> 1.064516129 | BX15: =IF(BW15="","",COUNTIF($BW$7:$BW$26,">"&BW15)+COUNTIF($BW$6:BW14,BW15)) -> 8 | BY15: 9 | BZ15: 9 | CA15: =' Musique'!AL11 -> 0.3333333333 | CB15: =IF(CA15="","",COUNTIF($CA$7:$CA$26,">"&CA15)+COUNTIF($CA$6:CA14,CA15)) -> 12 | CC15: 14 | CD15: 9 | CE15: =' Musique'!BB11 -> 3.870967742 | CF15: =IF(CE15="","",IF(CE15=0,COUNTIF(CE$7:CE$26,">0")+COUNTIF(CE$6:CE14,0),COUNTIF($CE$7:$CE$26,"<"&CE15)+COUNTIF($CE$6:CE14,CE15)-COUNTIF(CE$6:CE$26,0))) -> 12 | CG15: 6 | CH15: 9 | CI15: =' Musique'!BH11 -> 2.495828693 | CJ15: =IF(CI15="","",COUNTIF($CI$7:$CI$26,">"&CI15)+COUNTIF($CI$6:CI14,CI15)) -> 10 | CK15: 8 | CL15: 9 | CM15: =' Musique'!BN11 -> 0 | CN15: =IF(CM15="","",COUNTIF($CM$7:$CM$26,">"&CM15)+COUNTIF($CM$6:CM14,CM15)) -> 12 | CO15: 13 | CP15: 9 | CQ15: =AGC!AP12 -> 46.15384615 | CR15: =IF(CQ15="","",COUNTIF($CQ$7:$CQ$26,">"&CQ15)+COUNTIF($CQ$6:CQ14,CQ15)) -> 6 | CS15: 2 | CT15: 9 | CU15: =AGC!AQ12 -> 2766.538462 | CV15: =IF(CU15="","",COUNTIF($CU$7:$CU$26,">"&CU15)+COUNTIF($CU$6:CU14,CU15)) -> 12 | CW15: 8 | CX15: 9 | CY15: =AGC!AN12 -> 0 | CZ15: =IF(CY15="","",COUNTIF($CY$7:$CY$26,">"&CY15)+COUNTIF($CY$6:CY14,CY15)) -> 13 | DA15: 2 | DH15: =' Musique'!A11 -> 9 | DI15: =COUNTIF($EU$7:$FU$8,"9") -> 1 | DJ15: =IF(DI15="","",COUNTIF($DI$7:$DI$26,">"&DI15)+COUNTIF($DI$6:DI14,DI15)) -> 9 | DK15: 7 | DM15: 9 | DN15: =COUNTIF($EU$7:$FU$9,"9") -> 2 | DO15: =IF(DN15="","",COUNTIF($DN$7:$DN$26,">"&DN15)+COUNTIF($DN$6:DN14,DN15)) -> 10 | DP15: 14 | DR15: 9 | DS15: =COUNTIF($EU$7:$FU$10,"9") -> 4 | DT15: =IF(DS15="","",COUNTIF($DS$7:$DS$26,">"&DS15)+COUNTIF($DS$6:DS14,DS15)) -> 9 | DU15: 8 | DW15: 9 | DX15: =COUNTIF($EU$7:$FU$11,"9") -> 4 | DY15: =IF(DX15="","",COUNTIF($DX$7:$DX$26,">"&DX15)+COUNTIF($DX$6:DX14,DX15)) -> 11 | DZ15: 8 | EB15: 9 | EC15: =COUNTIF($EU$7:$FU$12,"9") -> 4 | ED15: =IF(EC15="","",COUNTIF($EC$7:$EC$26,">"&EC15)+COUNTIF($EC$6:EC14,EC15)) -> 12 | EE15: 4 | EG15: 9 | EH15: =COUNTIF($EU$7:$FU$13,"9") -> 6 | EI15: =IF(EH15="","",COUNTIF($EH$7:$EH$26,">"&EH15)+COUNTIF($EH$6:EH14,EH15)) -> 12 | EJ15: 2 | EL15: 9 | EM15: =COUNTIF($EU$7:$FU$14,"9") -> 7 | EN15: =IF(EM15="","",COUNTIF($EM$7:$EM$26,">"&EM15)+COUNTIF($EM$6:EM14,EM15)) -> 12 | EO15: 2
A16: 10 | B16: =' Musique'!A12 -> 10 | C16: ='Points Vic '!AL13 -> 83.44202688 | D16: =IF(C16="","",COUNTIF($C$7:$C$26,">"&C16)+COUNTIF($C$6:C15,C16)) -> 4 | E16: 3 | F16: 10 | G16: =' Musique'!AJ12 -> 3.091206165 | H16: =IF(G16="","",IF(G16=0,COUNTIF(G$7:G$26,">0")+COUNTIF(G$6:G15,0),COUNTIF($G$7:$G$26,"<"&G16)+COUNTIF($G$6:G15,G16)-COUNTIF(G$6:G$26,0))) -> 8 | I16: 3 | J16: 10 | K16: =' Musique'!AK12 -> 3.299831646 | L16: =IF(K16="","",IF(K16=0,COUNTIF(K$7:K$26,">0")+COUNTIF(K$6:K15,0),COUNTIF($K$7:$K$26,"<"&K16)+COUNTIF($K$6:K15,K16)-COUNTIF(K$6:K$26,0))) -> 10 | M16: 7 | N16: 10 | O16: =' Musique'!AO12 -> 0.4438137822 | P16: =IF(O16="","",COUNTIF($O$7:$O$26,">"&O16)+COUNTIF($O$6:O15,O16)) -> 6 | Q16: 2 | R16: 10 | S16: =' Musique'!AQ12 -> 44.16008807 | T16: =IF(S16="","",COUNTIF($S$7:$S$26,">"&S16)+COUNTIF($S$6:S15,S16)) -> 3 | U16: 9 | V16: 10 | W16: =' Musique'!AR12 -> 1.8 | X16: =IF(W16="","",COUNTIF($W$7:$W$26,">"&W16)+COUNTIF($W$6:W15,W16)) -> 1 | Y16: 9 | Z16: 10 | AA16: =' Musique'!AS12 -> 14.33333333 | AB16: =IF(AA16="","",COUNTIF($AA$7:$AA$26,">"&AA16)+COUNTIF($AA$6:AA15,AA16)) -> 2 | AC16: 6 | AD16: 10 | AE16: =' Musique'!AT12 -> 3.4 | AF16: =IF(AE16="","",IF(AE16=0,COUNTIF(AE$7:AE$26,">0")+COUNTIF(AE$6:AE15,0),COUNTIF($AE$7:$AE$26,"<"&AE16)+COUNTIF($AE$6:AE15,AE16)-COUNTIF(AE$6:AE$26,0))) -> 2 | AG16: 9 | AH16: 10 | AI16: =' Musique'!AU12 -> 48.73333333 | AJ16: =IF(AI16="","",COUNTIF($AI$7:$AI$26,">"&AI16)+COUNTIF($AI$6:AI15,AI16)) -> 5 | AK16: 13 | AL16: 10 | AM16: =' Musique'!AV12 -> 4.215686275 | AN16: =IF(AM16="","",COUNTIF($AM$7:$AM$26,">"&AM16)+COUNTIF($AM$6:AM15,AM16)) -> 2 | AO16: 6 | AP16: 10 | AQ16: =' Musique'!AW12 -> 26.33333333 | AR16: =IF(AQ16="","",COUNTIF($AQ$7:$AQ$26,">"&AQ16)+COUNTIF($AQ$6:AQ15,AQ16)) -> 2 | AS16: 6 | AT16: 10 | AU16: =' Musique'!AX12 -> 3.5 | AV16: =IF(AU16="","",IF(AU16=0,COUNTIF(AU$7:AU$26,">0")+COUNTIF(AU$6:AU15,0),COUNTIF($AU$7:$AU$26,"<"&AU16)+COUNTIF($AU$6:AU15,AU16)-COUNTIF(AU$6:AU$26,0))) -> 1 | AW16: 9 | AX16: 10 | AY16: =' Musique'!AZ12 -> 92.16666667 | AZ16: =IF(AY16="","",COUNTIF($AY$7:$AY$26,">"&AY16)+COUNTIF($AY$6:AY15,AY16)) -> 8 | BA16: 11 | BB16: 10 | BC16: =' Musique'!AV12 -> 4.215686275 | BD16: =IF(BC16="","",COUNTIF($BC$7:$BC$26,">"&BC16)+COUNTIF($BC$6:BC15,BC16)) -> 2 | BE16: 6 | BF16: 10 | BG16: =' Musique'!BM12 -> 0.4 | BH16: =IF(BG16="","",IF(BG16=0,COUNTIF(BG$7:BG$26,">0")+COUNTIF(BG$6:BG15,0),COUNTIF($BG$7:$BG$26,"<"&BG16)+COUNTIF($BG$6:BG15,BG16)-COUNTIF(BG$6:BG$26,0))) -> 4 | BI16: 6 | BJ16: 10 | BK16: =' Musique'!BJ12 -> 5.652439024 | BL16: =IF(BK16="","",COUNTIF($BK$7:$BK$26,">"&BK16)+COUNTIF($BK$6:BK15,BK16)) -> 10 | BM16: 1 | BN16: 10 | BO16: =' Musique'!BK12 -> 3.709447398 | BP16: =IF(BO16="","",IF(BO16=0,COUNTIF(BO$7:BO$26,">0")+COUNTIF(BO$6:BO15,0),COUNTIF($BO$7:$BO$26,"<"&BO16)+COUNTIF($BO$6:BO15,BO16)-COUNTIF(BO$6:BO$26,0))) -> 2 | BQ16: 4 | BR16: 10 | BS16: =' Musique'!BE12 -> 3.924539498 | BT16: =IF(BS16="","",COUNTIF($BS$7:$BS$26,">"&BS16)+COUNTIF($BS$6:BS15,BS16)) -> 5 | BU16: 7 | BV16: 10 | BW16: =' Musique'!BP12 -> 0.0243902439 | BX16: =IF(BW16="","",COUNTIF($BW$7:$BW$26,">"&BW16)+COUNTIF($BW$6:BW15,BW16)) -> 14 | BY16: 8 | BZ16: 10 | CA16: =' Musique'!AL12 -> 0.5 | CB16: =IF(CA16="","",COUNTIF($CA$7:$CA$26,">"&CA16)+COUNTIF($CA$6:CA15,CA16)) -> 6 | CC16: 2 | CD16: 10 | CE16: =' Musique'!BB12 -> 1.951219512 | CF16: =IF(CE16="","",IF(CE16=0,COUNTIF(CE$7:CE$26,">0")+COUNTIF(CE$6:CE15,0),COUNTIF($CE$7:$CE$26,"<"&CE16)+COUNTIF($CE$6:CE15,CE16)-COUNTIF(CE$6:CE$26,0))) -> 1 | CG16: 8 | CH16: 10 | CI16: =' Musique'!BH12 -> 3.924539498 | CJ16: =IF(CI16="","",COUNTIF($CI$7:$CI$26,">"&CI16)+COUNTIF($CI$6:CI15,CI16)) -> 3 | CK16: 7 | CL16: 10 | CM16: =' Musique'!BN12 -> 33.33333333 | CN16: =IF(CM16="","",COUNTIF($CM$7:$CM$26,">"&CM16)+COUNTIF($CM$6:CM15,CM16)) -> 2 | CO16: 14 | CP16: 10 | CQ16: =AGC!AP13 -> 50 | CR16: =IF(CQ16="","",COUNTIF($CQ$7:$CQ$26,">"&CQ16)+COUNTIF($CQ$6:CQ15,CQ16)) -> 5 | CS16: 8 | CT16: 10 | CU16: =AGC!AQ13 -> 4810 | CV16: =IF(CU16="","",COUNTIF($CU$7:$CU$26,">"&CU16)+COUNTIF($CU$6:CU15,CU16)) -> 1 | CW16: 4 | CX16: 10 | CY16: =AGC!AN13 -> 300 | CZ16: =IF(CY16="","",COUNTIF($CY$7:$CY$26,">"&CY16)+COUNTIF($CY$6:CY15,CY16)) -> 0 | DA16: 6 | DH16: =' Musique'!A12 -> 10 | DI16: =COUNTIF($EU$7:$FU$8,"10") -> 5 | DJ16: =IF(DI16="","",COUNTIF($DI$7:$DI$26,">"&DI16)+COUNTIF($DI$6:DI15,DI16)) -> 2 | DK16: 9 | DM16: 10 | DN16: =COUNTIF($EU$7:$FU$9,"10") -> 12 | DO16: =IF(DN16="","",COUNTIF($DN$7:$DN$26,">"&DN16)+COUNTIF($DN$6:DN15,DN16)) -> 2 | DP16: 6 | DR16: 10 | DS16: =COUNTIF($EU$7:$FU$10,"10") -> 14 | DT16: =IF(DS16="","",COUNTIF($DS$7:$DS$26,">"&DS16)+COUNTIF($DS$6:DS15,DS16)) -> 2 | DU16: 9 | DW16: 10 | DX16: =COUNTIF($EU$7:$FU$11,"10") -> 16 | DY16: =IF(DX16="","",COUNTIF($DX$7:$DX$26,">"&DX16)+COUNTIF($DX$6:DX15,DX16)) -> 2 | DZ16: 4 | EB16: 10 | EC16: =COUNTIF($EU$7:$FU$12,"10") -> 19 | ED16: =IF(EC16="","",COUNTIF($EC$7:$EC$26,">"&EC16)+COUNTIF($EC$6:EC15,EC16)) -> 0 | EE16: 2 | EG16: 10 | EH16: =COUNTIF($EU$7:$FU$13,"10") -> 21 | EI16: =IF(EH16="","",COUNTIF($EH$7:$EH$26,">"&EH16)+COUNTIF($EH$6:EH15,EH16)) -> 0 | EJ16: 4 | EL16: 10 | EM16: =COUNTIF($EU$7:$FU$14,"10") -> 21 | EN16: =IF(EM16="","",COUNTIF($EM$7:$EM$26,">"&EM16)+COUNTIF($EM$6:EM15,EM16)) -> 1 | EO16: 4
A17: 11 | B17: =' Musique'!A13 -> 11 | C17: ='Points Vic '!AL14 -> 273.5829808 | D17: =IF(C17="","",COUNTIF($C$7:$C$26,">"&C17)+COUNTIF($C$6:C16,C17)) -> 1 | E17: 15 | F17: 11 | G17: =' Musique'!AJ13 -> 0.9428090416 | H17: =IF(G17="","",IF(G17=0,COUNTIF(G$7:G$26,">0")+COUNTIF(G$6:G16,0),COUNTIF($G$7:$G$26,"<"&G17)+COUNTIF($G$6:G16,G17)-COUNTIF(G$6:G$26,0))) -> 0 | I17: 14 | J17: 11 | K17: =' Musique'!AK13 -> 0.9428090416 | L17: =IF(K17="","",IF(K17=0,COUNTIF(K$7:K$26,">0")+COUNTIF(K$6:K16,0),COUNTIF($K$7:$K$26,"<"&K17)+COUNTIF($K$6:K16,K17)-COUNTIF(K$6:K$26,0))) -> 1 | M17: 10 | N17: 11 | O17: =' Musique'!AO13 -> 1.205033274 | P17: =IF(O17="","",COUNTIF($O$7:$O$26,">"&O17)+COUNTIF($O$6:O16,O17)) -> 1 | Q17: 7 | R17: 11 | S17: =' Musique'!AQ13 -> 11.09187108 | T17: =IF(S17="","",COUNTIF($S$7:$S$26,">"&S17)+COUNTIF($S$6:S16,S17)) -> 13 | U17: 1 | V17: 11 | W17: =' Musique'!AR13 -> 2.090909091 | X17: =IF(W17="","",COUNTIF($W$7:$W$26,">"&W17)+COUNTIF($W$6:W16,W17)) -> 0 | Y17: 2 | Z17: 11 | AA17: =' Musique'!AS13 -> 19.33333333 | AB17: =IF(AA17="","",COUNTIF($AA$7:$AA$26,">"&AA17)+COUNTIF($AA$6:AA16,AA17)) -> 0 | AC17: 4 | AD17: 11 | AE17: =' Musique'!AT13 -> 2 | AF17: =IF(AE17="","",IF(AE17=0,COUNTIF(AE$7:AE$26,">0")+COUNTIF(AE$6:AE16,0),COUNTIF($AE$7:$AE$26,"<"&AE17)+COUNTIF($AE$6:AE16,AE17)-COUNTIF(AE$6:AE$26,0))) -> 0 | AG17: 2 | AH17: 11 | AI17: =' Musique'!AU13 -> 38.66666667 | AJ17: =IF(AI17="","",COUNTIF($AI$7:$AI$26,">"&AI17)+COUNTIF($AI$6:AI16,AI17)) -> 12 | AK17: 7 | AL17: 11 | AM17: =' Musique'!AV13 -> 9.666666667 | AN17: =IF(AM17="","",COUNTIF($AM$7:$AM$26,">"&AM17)+COUNTIF($AM$6:AM16,AM17)) -> 0 | AO17: 9 | AP17: 11 | AQ17: =' Musique'!AW13 -> 31.66666667 | AR17: =IF(AQ17="","",COUNTIF($AQ$7:$AQ$26,">"&AQ17)+COUNTIF($AQ$6:AQ16,AQ17)) -> 0 | AS17: 9 | AT17: 11 | AU17: =' Musique'!AX13 -> 2.833333333 | AV17: =IF(AU17="","",IF(AU17=0,COUNTIF(AU$7:AU$26,">0")+COUNTIF(AU$6:AU16,0),COUNTIF($AU$7:$AU$26,"<"&AU17)+COUNTIF($AU$6:AU16,AU17)-COUNTIF(AU$6:AU$26,0))) -> 0 | AW17: 15 | AX17: 11 | AY17: =' Musique'!AZ13 -> 89.72222222 | AZ17: =IF(AY17="","",COUNTIF($AY$7:$AY$26,">"&AY17)+COUNTIF($AY$6:AY16,AY17)) -> 9 | BA17: 9 | BB17: 11 | BC17: =' Musique'!AV13 -> 9.666666667 | BD17: =IF(BC17="","",COUNTIF($BC$7:$BC$26,">"&BC17)+COUNTIF($BC$6:BC16,BC17)) -> 0 | BE17: 9 | BF17: 11 | BG17: =' Musique'!BM13 -> 0.2666666667 | BH17: =IF(BG17="","",IF(BG17=0,COUNTIF(BG$7:BG$26,">0")+COUNTIF(BG$6:BG16,0),COUNTIF($BG$7:$BG$26,"<"&BG17)+COUNTIF($BG$6:BG16,BG17)-COUNTIF(BG$6:BG$26,0))) -> 3 | BI17: 4 | BJ17: 11 | BK17: =' Musique'!BJ13 -> 4.696637761 | BL17: =IF(BK17="","",COUNTIF($BK$7:$BK$26,">"&BK17)+COUNTIF($BK$6:BK16,BK17)) -> 14 | BM17: 10 | BN17: 11 | BO17: =' Musique'!BK13 -> 1.13137085 | BP17: =IF(BO17="","",IF(BO17=0,COUNTIF(BO$7:BO$26,">0")+COUNTIF(BO$6:BO16,0),COUNTIF($BO$7:$BO$26,"<"&BO17)+COUNTIF($BO$6:BO16,BO17)-COUNTIF(BO$6:BO$26,0))) -> 0 | BQ17: 6 | BR17: 11 | BS17: =' Musique'!BE13 -> 1.942809042 | BT17: =IF(BS17="","",COUNTIF($BS$7:$BS$26,">"&BS17)+COUNTIF($BS$6:BS16,BS17)) -> 13 | BU17: 1 | BV17: 11 | BW17: =' Musique'!BP13 -> 0.3051118211 | BX17: =IF(BW17="","",COUNTIF($BW$7:$BW$26,">"&BW17)+COUNTIF($BW$6:BW16,BW17)) -> 12 | BY17: 1 | BZ17: 11 | CA17: =' Musique'!AL13 -> 0.6666666667 | CB17: =IF(CA17="","",COUNTIF($CA$7:$CA$26,">"&CA17)+COUNTIF($CA$6:CA16,CA17)) -> 1 | CC17: 7 | CD17: 11 | CE17: =' Musique'!BB13 -> 1.610223642 | CF17: =IF(CE17="","",IF(CE17=0,COUNTIF(CE$7:CE$26,">0")+COUNTIF(CE$6:CE16,0),COUNTIF($CE$7:$CE$26,"<"&CE17)+COUNTIF($CE$6:CE16,CE17)-COUNTIF(CE$6:CE$26,0))) -> 0 | CG17: 7 | CH17: 11 | CI17: =' Musique'!BH13 -> 2.914213562 | CJ17: =IF(CI17="","",COUNTIF($CI$7:$CI$26,">"&CI17)+COUNTIF($CI$6:CI16,CI17)) -> 7 | CK17: 9 | CL17: 11 | CM17: =' Musique'!BN13 -> 33.33333333 | CN17: =IF(CM17="","",COUNTIF($CM$7:$CM$26,">"&CM17)+COUNTIF($CM$6:CM16,CM17)) -> 3 | CO17: 4 | CP17: 11 | CQ17: =AGC!AP14 -> 71.42857143 | CR17: =IF(CQ17="","",COUNTIF($CQ$7:$CQ$26,">"&CQ17)+COUNTIF($CQ$6:CQ16,CQ17)) -> 0 | CS17: 13 | CT17: 11 | CU17: =AGC!AQ14 -> 3685.714286 | CV17: =IF(CU17="","",COUNTIF($CU$7:$CU$26,">"&CU17)+COUNTIF($CU$6:CU16,CU17)) -> 6 | CW17: 6 | CX17: 11 | CY17: =AGC!AN14 -> 150 | CZ17: =IF(CY17="","",COUNTIF($CY$7:$CY$26,">"&CY17)+COUNTIF($CY$6:CY16,CY17)) -> 3 | DA17: 5 | DH17: =' Musique'!A13 -> 11 | DI17: =COUNTIF($EU$7:$FU$8,"11") -> 15 | DJ17: =IF(DI17="","",COUNTIF($DI$7:$DI$26,">"&DI17)+COUNTIF($DI$6:DI16,DI17)) -> 0 | DK17: 12 | DM17: 11 | DN17: =COUNTIF($EU$7:$FU$9,"11") -> 15 | DO17: =IF(DN17="","",COUNTIF($DN$7:$DN$26,">"&DN17)+COUNTIF($DN$6:DN16,DN17)) -> 0 | DP17: 9 | DR17: 11 | DS17: =COUNTIF($EU$7:$FU$10,"11") -> 18 | DT17: =IF(DS17="","",COUNTIF($DS$7:$DS$26,">"&DS17)+COUNTIF($DS$6:DS16,DS17)) -> 0 | DU17: 12 | DW17: 11 | DX17: =COUNTIF($EU$7:$FU$11,"11") -> 18 | DY17: =IF(DX17="","",COUNTIF($DX$7:$DX$26,">"&DX17)+COUNTIF($DX$6:DX16,DX17)) -> 0 | DZ17: 7 | EB17: 11 | EC17: =COUNTIF($EU$7:$FU$12,"11") -> 18 | ED17: =IF(EC17="","",COUNTIF($EC$7:$EC$26,">"&EC17)+COUNTIF($EC$6:EC16,EC17)) -> 1 | EE17: 6 | EG17: 11 | EH17: =COUNTIF($EU$7:$FU$13,"11") -> 19 | EI17: =IF(EH17="","",COUNTIF($EH$7:$EH$26,">"&EH17)+COUNTIF($EH$6:EH16,EH17)) -> 2 | EJ17: 6 | EL17: 11 | EM17: =COUNTIF($EU$7:$FU$14,"11") -> 20 | EN17: =IF(EM17="","",COUNTIF($EM$7:$EM$26,">"&EM17)+COUNTIF($EM$6:EM16,EM17)) -> 3 | EO17: 6
A18: 12 | B18: =' Musique'!A14 -> 12 | C18: ='Points Vic '!AL15 -> 41.26984127 | D18: =IF(C18="","",COUNTIF($C$7:$C$26,">"&C18)+COUNTIF($C$6:C17,C18)) -> 11 | E18: 12 | F18: 12 | G18: =' Musique'!AJ14 -> 0 | H18: =IF(G18="","",IF(G18=0,COUNTIF(G$7:G$26,">0")+COUNTIF(G$6:G17,0),COUNTIF($G$7:$G$26,"<"&G18)+COUNTIF($G$6:G17,G18)-COUNTIF(G$6:G$26,0))) -> 14 | I18: 6 | J18: 12 | K18: =' Musique'!AK14 -> 1.414213562 | L18: =IF(K18="","",IF(K18=0,COUNTIF(K$7:K$26,">0")+COUNTIF(K$6:K17,0),COUNTIF($K$7:$K$26,"<"&K18)+COUNTIF($K$6:K17,K18)-COUNTIF(K$6:K$26,0))) -> 3 | M18: 14 | N18: 12 | O18: =' Musique'!AO14 -> -0.5506048119 | P18: =IF(O18="","",COUNTIF($O$7:$O$26,">"&O18)+COUNTIF($O$6:O17,O18)) -> 14 | Q18: 8 | R18: 12 | S18: =' Musique'!AQ14 -> 0 | T18: =IF(S18="","",COUNTIF($S$7:$S$26,">"&S18)+COUNTIF($S$6:S17,S18)) -> 14 | U18: 4 | V18: 12 | W18: =' Musique'!AR14 -> 1.324324324 | X18: =IF(W18="","",COUNTIF($W$7:$W$26,">"&W18)+COUNTIF($W$6:W17,W18)) -> 14 | Y18: 4 | Z18: 12 | AA18: =' Musique'!AS14 -> 2 | AB18: =IF(AA18="","",COUNTIF($AA$7:$AA$26,">"&AA18)+COUNTIF($AA$6:AA17,AA18)) -> 14 | AC18: 9 | AD18: 12 | AE18: =' Musique'!AT14 -> 8.4 | AF18: =IF(AE18="","",IF(AE18=0,COUNTIF(AE$7:AE$26,">0")+COUNTIF(AE$6:AE17,0),COUNTIF($AE$7:$AE$26,"<"&AE18)+COUNTIF($AE$6:AE17,AE18)-COUNTIF(AE$6:AE$26,0))) -> 14 | AG18: 15 | AH18: 12 | AI18: =' Musique'!AU14 -> 16.8 | AJ18: =IF(AI18="","",COUNTIF($AI$7:$AI$26,">"&AI18)+COUNTIF($AI$6:AI17,AI18)) -> 14 | AK18: 5 | AL18: 12 | AM18: =' Musique'!AV14 -> 0.2380952381 | AN18: =IF(AM18="","",COUNTIF($AM$7:$AM$26,">"&AM18)+COUNTIF($AM$6:AM17,AM18)) -> 14 | AO18: 4 | AP18: 12 | AQ18: =' Musique'!AW14 -> 8.166666667 | AR18: =IF(AQ18="","",COUNTIF($AQ$7:$AQ$26,">"&AQ18)+COUNTIF($AQ$6:AQ17,AQ18)) -> 14 | AS18: 4 | AT18: 12 | AU18: =' Musique'!AX14 -> 7.166666667 | AV18: =IF(AU18="","",IF(AU18=0,COUNTIF(AU$7:AU$26,">0")+COUNTIF(AU$6:AU17,0),COUNTIF($AU$7:$AU$26,"<"&AU18)+COUNTIF($AU$6:AU17,AU18)-COUNTIF(AU$6:AU$26,0))) -> 14 | AW18: 2 | AX18: 12 | AY18: =' Musique'!AZ14 -> 58.52777778 | AZ18: =IF(AY18="","",COUNTIF($AY$7:$AY$26,">"&AY18)+COUNTIF($AY$6:AY17,AY18)) -> 14 | BA18: 5 | BB18: 12 | BC18: =' Musique'!AV14 -> 0.2380952381 | BD18: =IF(BC18="","",COUNTIF($BC$7:$BC$26,">"&BC18)+COUNTIF($BC$6:BC17,BC18)) -> 14 | BE18: 4 | BF18: 12 | BG18: =' Musique'!BM14 -> 2.133333333 | BH18: =IF(BG18="","",IF(BG18=0,COUNTIF(BG$7:BG$26,">0")+COUNTIF(BG$6:BG17,0),COUNTIF($BG$7:$BG$26,"<"&BG18)+COUNTIF($BG$6:BG17,BG18)-COUNTIF(BG$6:BG$26,0))) -> 8 | BI18: 7 | BJ18: 12 | BK18: =' Musique'!BJ14 -> 9.936170213 | BL18: =IF(BK18="","",COUNTIF($BK$7:$BK$26,">"&BK18)+COUNTIF($BK$6:BK17,BK18)) -> 1 | BM18: 3 | BN18: 12 | BO18: =' Musique'!BK14 -> 0 | BP18: =IF(BO18="","",IF(BO18=0,COUNTIF(BO$7:BO$26,">0")+COUNTIF(BO$6:BO17,0),COUNTIF($BO$7:$BO$26,"<"&BO18)+COUNTIF($BO$6:BO17,BO18)-COUNTIF(BO$6:BO$26,0))) -> 14 | BQ18: 13 | BR18: 12 | BS18: =' Musique'!BE14 -> 0.5 | BT18: =IF(BS18="","",COUNTIF($BS$7:$BS$26,">"&BS18)+COUNTIF($BS$6:BS17,BS18)) -> 14 | BU18: 9 | BV18: 12 | BW18: =' Musique'!BP14 -> 3.173913043 | BX18: =IF(BW18="","",COUNTIF($BW$7:$BW$26,">"&BW18)+COUNTIF($BW$6:BW17,BW18)) -> 3 | BY18: 2 | BZ18: 12 | CA18: =' Musique'!AL14 -> 0.1666666667 | CB18: =IF(CA18="","",COUNTIF($CA$7:$CA$26,">"&CA18)+COUNTIF($CA$6:CA17,CA18)) -> 14 | CC18: 8 | CD18: 12 | CE18: =' Musique'!BB14 -> 3.652173913 | CF18: =IF(CE18="","",IF(CE18=0,COUNTIF(CE$7:CE$26,">0")+COUNTIF(CE$6:CE17,0),COUNTIF($CE$7:$CE$26,"<"&CE18)+COUNTIF($CE$6:CE17,CE18)-COUNTIF(CE$6:CE$26,0))) -> 11 | CG18: 12 | CH18: 12 | CI18: =' Musique'!BH14 -> 0.3 | CJ18: =IF(CI18="","",COUNTIF($CI$7:$CI$26,">"&CI18)+COUNTIF($CI$6:CI17,CI18)) -> 12 | CK18: 15 | CL18: 12 | CM18: =' Musique'!BN14 -> 0 | CN18: =IF(CM18="","",COUNTIF($CM$7:$CM$26,">"&CM18)+COUNTIF($CM$6:CM17,CM18)) -> 13 | CO18: 8 | CP18: 12 | CQ18: =AGC!AP15 -> 25 | CR18: =IF(CQ18="","",COUNTIF($CQ$7:$CQ$26,">"&CQ18)+COUNTIF($CQ$6:CQ17,CQ18)) -> 13 | CS18: 7 | CT18: 12 | CU18: =AGC!AQ15 -> 2770.9375 | CV18: =IF(CU18="","",COUNTIF($CU$7:$CU$26,">"&CU18)+COUNTIF($CU$6:CU17,CU18)) -> 11 | CW18: 12 | CX18: 12 | CY18: =AGC!AN15 -> 100 | CZ18: =IF(CY18="","",COUNTIF($CY$7:$CY$26,">"&CY18)+COUNTIF($CY$6:CY17,CY18)) -> 6 | DA18: 14 | DH18: =' Musique'!A14 -> 12 | DI18: =COUNTIF($EU$7:$FU$8,"12") -> 1 | DJ18: =IF(DI18="","",COUNTIF($DI$7:$DI$26,">"&DI18)+COUNTIF($DI$6:DI17,DI18)) -> 10 | DK18: 14 | DM18: 12 | DN18: =COUNTIF($EU$7:$FU$9,"12") -> 1 | DO18: =IF(DN18="","",COUNTIF($DN$7:$DN$26,">"&DN18)+COUNTIF($DN$6:DN17,DN18)) -> 13 | DP18: 4 | DR18: 12 | DS18: =COUNTIF($EU$7:$FU$10,"12") -> 3 | DT18: =IF(DS18="","",COUNTIF($DS$7:$DS$26,">"&DS18)+COUNTIF($DS$6:DS17,DS18)) -> 10 | DU18: 6 | DW18: 12 | DX18: =COUNTIF($EU$7:$FU$11,"12") -> 3 | DY18: =IF(DX18="","",COUNTIF($DX$7:$DX$26,">"&DX18)+COUNTIF($DX$6:DX17,DX18)) -> 13 | DZ18: 9 | EB18: 12 | EC18: =COUNTIF($EU$7:$FU$12,"12") -> 3 | ED18: =IF(EC18="","",COUNTIF($EC$7:$EC$26,">"&EC18)+COUNTIF($EC$6:EC17,EC18)) -> 13 | EE18: 7 | EG18: 12 | EH18: =COUNTIF($EU$7:$FU$13,"12") -> 4 | EI18: =IF(EH18="","",COUNTIF($EH$7:$EH$26,">"&EH18)+COUNTIF($EH$6:EH17,EH18)) -> 13 | EJ18: 7 | EL18: 12 | EM18: =COUNTIF($EU$7:$FU$14,"12") -> 4 | EN18: =IF(EM18="","",COUNTIF($EM$7:$EM$26,">"&EM18)+COUNTIF($EM$6:EM17,EM18)) -> 14 | EO18: 7
A19: 13 | B19: =' Musique'!A15 -> 13 | C19: ='Points Vic '!AL16 -> 38.90957949 | D19: =IF(C19="","",COUNTIF($C$7:$C$26,">"&C19)+COUNTIF($C$6:C18,C19)) -> 14 | E19: 6 | F19: 13 | G19: =' Musique'!AJ15 -> 4.242640687 | H19: =IF(G19="","",IF(G19=0,COUNTIF(G$7:G$26,">0")+COUNTIF(G$6:G18,0),COUNTIF($G$7:$G$26,"<"&G19)+COUNTIF($G$6:G18,G19)-COUNTIF(G$6:G$26,0))) -> 13 | I19: 2 | J19: 13 | K19: =' Musique'!AK15 -> 1.885618083 | L19: =IF(K19="","",IF(K19=0,COUNTIF(K$7:K$26,">0")+COUNTIF(K$6:K18,0),COUNTIF($K$7:$K$26,"<"&K19)+COUNTIF($K$6:K18,K19)-COUNTIF(K$6:K$26,0))) -> 6 | M19: 3 | N19: 13 | O19: =' Musique'!AO15 -> 0.4438137822 | P19: =IF(O19="","",COUNTIF($O$7:$O$26,">"&O19)+COUNTIF($O$6:O18,O19)) -> 7 | Q19: 9 | R19: 13 | S19: =' Musique'!AQ15 -> 48.95354639 | T19: =IF(S19="","",COUNTIF($S$7:$S$26,">"&S19)+COUNTIF($S$6:S18,S19)) -> 1 | U19: 5 | V19: 13 | W19: =' Musique'!AR15 -> 1.6 | X19: =IF(W19="","",COUNTIF($W$7:$W$26,">"&W19)+COUNTIF($W$6:W18,W19)) -> 5 | Y19: 7 | Z19: 13 | AA19: =' Musique'!AS15 -> 11 | AB19: =IF(AA19="","",COUNTIF($AA$7:$AA$26,">"&AA19)+COUNTIF($AA$6:AA18,AA19)) -> 7 | AC19: 7 | AD19: 13 | AE19: =' Musique'!AT15 -> 3.8 | AF19: =IF(AE19="","",IF(AE19=0,COUNTIF(AE$7:AE$26,">0")+COUNTIF(AE$6:AE18,0),COUNTIF($AE$7:$AE$26,"<"&AE19)+COUNTIF($AE$6:AE18,AE19)-COUNTIF(AE$6:AE$26,0))) -> 3 | AG19: 4 | AH19: 13 | AI19: =' Musique'!AU15 -> 41.8 | AJ19: =IF(AI19="","",COUNTIF($AI$7:$AI$26,">"&AI19)+COUNTIF($AI$6:AI18,AI19)) -> 9 | AK19: 11 | AL19: 13 | AM19: =' Musique'!AV15 -> 2.894736842 | AN19: =IF(AM19="","",COUNTIF($AM$7:$AM$26,">"&AM19)+COUNTIF($AM$6:AM18,AM19)) -> 5 | AO19: 7 | AP19: 13 | AQ19: =' Musique'!AW15 -> 22.66666667 | AR19: =IF(AQ19="","",COUNTIF($AQ$7:$AQ$26,">"&AQ19)+COUNTIF($AQ$6:AQ18,AQ19)) -> 4 | AS19: 15 | AT19: 13 | AU19: =' Musique'!AX15 -> 4.333333333 | AV19: =IF(AU19="","",IF(AU19=0,COUNTIF(AU$7:AU$26,">0")+COUNTIF(AU$6:AU18,0),COUNTIF($AU$7:$AU$26,"<"&AU19)+COUNTIF($AU$6:AU18,AU19)-COUNTIF(AU$6:AU$26,0))) -> 5 | AW19: 4 | AX19: 13 | AY19: =' Musique'!AZ15 -> 98.22222222 | AZ19: =IF(AY19="","",COUNTIF($AY$7:$AY$26,">"&AY19)+COUNTIF($AY$6:AY18,AY19)) -> 4 | BA19: 7 | BB19: 13 | BC19: =' Musique'!AV15 -> 2.894736842 | BD19: =IF(BC19="","",COUNTIF($BC$7:$BC$26,">"&BC19)+COUNTIF($BC$6:BC18,BC19)) -> 5 | BE19: 7 | BF19: 13 | BG19: =' Musique'!BM15 -> 3.266666667 | BH19: =IF(BG19="","",IF(BG19=0,COUNTIF(BG$7:BG$26,">0")+COUNTIF(BG$6:BG18,0),COUNTIF($BG$7:$BG$26,"<"&BG19)+COUNTIF($BG$6:BG18,BG19)-COUNTIF(BG$6:BG$26,0))) -> 14 | BI19: 15 | BJ19: 13 | BK19: =' Musique'!BJ15 -> 5.36396267 | BL19: =IF(BK19="","",COUNTIF($BK$7:$BK$26,">"&BK19)+COUNTIF($BK$6:BK18,BK19)) -> 12 | BM19: 13 | BN19: 13 | BO19: =' Musique'!BK15 -> 6.363961031 | BP19: =IF(BO19="","",IF(BO19=0,COUNTIF(BO$7:BO$26,">0")+COUNTIF(BO$6:BO18,0),COUNTIF($BO$7:$BO$26,"<"&BO19)+COUNTIF($BO$6:BO18,BO19)-COUNTIF(BO$6:BO$26,0))) -> 11 | BQ19: 3 | BR19: 13 | BS19: =' Musique'!BE15 -> 5.07597402 | BT19: =IF(BS19="","",COUNTIF($BS$7:$BS$26,">"&BS19)+COUNTIF($BS$6:BS18,BS19)) -> 0 | BU19: 15 | BV19: 13 | BW19: =' Musique'!BP15 -> 3.980582524 | BX19: =IF(BW19="","",COUNTIF($BW$7:$BW$26,">"&BW19)+COUNTIF($BW$6:BW18,BW19)) -> 0 | BY19: 11 | BZ19: 13 | CA19: =' Musique'!AL15 -> 0.5 | CB19: =IF(CA19="","",COUNTIF($CA$7:$CA$26,">"&CA19)+COUNTIF($CA$6:CA18,CA19)) -> 7 | CC19: 9 | CD19: 13 | CE19: =' Musique'!BB15 -> 2.038834951 | CF19: =IF(CE19="","",IF(CE19=0,COUNTIF(CE$7:CE$26,">0")+COUNTIF(CE$6:CE18,0),COUNTIF($CE$7:$CE$26,"<"&CE19)+COUNTIF($CE$6:CE18,CE19)-COUNTIF(CE$6:CE$26,0))) -> 2 | CG19: 9 | CH19: 13 | CI19: =' Musique'!BH15 -> 5.07597402 | CJ19: =IF(CI19="","",COUNTIF($CI$7:$CI$26,">"&CI19)+COUNTIF($CI$6:CI18,CI19)) -> 0 | CK19: 12 | CL19: 13 | CM19: =' Musique'!BN15 -> 16.66666667 | CN19: =IF(CM19="","",COUNTIF($CM$7:$CM$26,">"&CM19)+COUNTIF($CM$6:CM18,CM19)) -> 8 | CO19: 9 | CP19: 13 | CQ19: =AGC!AP16 -> 37.5 | CR19: =IF(CQ19="","",COUNTIF($CQ$7:$CQ$26,">"&CQ19)+COUNTIF($CQ$6:CQ18,CQ19)) -> 10 | CS19: 3 | CT19: 13 | CU19: =AGC!AQ16 -> 3531.25 | CV19: =IF(CU19="","",COUNTIF($CU$7:$CU$26,">"&CU19)+COUNTIF($CU$6:CU18,CU19)) -> 7 | CW19: 9 | CX19: 13 | CY19: =AGC!AN16 -> 200 | CZ19: =IF(CY19="","",COUNTIF($CY$7:$CY$26,">"&CY19)+COUNTIF($CY$6:CY18,CY19)) -> 2 | DA19: 4 | DH19: =' Musique'!A15 -> 13 | DI19: =COUNTIF($EU$7:$FU$8,"13") -> 4 | DJ19: =IF(DI19="","",COUNTIF($DI$7:$DI$26,">"&DI19)+COUNTIF($DI$6:DI18,DI19)) -> 4 | DK19: 15 | DM19: 13 | DN19: =COUNTIF($EU$7:$FU$9,"13") -> 6 | DO19: =IF(DN19="","",COUNTIF($DN$7:$DN$26,">"&DN19)+COUNTIF($DN$6:DN18,DN19)) -> 5 | DP19: 7 | DR19: 13 | DS19: =COUNTIF($EU$7:$FU$10,"13") -> 7 | DT19: =IF(DS19="","",COUNTIF($DS$7:$DS$26,">"&DS19)+COUNTIF($DS$6:DS18,DS19)) -> 7 | DU19: 15 | DW19: 13 | DX19: =COUNTIF($EU$7:$FU$11,"13") -> 9 | DY19: =IF(DX19="","",COUNTIF($DX$7:$DX$26,">"&DX19)+COUNTIF($DX$6:DX18,DX19)) -> 5 | DZ19: 6 | EB19: 13 | EC19: =COUNTIF($EU$7:$FU$12,"13") -> 13 | ED19: =IF(EC19="","",COUNTIF($EC$7:$EC$26,">"&EC19)+COUNTIF($EC$6:EC18,EC19)) -> 5 | EE19: 9 | EG19: 13 | EH19: =COUNTIF($EU$7:$FU$13,"13") -> 14 | EI19: =IF(EH19="","",COUNTIF($EH$7:$EH$26,">"&EH19)+COUNTIF($EH$6:EH18,EH19)) -> 5 | EJ19: 9 | EL19: 13 | EM19: =COUNTIF($EU$7:$FU$14,"13") -> 18 | EN19: =IF(EM19="","",COUNTIF($EM$7:$EM$26,">"&EM19)+COUNTIF($EM$6:EM18,EM19)) -> 5 | EO19: 9
A20: 14 | B20: =' Musique'!A16 -> 14 | C20: ='Points Vic '!AL17 -> 72.47390209 | D20: =IF(C20="","",COUNTIF($C$7:$C$26,">"&C20)+COUNTIF($C$6:C19,C20)) -> 5 | E20: 2 | F20: 14 | G20: =' Musique'!AJ16 -> 3.559026084 | H20: =IF(G20="","",IF(G20=0,COUNTIF(G$7:G$26,">0")+COUNTIF(G$6:G19,0),COUNTIF($G$7:$G$26,"<"&G20)+COUNTIF($G$6:G19,G20)-COUNTIF(G$6:G$26,0))) -> 10 | I20: 13 | J20: 14 | K20: =' Musique'!AK16 -> 3.399346342 | L20: =IF(K20="","",IF(K20=0,COUNTIF(K$7:K$26,">0")+COUNTIF(K$6:K19,0),COUNTIF($K$7:$K$26,"<"&K20)+COUNTIF($K$6:K19,K20)-COUNTIF(K$6:K$26,0))) -> 11 | M20: 6 | N20: 14 | O20: =' Musique'!AO16 -> 0.4438137822 | P20: =IF(O20="","",COUNTIF($O$7:$O$26,">"&O20)+COUNTIF($O$6:O19,O20)) -> 8 | Q20: 15 | R20: 14 | S20: =' Musique'!AQ16 -> 44.48782605 | T20: =IF(S20="","",COUNTIF($S$7:$S$26,">"&S20)+COUNTIF($S$6:S19,S20)) -> 2 | U20: 11 | V20: 14 | W20: =' Musique'!AR16 -> 1.666666667 | X20: =IF(W20="","",COUNTIF($W$7:$W$26,">"&W20)+COUNTIF($W$6:W19,W20)) -> 4 | Y20: 15 | Z20: 14 | AA20: =' Musique'!AS16 -> 13.66666667 | AB20: =IF(AA20="","",COUNTIF($AA$7:$AA$26,">"&AA20)+COUNTIF($AA$6:AA19,AA20)) -> 4 | AC20: 15 | AD20: 14 | AE20: =' Musique'!AT16 -> 3.8 | AF20: =IF(AE20="","",IF(AE20=0,COUNTIF(AE$7:AE$26,">0")+COUNTIF(AE$6:AE19,0),COUNTIF($AE$7:$AE$26,"<"&AE20)+COUNTIF($AE$6:AE19,AE20)-COUNTIF(AE$6:AE$26,0))) -> 4 | AG20: 7 | AH20: 14 | AI20: =' Musique'!AU16 -> 51.93333333 | AJ20: =IF(AI20="","",COUNTIF($AI$7:$AI$26,">"&AI20)+COUNTIF($AI$6:AI19,AI20)) -> 3 | AK20: 15 | AL20: 14 | AM20: =' Musique'!AV16 -> 3.596491228 | AN20: =IF(AM20="","",COUNTIF($AM$7:$AM$26,">"&AM20)+COUNTIF($AM$6:AM19,AM20)) -> 3 | AO20: 15 | AP20: 14 | AQ20: =' Musique'!AW16 -> 24.66666667 | AR20: =IF(AQ20="","",COUNTIF($AQ$7:$AQ$26,">"&AQ20)+COUNTIF($AQ$6:AQ19,AQ20)) -> 3 | AS20: 7 | AT20: 14 | AU20: =' Musique'!AX16 -> 4 | AV20: =IF(AU20="","",IF(AU20=0,COUNTIF(AU$7:AU$26,">0")+COUNTIF(AU$6:AU19,0),COUNTIF($AU$7:$AU$26,"<"&AU20)+COUNTIF($AU$6:AU19,AU20)-COUNTIF(AU$6:AU$26,0))) -> 4 | AW20: 7 | AX20: 14 | AY20: =' Musique'!AZ16 -> 98.66666667 | AZ20: =IF(AY20="","",COUNTIF($AY$7:$AY$26,">"&AY20)+COUNTIF($AY$6:AY19,AY20)) -> 3 | BA20: 15 | BB20: 14 | BC20: =' Musique'!AV16 -> 3.596491228 | BD20: =IF(BC20="","",COUNTIF($BC$7:$BC$26,">"&BC20)+COUNTIF($BC$6:BC19,BC20)) -> 3 | BE20: 15 | BF20: 14 | BG20: =' Musique'!BM16 -> 0.2 | BH20: =IF(BG20="","",IF(BG20=0,COUNTIF(BG$7:BG$26,">0")+COUNTIF(BG$6:BG19,0),COUNTIF($BG$7:$BG$26,"<"&BG20)+COUNTIF($BG$6:BG19,BG20)-COUNTIF(BG$6:BG$26,0))) -> 2 | BI20: 5 | BJ20: 14 | BK20: =' Musique'!BJ16 -> 6.711600928 | BL20: =IF(BK20="","",COUNTIF($BK$7:$BK$26,">"&BK20)+COUNTIF($BK$6:BK19,BK20)) -> 6 | BM20: 5 | BN20: 14 | BO20: =' Musique'!BK16 -> 4.270831301 | BP20: =IF(BO20="","",IF(BO20=0,COUNTIF(BO$7:BO$26,">0")+COUNTIF(BO$6:BO19,0),COUNTIF($BO$7:$BO$26,"<"&BO20)+COUNTIF($BO$6:BO19,BO20)-COUNTIF(BO$6:BO$26,0))) -> 4 | BQ20: 2 | BR20: 14 | BS20: =' Musique'!BE16 -> 4.392359417 | BT20: =IF(BS20="","",COUNTIF($BS$7:$BS$26,">"&BS20)+COUNTIF($BS$6:BS19,BS20)) -> 3 | BU20: 11 | BV20: 14 | BW20: =' Musique'!BP16 -> 0.252900232 | BX20: =IF(BW20="","",COUNTIF($BW$7:$BW$26,">"&BW20)+COUNTIF($BW$6:BW19,BW20)) -> 13 | BY20: 14 | BZ20: 14 | CA20: =' Musique'!AL16 -> 0.5 | CB20: =IF(CA20="","",COUNTIF($CA$7:$CA$26,">"&CA20)+COUNTIF($CA$6:CA19,CA20)) -> 8 | CC20: 15 | CD20: 14 | CE20: =' Musique'!BB16 -> 2.505800464 | CF20: =IF(CE20="","",IF(CE20=0,COUNTIF(CE$7:CE$26,">0")+COUNTIF(CE$6:CE19,0),COUNTIF($CE$7:$CE$26,"<"&CE20)+COUNTIF($CE$6:CE19,CE20)-COUNTIF(CE$6:CE$26,0))) -> 7 | CG20: 4 | CH20: 14 | CI20: =' Musique'!BH16 -> 4.392359417 | CJ20: =IF(CI20="","",COUNTIF($CI$7:$CI$26,">"&CI20)+COUNTIF($CI$6:CI19,CI20)) -> 1 | CL20: 14 | CM20: =' Musique'!BN16 -> 16.66666667 | CN20: =IF(CM20="","",COUNTIF($CM$7:$CM$26,">"&CM20)+COUNTIF($CM$6:CM19,CM20)) -> 9 | CO20: 12 | CP20: 14 | CQ20: =AGC!AP17 -> 62.5 | CR20: =IF(CQ20="","",COUNTIF($CQ$7:$CQ$26,">"&CQ20)+COUNTIF($CQ$6:CQ19,CQ20)) -> 3 | CS20: 12 | CT20: 14 | CU20: =AGC!AQ17 -> 2456.25 | CV20: =IF(CU20="","",COUNTIF($CU$7:$CU$26,">"&CU20)+COUNTIF($CU$6:CU19,CU20)) -> 13 | CW20: 14 | CX20: 14 | CY20: =AGC!AN17 -> 25 | CZ20: =IF(CY20="","",COUNTIF($CY$7:$CY$26,">"&CY20)+COUNTIF($CY$6:CY19,CY20)) -> 11 | DA20: 9 | DH20: =' Musique'!A16 -> 14 | DI20: =COUNTIF($EU$7:$FU$8,"14") -> 1 | DJ20: =IF(DI20="","",COUNTIF($DI$7:$DI$26,">"&DI20)+COUNTIF($DI$6:DI19,DI20)) -> 11 | DK20: 4 | DM20: 14 | DN20: =COUNTIF($EU$7:$FU$9,"14") -> 3 | DO20: =IF(DN20="","",COUNTIF($DN$7:$DN$26,">"&DN20)+COUNTIF($DN$6:DN19,DN20)) -> 8 | DP20: 12 | DR20: 14 | DS20: =COUNTIF($EU$7:$FU$10,"14") -> 10 | DT20: =IF(DS20="","",COUNTIF($DS$7:$DS$26,">"&DS20)+COUNTIF($DS$6:DS19,DS20)) -> 3 | DU20: 4 | DW20: 14 | DX20: =COUNTIF($EU$7:$FU$11,"14") -> 15 | DY20: =IF(DX20="","",COUNTIF($DX$7:$DX$26,">"&DX20)+COUNTIF($DX$6:DX19,DX20)) -> 3 | DZ20: 12 | EB20: 14 | EC20: =COUNTIF($EU$7:$FU$12,"14") -> 16 | ED20: =IF(EC20="","",COUNTIF($EC$7:$EC$26,">"&EC20)+COUNTIF($EC$6:EC19,EC20)) -> 3 | EE20: 12 | EG20: 14 | EH20: =COUNTIF($EU$7:$FU$13,"14") -> 17 | EI20: =IF(EH20="","",COUNTIF($EH$7:$EH$26,">"&EH20)+COUNTIF($EH$6:EH19,EH20)) -> 4 | EJ20: 12 | EL20: 14 | EM20: =COUNTIF($EU$7:$FU$14,"14") -> 18 | EN20: =IF(EM20="","",COUNTIF($EM$7:$EM$26,">"&EM20)+COUNTIF($EM$6:EM19,EM20)) -> 6 | EO20: 15
A21: 15 | B21: =' Musique'!A17 -> 15 | C21: ='Points Vic '!AL18 -> 42.45432817 | D21: =IF(C21="","",COUNTIF($C$7:$C$26,">"&C21)+COUNTIF($C$6:C20,C21)) -> 10 | E21: 13 | F21: 15 | G21: =' Musique'!AJ17 -> 2.624669291 | H21: =IF(G21="","",IF(G21=0,COUNTIF(G$7:G$26,">0")+COUNTIF(G$6:G20,0),COUNTIF($G$7:$G$26,"<"&G21)+COUNTIF($G$6:G20,G21)-COUNTIF(G$6:G$26,0))) -> 3 | I21: 12 | J21: 15 | K21: =' Musique'!AK17 -> 2.624669291 | L21: =IF(K21="","",IF(K21=0,COUNTIF(K$7:K$26,">0")+COUNTIF(K$6:K20,0),COUNTIF($K$7:$K$26,"<"&K21)+COUNTIF($K$6:K20,K21)-COUNTIF(K$6:K$26,0))) -> 8 | M21: 2 | N21: 15 | O21: =' Musique'!AO17 -> -0.4724334022 | P21: =IF(O21="","",COUNTIF($O$7:$O$26,">"&O21)+COUNTIF($O$6:O20,O21)) -> 13 | Q21: 12 | R21: 15 | S21: =' Musique'!AQ17 -> 41.99470866 | T21: =IF(S21="","",COUNTIF($S$7:$S$26,">"&S21)+COUNTIF($S$6:S20,S21)) -> 4 | U21: 12 | V21: 15 | W21: =' Musique'!AR17 -> 1.4 | X21: =IF(W21="","",COUNTIF($W$7:$W$26,">"&W21)+COUNTIF($W$6:W20,W21)) -> 13 | Y21: 12 | Z21: 15 | AA21: =' Musique'!AS17 -> 4.666666667 | AB21: =IF(AA21="","",COUNTIF($AA$7:$AA$26,">"&AA21)+COUNTIF($AA$6:AA20,AA21)) -> 13 | AC21: 12 | AD21: 15 | AE21: =' Musique'!AT17 -> 6 | AF21: =IF(AE21="","",IF(AE21=0,COUNTIF(AE$7:AE$26,">0")+COUNTIF(AE$6:AE20,0),COUNTIF($AE$7:$AE$26,"<"&AE21)+COUNTIF($AE$6:AE20,AE21)-COUNTIF(AE$6:AE$26,0))) -> 11 | AG21: 12 | AH21: 15 | AI21: =' Musique'!AU17 -> 28 | AJ21: =IF(AI21="","",COUNTIF($AI$7:$AI$26,">"&AI21)+COUNTIF($AI$6:AI20,AI21)) -> 13 | AK21: 12 | AL21: 15 | AM21: =' Musique'!AV17 -> 0.7777777778 | AN21: =IF(AM21="","",COUNTIF($AM$7:$AM$26,">"&AM21)+COUNTIF($AM$6:AM20,AM21)) -> 13 | AO21: 12 | AP21: 15 | AQ21: =' Musique'!AW17 -> 15.5 | AR21: =IF(AQ21="","",COUNTIF($AQ$7:$AQ$26,">"&AQ21)+COUNTIF($AQ$6:AQ20,AQ21)) -> 12 | AS21: 12 | AT21: 15 | AU21: =' Musique'!AX17 -> 5 | AV21: =IF(AU21="","",IF(AU21=0,COUNTIF(AU$7:AU$26,">0")+COUNTIF(AU$6:AU20,0),COUNTIF($AU$7:$AU$26,"<"&AU21)+COUNTIF($AU$6:AU20,AU21)-COUNTIF(AU$6:AU$26,0))) -> 10 | AW21: 12 | AX21: 15 | AY21: =' Musique'!AZ17 -> 77.5 | AZ21: =IF(AY21="","",COUNTIF($AY$7:$AY$26,">"&AY21)+COUNTIF($AY$6:AY20,AY21)) -> 13 | BA21: 12 | BB21: 15 | BC21: =' Musique'!AV17 -> 0.7777777778 | BD21: =IF(BC21="","",COUNTIF($BC$7:$BC$26,">"&BC21)+COUNTIF($BC$6:BC20,BC21)) -> 13 | BE21: 12 | BF21: 15 | BG21: =' Musique'!BM17 -> 3 | BH21: =IF(BG21="","",IF(BG21=0,COUNTIF(BG$7:BG$26,">0")+COUNTIF(BG$6:BG20,0),COUNTIF($BG$7:$BG$26,"<"&BG21)+COUNTIF($BG$6:BG20,BG21)-COUNTIF(BG$6:BG$26,0))) -> 12 | BI21: 13 | BJ21: 15 | BK21: =' Musique'!BJ17 -> 12.95588235 | BL21: =IF(BK21="","",COUNTIF($BK$7:$BK$26,">"&BK21)+COUNTIF($BK$6:BK20,BK21)) -> 0 | BM21: 11 | BN21: 15 | BO21: =' Musique'!BK17 -> 4.374448819 | BP21: =IF(BO21="","",IF(BO21=0,COUNTIF(BO$7:BO$26,">0")+COUNTIF(BO$6:BO20,0),COUNTIF($BO$7:$BO$26,"<"&BO21)+COUNTIF($BO$6:BO20,BO21)-COUNTIF(BO$6:BO$26,0))) -> 7 | BQ21: 12 | BR21: 15 | BS21: =' Musique'!BE17 -> 3.224669291 | BT21: =IF(BS21="","",COUNTIF($BS$7:$BS$26,">"&BS21)+COUNTIF($BS$6:BS20,BS21)) -> 12 | BU21: 12 | BV21: 15 | BW21: =' Musique'!BP17 -> 2.606382979 | BX21: =IF(BW21="","",COUNTIF($BW$7:$BW$26,">"&BW21)+COUNTIF($BW$6:BW20,BW21)) -> 6 | BY21: 10 | BZ21: 15 | CA21: =' Musique'!AL17 -> 0.2 | CB21: =IF(CA21="","",COUNTIF($CA$7:$CA$26,">"&CA21)+COUNTIF($CA$6:CA20,CA21)) -> 13 | CC21: 12 | CD21: 15 | CE21: =' Musique'!BB17 -> 4.787234043 | CF21: =IF(CE21="","",IF(CE21=0,COUNTIF(CE$7:CE$26,">0")+COUNTIF(CE$6:CE20,0),COUNTIF($CE$7:$CE$26,"<"&CE21)+COUNTIF($CE$6:CE20,CE21)-COUNTIF(CE$6:CE$26,0))) -> 14 | CG21: 15 | CH21: 15 | CI21: =' Musique'!BH17 -> 2.015418307 | CJ21: =IF(CI21="","",COUNTIF($CI$7:$CI$26,">"&CI21)+COUNTIF($CI$6:CI20,CI21)) -> 11 | CL21: 15 | CM21: =' Musique'!BN17 -> 0 | CN21: =IF(CM21="","",COUNTIF($CM$7:$CM$26,">"&CM21)+COUNTIF($CM$6:CM20,CM21)) -> 14 | CO21: 15 | CP21: 15 | CQ21: =AGC!AP18 -> 20 | CR21: =IF(CQ21="","",COUNTIF($CQ$7:$CQ$26,">"&CQ21)+COUNTIF($CQ$6:CQ20,CQ21)) -> 14 | CS21: 15 | CT21: 15 | CU21: =AGC!AQ18 -> 1750 | CV21: =IF(CU21="","",COUNTIF($CU$7:$CU$26,">"&CU21)+COUNTIF($CU$6:CU20,CU21)) -> 14 | CW21: 15 | CX21: 15 | CY21: =AGC!AN18 -> 0 | CZ21: =IF(CY21="","",COUNTIF($CY$7:$CY$26,">"&CY21)+COUNTIF($CY$6:CY20,CY21)) -> 14 | DA21: 15 | DH21: =' Musique'!A17 -> 15 | DI21: =COUNTIF($EU$7:$FU$8,"15") -> 1 | DJ21: =IF(DI21="","",COUNTIF($DI$7:$DI$26,">"&DI21)+COUNTIF($DI$6:DI20,DI21)) -> 12 | DK21: 6 | DM21: 15 | DN21: =COUNTIF($EU$7:$FU$9,"15") -> 1 | DO21: =IF(DN21="","",COUNTIF($DN$7:$DN$26,">"&DN21)+COUNTIF($DN$6:DN20,DN21)) -> 14 | DP21: 15 | DR21: 15 | DS21: =COUNTIF($EU$7:$FU$10,"15") -> 2 | DT21: =IF(DS21="","",COUNTIF($DS$7:$DS$26,">"&DS21)+COUNTIF($DS$6:DS20,DS21)) -> 12 | DU21: 7 | DW21: 15 | DX21: =COUNTIF($EU$7:$FU$11,"15") -> 3 | DY21: =IF(DX21="","",COUNTIF($DX$7:$DX$26,">"&DX21)+COUNTIF($DX$6:DX20,DX21)) -> 14 | DZ21: 15 | EB21: 15 | EC21: =COUNTIF($EU$7:$FU$12,"15") -> 3 | ED21: =IF(EC21="","",COUNTIF($EC$7:$EC$26,">"&EC21)+COUNTIF($EC$6:EC20,EC21)) -> 14 | EE21: 15 | EG21: 15 | EH21: =COUNTIF($EU$7:$FU$13,"15") -> 4 | EI21: =IF(EH21="","",COUNTIF($EH$7:$EH$26,">"&EH21)+COUNTIF($EH$6:EH20,EH21)) -> 14 | EJ21: 15 | EL21: 15 | EM21: =COUNTIF($EU$7:$FU$14,"15") -> 5 | EN21: =IF(EM21="","",COUNTIF($EM$7:$EM$26,">"&EM21)+COUNTIF($EM$6:EM20,EM21)) -> 13 | EO21: 12
A22: 16 | B22: =' Musique'!A18 ->  | C22: ='Points Vic '!AL19 ->  | D22: =IF(C22="","",COUNTIF($C$7:$C$26,">"&C22)+COUNTIF($C$6:C21,C22)) ->  | F22: 16 | G22: =' Musique'!AJ18 ->  | H22: =IF(G22="","",IF(G22=0,COUNTIF(G$7:G$26,">0")+COUNTIF(G$6:G21,0),COUNTIF($G$7:$G$26,"<"&G22)+COUNTIF($G$6:G21,G22)-COUNTIF(G$6:G$26,0))) ->  | J22: 16 | K22: =' Musique'!AK18 ->  | L22: =IF(K22="","",IF(K22=0,COUNTIF(K$7:K$26,">0")+COUNTIF(K$6:K21,0),COUNTIF($K$7:$K$26,"<"&K22)+COUNTIF($K$6:K21,K22)-COUNTIF(K$6:K$26,0))) ->  | N22: 16 | O22: =' Musique'!AO18 ->  | P22: =IF(O22="","",COUNTIF($O$7:$O$26,">"&O22)+COUNTIF($O$6:O21,O22)) ->  | R22: 16 | S22: =' Musique'!AQ18 ->  | T22: =IF(S22="","",COUNTIF($S$7:$S$26,">"&S22)+COUNTIF($S$6:S21,S22)) ->  | V22: 16 | W22: =' Musique'!AR18 ->  | X22: =IF(W22="","",COUNTIF($W$7:$W$26,">"&W22)+COUNTIF($W$6:W21,W22)) ->  | Z22: 16 | AA22: =' Musique'!AS18 ->  | AB22: =IF(AA22="","",COUNTIF($AA$7:$AA$26,">"&AA22)+COUNTIF($AA$6:AA21,AA22)) ->  | AD22: 16 | AE22: =' Musique'!AT18 ->  | AF22: =IF(AE22="","",IF(AE22=0,COUNTIF(AE$7:AE$26,">0")+COUNTIF(AE$6:AE21,0),COUNTIF($AE$7:$AE$26,"<"&AE22)+COUNTIF($AE$6:AE21,AE22)-COUNTIF(AE$6:AE$26,0))) ->  | AH22: 16 | AI22: =' Musique'!AU18 ->  | AJ22: =IF(AI22="","",COUNTIF($AI$7:$AI$26,">"&AI22)+COUNTIF($AI$6:AI21,AI22)) ->  | AL22: 16 | AM22: =' Musique'!AV18 ->  | AN22: =IF(AM22="","",COUNTIF($AM$7:$AM$26,">"&AM22)+COUNTIF($AM$6:AM21,AM22)) ->  | AP22: 16 | AQ22: =' Musique'!AW18 ->  | AR22: =IF(AQ22="","",COUNTIF($AQ$7:$AQ$26,">"&AQ22)+COUNTIF($AQ$6:AQ21,AQ22)) ->  | AT22: 16 | AU22: =' Musique'!AX18 ->  | AV22: =IF(AU22="","",IF(AU22=0,COUNTIF(AU$7:AU$26,">0")+COUNTIF(AU$6:AU21,0),COUNTIF($AU$7:$AU$26,"<"&AU22)+COUNTIF($AU$6:AU21,AU22)-COUNTIF(AU$6:AU$26,0))) ->  | AX22: 16 | AY22: =' Musique'!AZ18 ->  | AZ22: =IF(AY22="","",COUNTIF($AY$7:$AY$26,">"&AY22)+COUNTIF($AY$6:AY21,AY22)) ->  | BB22: 16 | BC22: =' Musique'!AV18 ->  | BD22: =IF(BC22="","",COUNTIF($BC$7:$BC$26,">"&BC22)+COUNTIF($BC$6:BC21,BC22)) ->  | BF22: 16 | BG22: =' Musique'!BM18 ->  | BH22: =IF(BG22="","",IF(BG22=0,COUNTIF(BG$7:BG$26,">0")+COUNTIF(BG$6:BG21,0),COUNTIF($BG$7:$BG$26,"<"&BG22)+COUNTIF($BG$6:BG21,BG22)-COUNTIF(BG$6:BG$26,0))) ->  | BJ22: 16 | BK22: =' Musique'!BJ18 ->  | BL22: =IF(BK22="","",COUNTIF($BK$7:$BK$26,">"&BK22)+COUNTIF($BK$6:BK21,BK22)) ->  | BN22: 16 | BO22: =' Musique'!BK18 ->  | BP22: =IF(BO22="","",IF(BO22=0,COUNTIF(BO$7:BO$26,">0")+COUNTIF(BO$6:BO21,0),COUNTIF($BO$7:$BO$26,"<"&BO22)+COUNTIF($BO$6:BO21,BO22)-COUNTIF(BO$6:BO$26,0))) ->  | BR22: 16 | BS22: =' Musique'!BE18 ->  | BT22: =IF(BS22="","",COUNTIF($BS$7:$BS$26,">"&BS22)+COUNTIF($BS$6:BS21,BS22)) ->  | BV22: 16 | BW22: =' Musique'!BP18 ->  | BX22: =IF(BW22="","",COUNTIF($BW$7:$BW$26,">"&BW22)+COUNTIF($BW$6:BW21,BW22)) ->  | BZ22: 16 | CA22: =' Musique'!AL18 ->  | CB22: =IF(CA22="","",COUNTIF($CA$7:$CA$26,">"&CA22)+COUNTIF($CA$6:CA21,CA22)) ->  | CD22: 16 | CE22: =' Musique'!BB18 ->  | CF22: =IF(CE22="","",IF(CE22=0,COUNTIF(CE$7:CE$26,">0")+COUNTIF(CE$6:CE21,0),COUNTIF($CE$7:$CE$26,"<"&CE22)+COUNTIF($CE$6:CE21,CE22)-COUNTIF(CE$6:CE$26,0))) ->  | CH22: 16 | CI22: =' Musique'!BH18 ->  | CJ22: =IF(CI22="","",COUNTIF($CI$7:$CI$26,">"&CI22)+COUNTIF($CI$6:CI21,CI22)) ->  | CL22: 16 | CM22: =' Musique'!BN18 ->  | CN22: =IF(CM22="","",COUNTIF($CM$7:$CM$26,">"&CM22)+COUNTIF($CM$6:CM21,CM22)) ->  | CP22: 16 | CQ22: =AGC!AP19 ->  | CR22: =IF(CQ22="","",COUNTIF($CQ$7:$CQ$26,">"&CQ22)+COUNTIF($CQ$6:CQ21,CQ22)) ->  | CT22: 16 | CU22: =AGC!AQ19 ->  | CV22: =IF(CU22="","",COUNTIF($CU$7:$CU$26,">"&CU22)+COUNTIF($CU$6:CU21,CU22)) ->  | CX22: 16 | CY22: =AGC!AN19 ->  | CZ22: =IF(CY22="","",COUNTIF($CY$7:$CY$26,">"&CY22)+COUNTIF($CY$6:CY21,CY22)) ->  | DH22: =' Musique'!A18 ->  | DI22: =COUNTIF($EU$7:$FU$8,"16") -> 0 | DJ22: =IF(DI22="","",COUNTIF($DI$7:$DI$26,">"&DI22)+COUNTIF($DI$6:DI21,DI22)) -> 15 | DN22: =COUNTIF($EU$7:$FU$9,"16") -> 0 | DO22: =IF(DN22="","",COUNTIF($DN$7:$DN$26,">"&DN22)+COUNTIF($DN$6:DN21,DN22)) -> 15 | DS22: =COUNTIF($EU$7:$FU$10,"16") -> 0 | DT22: =IF(DS22="","",COUNTIF($DS$7:$DS$26,">"&DS22)+COUNTIF($DS$6:DS21,DS22)) -> 15 | DX22: =COUNTIF($EU$7:$FU$11,"16") -> 0 | DY22: =IF(DX22="","",COUNTIF($DX$7:$DX$26,">"&DX22)+COUNTIF($DX$6:DX21,DX22)) -> 15 | EC22: =COUNTIF($EU$7:$FU$12,"16") -> 0 | ED22: =IF(EC22="","",COUNTIF($EC$7:$EC$26,">"&EC22)+COUNTIF($EC$6:EC21,EC22)) -> 15 | EH22: =COUNTIF($EU$7:$FU$13,"16") -> 0 | EI22: =IF(EH22="","",COUNTIF($EH$7:$EH$26,">"&EH22)+COUNTIF($EH$6:EH21,EH22)) -> 15 | EM22: =COUNTIF($EU$7:$FU$14,"16") -> 0 | EN22: =IF(EM22="","",COUNTIF($EM$7:$EM$26,">"&EM22)+COUNTIF($EM$6:EM21,EM22)) -> 15
A23: 17 | B23: =' Musique'!A19 ->  | C23: ='Points Vic '!AL20 ->  | D23: =IF(C23="","",COUNTIF($C$7:$C$26,">"&C23)+COUNTIF($C$6:C22,C23)) ->  | F23: 17 | G23: =' Musique'!AJ19 ->  | H23: =IF(G23="","",IF(G23=0,COUNTIF(G$7:G$26,">0")+COUNTIF(G$6:G22,0),COUNTIF($G$7:$G$26,"<"&G23)+COUNTIF($G$6:G22,G23)-COUNTIF(G$6:G$26,0))) ->  | J23: 17 | K23: =' Musique'!AK19 ->  | L23: =IF(K23="","",IF(K23=0,COUNTIF(K$7:K$26,">0")+COUNTIF(K$6:K22,0),COUNTIF($K$7:$K$26,"<"&K23)+COUNTIF($K$6:K22,K23)-COUNTIF(K$6:K$26,0))) ->  | N23: 17 | O23: =' Musique'!AO19 ->  | P23: =IF(O23="","",COUNTIF($O$7:$O$26,">"&O23)+COUNTIF($O$6:O22,O23)) ->  | R23: 17 | S23: =' Musique'!AQ19 ->  | T23: =IF(S23="","",COUNTIF($S$7:$S$26,">"&S23)+COUNTIF($S$6:S22,S23)) ->  | V23: 17 | W23: =' Musique'!AR19 ->  | X23: =IF(W23="","",COUNTIF($W$7:$W$26,">"&W23)+COUNTIF($W$6:W22,W23)) ->  | Z23: 17 | AA23: =' Musique'!AS19 ->  | AB23: =IF(AA23="","",COUNTIF($AA$7:$AA$26,">"&AA23)+COUNTIF($AA$6:AA22,AA23)) ->  | AD23: 17 | AE23: =' Musique'!AT19 ->  | AF23: =IF(AE23="","",IF(AE23=0,COUNTIF(AE$7:AE$26,">0")+COUNTIF(AE$6:AE22,0),COUNTIF($AE$7:$AE$26,"<"&AE23)+COUNTIF($AE$6:AE22,AE23)-COUNTIF(AE$6:AE$26,0))) ->  | AH23: 17 | AI23: =' Musique'!AU19 ->  | AJ23: =IF(AI23="","",COUNTIF($AI$7:$AI$26,">"&AI23)+COUNTIF($AI$6:AI22,AI23)) ->  | AL23: 17 | AM23: =' Musique'!AV19 ->  | AN23: =IF(AM23="","",COUNTIF($AM$7:$AM$26,">"&AM23)+COUNTIF($AM$6:AM22,AM23)) ->  | AP23: 17 | AQ23: =' Musique'!AW19 ->  | AR23: =IF(AQ23="","",COUNTIF($AQ$7:$AQ$26,">"&AQ23)+COUNTIF($AQ$6:AQ22,AQ23)) ->  | AT23: 17 | AU23: =' Musique'!AX19 ->  | AV23: =IF(AU23="","",IF(AU23=0,COUNTIF(AU$7:AU$26,">0")+COUNTIF(AU$6:AU22,0),COUNTIF($AU$7:$AU$26,"<"&AU23)+COUNTIF($AU$6:AU22,AU23)-COUNTIF(AU$6:AU$26,0))) ->  | AX23: 17 | AY23: =' Musique'!AZ19 ->  | AZ23: =IF(AY23="","",COUNTIF($AY$7:$AY$26,">"&AY23)+COUNTIF($AY$6:AY22,AY23)) ->  | BB23: 17 | BC23: =' Musique'!AV19 ->  | BD23: =IF(BC23="","",COUNTIF($BC$7:$BC$26,">"&BC23)+COUNTIF($BC$6:BC22,BC23)) ->  | BF23: 17 | BG23: =' Musique'!BM19 ->  | BH23: =IF(BG23="","",IF(BG23=0,COUNTIF(BG$7:BG$26,">0")+COUNTIF(BG$6:BG22,0),COUNTIF($BG$7:$BG$26,"<"&BG23)+COUNTIF($BG$6:BG22,BG23)-COUNTIF(BG$6:BG$26,0))) ->  | BJ23: 17 | BK23: =' Musique'!BJ19 ->  | BL23: =IF(BK23="","",COUNTIF($BK$7:$BK$26,">"&BK23)+COUNTIF($BK$6:BK22,BK23)) ->  | BN23: 17 | BO23: =' Musique'!BK19 ->  | BP23: =IF(BO23="","",IF(BO23=0,COUNTIF(BO$7:BO$26,">0")+COUNTIF(BO$6:BO22,0),COUNTIF($BO$7:$BO$26,"<"&BO23)+COUNTIF($BO$6:BO22,BO23)-COUNTIF(BO$6:BO$26,0))) ->  | BR23: 17 | BS23: =' Musique'!BE19 ->  | BT23: =IF(BS23="","",COUNTIF($BS$7:$BS$26,">"&BS23)+COUNTIF($BS$6:BS22,BS23)) ->  | BV23: 17 | BW23: =' Musique'!BP19 ->  | BX23: =IF(BW23="","",COUNTIF($BW$7:$BW$26,">"&BW23)+COUNTIF($BW$6:BW22,BW23)) ->  | BZ23: 17 | CA23: =' Musique'!AL19 ->  | CB23: =IF(CA23="","",COUNTIF($CA$7:$CA$26,">"&CA23)+COUNTIF($CA$6:CA22,CA23)) ->  | CD23: 17 | CE23: =' Musique'!BB19 ->  | CF23: =IF(CE23="","",IF(CE23=0,COUNTIF(CE$7:CE$26,">0")+COUNTIF(CE$6:CE22,0),COUNTIF($CE$7:$CE$26,"<"&CE23)+COUNTIF($CE$6:CE22,CE23)-COUNTIF(CE$6:CE$26,0))) ->  | CH23: 17 | CI23: =' Musique'!BH19 ->  | CJ23: =IF(CI23="","",COUNTIF($CI$7:$CI$26,">"&CI23)+COUNTIF($CI$6:CI22,CI23)) ->  | CL23: 17 | CM23: =' Musique'!BN19 ->  | CN23: =IF(CM23="","",COUNTIF($CM$7:$CM$26,">"&CM23)+COUNTIF($CM$6:CM22,CM23)) ->  | CP23: 17 | CQ23: =AGC!AP20 ->  | CR23: =IF(CQ23="","",COUNTIF($CQ$7:$CQ$26,">"&CQ23)+COUNTIF($CQ$6:CQ22,CQ23)) ->  | CT23: 17 | CU23: =AGC!AQ20 ->  | CV23: =IF(CU23="","",COUNTIF($CU$7:$CU$26,">"&CU23)+COUNTIF($CU$6:CU22,CU23)) ->  | CX23: 17 | CY23: =AGC!AN20 ->  | CZ23: =IF(CY23="","",COUNTIF($CY$7:$CY$26,">"&CY23)+COUNTIF($CY$6:CY22,CY23)) ->  | DH23: =' Musique'!A19 ->  | DI23: =COUNTIF($EU$7:$FU$8,"17") -> 0 | DJ23: =IF(DI23="","",COUNTIF($DI$7:$DI$26,">"&DI23)+COUNTIF($DI$6:DI22,DI23)) -> 16 | DN23: =COUNTIF($EU$7:$FU$9,"17") -> 0 | DO23: =IF(DN23="","",COUNTIF($DN$7:$DN$26,">"&DN23)+COUNTIF($DN$6:DN22,DN23)) -> 16 | DS23: =COUNTIF($EU$7:$FU$10,"17") -> 0 | DT23: =IF(DS23="","",COUNTIF($DS$7:$DS$26,">"&DS23)+COUNTIF($DS$6:DS22,DS23)) -> 16 | DX23: =COUNTIF($EU$7:$FU$11,"17") -> 0 | DY23: =IF(DX23="","",COUNTIF($DX$7:$DX$26,">"&DX23)+COUNTIF($DX$6:DX22,DX23)) -> 16 | EC23: =COUNTIF($EU$7:$FU$12,"17") -> 0 | ED23: =IF(EC23="","",COUNTIF($EC$7:$EC$26,">"&EC23)+COUNTIF($EC$6:EC22,EC23)) -> 16 | EH23: =COUNTIF($EU$7:$FU$13,"17") -> 0 | EI23: =IF(EH23="","",COUNTIF($EH$7:$EH$26,">"&EH23)+COUNTIF($EH$6:EH22,EH23)) -> 16 | EM23: =COUNTIF($EU$7:$FU$14,"17") -> 0 | EN23: =IF(EM23="","",COUNTIF($EM$7:$EM$26,">"&EM23)+COUNTIF($EM$6:EM22,EM23)) -> 16
A24: 18 | B24: =' Musique'!A20 ->  | C24: ='Points Vic '!AL21 ->  | D24: =IF(C24="","",COUNTIF($C$7:$C$26,">"&C24)+COUNTIF($C$6:C23,C24)) ->  | F24: 18 | G24: =' Musique'!AJ20 ->  | H24: =IF(G24="","",IF(G24=0,COUNTIF(G$7:G$26,">0")+COUNTIF(G$6:G23,0),COUNTIF($G$7:$G$26,"<"&G24)+COUNTIF($G$6:G23,G24)-COUNTIF(G$6:G$26,0))) ->  | J24: 18 | K24: =' Musique'!AK20 ->  | L24: =IF(K24="","",IF(K24=0,COUNTIF(K$7:K$26,">0")+COUNTIF(K$6:K23,0),COUNTIF($K$7:$K$26,"<"&K24)+COUNTIF($K$6:K23,K24)-COUNTIF(K$6:K$26,0))) ->  | N24: 18 | O24: =' Musique'!AO20 ->  | P24: =IF(O24="","",COUNTIF($O$7:$O$26,">"&O24)+COUNTIF($O$6:O23,O24)) ->  | R24: 18 | S24: =' Musique'!AQ20 ->  | T24: =IF(S24="","",COUNTIF($S$7:$S$26,">"&S24)+COUNTIF($S$6:S23,S24)) ->  | V24: 18 | W24: =' Musique'!AR20 ->  | X24: =IF(W24="","",COUNTIF($W$7:$W$26,">"&W24)+COUNTIF($W$6:W23,W24)) ->  | Z24: 18 | AA24: =' Musique'!AS20 ->  | AB24: =IF(AA24="","",COUNTIF($AA$7:$AA$26,">"&AA24)+COUNTIF($AA$6:AA23,AA24)) ->  | AD24: 18 | AE24: =' Musique'!AT20 ->  | AF24: =IF(AE24="","",IF(AE24=0,COUNTIF(AE$7:AE$26,">0")+COUNTIF(AE$6:AE23,0),COUNTIF($AE$7:$AE$26,"<"&AE24)+COUNTIF($AE$6:AE23,AE24)-COUNTIF(AE$6:AE$26,0))) ->  | AH24: 18 | AI24: =' Musique'!AU20 ->  | AJ24: =IF(AI24="","",COUNTIF($AI$7:$AI$26,">"&AI24)+COUNTIF($AI$6:AI23,AI24)) ->  | AL24: 18 | AM24: =' Musique'!AV20 ->  | AN24: =IF(AM24="","",COUNTIF($AM$7:$AM$26,">"&AM24)+COUNTIF($AM$6:AM23,AM24)) ->  | AP24: 18 | AQ24: =' Musique'!AW20 ->  | AR24: =IF(AQ24="","",COUNTIF($AQ$7:$AQ$26,">"&AQ24)+COUNTIF($AQ$6:AQ23,AQ24)) ->  | AT24: 18 | AU24: =' Musique'!AX20 ->  | AV24: =IF(AU24="","",IF(AU24=0,COUNTIF(AU$7:AU$26,">0")+COUNTIF(AU$6:AU23,0),COUNTIF($AU$7:$AU$26,"<"&AU24)+COUNTIF($AU$6:AU23,AU24)-COUNTIF(AU$6:AU$26,0))) ->  | AX24: 18 | AY24: =' Musique'!AZ20 ->  | AZ24: =IF(AY24="","",COUNTIF($AY$7:$AY$26,">"&AY24)+COUNTIF($AY$6:AY23,AY24)) ->  | BB24: 18 | BC24: =' Musique'!AV20 ->  | BD24: =IF(BC24="","",COUNTIF($BC$7:$BC$26,">"&BC24)+COUNTIF($BC$6:BC23,BC24)) ->  | BF24: 18 | BG24: =' Musique'!BM20 ->  | BH24: =IF(BG24="","",IF(BG24=0,COUNTIF(BG$7:BG$26,">0")+COUNTIF(BG$6:BG23,0),COUNTIF($BG$7:$BG$26,"<"&BG24)+COUNTIF($BG$6:BG23,BG24)-COUNTIF(BG$6:BG$26,0))) ->  | BJ24: 18 | BK24: =' Musique'!BJ20 ->  | BL24: =IF(BK24="","",COUNTIF($BK$7:$BK$26,">"&BK24)+COUNTIF($BK$6:BK23,BK24)) ->  | BN24: 18 | BO24: =' Musique'!BK20 ->  | BP24: =IF(BO24="","",IF(BO24=0,COUNTIF(BO$7:BO$26,">0")+COUNTIF(BO$6:BO23,0),COUNTIF($BO$7:$BO$26,"<"&BO24)+COUNTIF($BO$6:BO23,BO24)-COUNTIF(BO$6:BO$26,0))) ->  | BR24: 18 | BS24: =' Musique'!BE20 ->  | BT24: =IF(BS24="","",COUNTIF($BS$7:$BS$26,">"&BS24)+COUNTIF($BS$6:BS23,BS24)) ->  | BV24: 18 | BW24: =' Musique'!BP20 ->  | BX24: =IF(BW24="","",COUNTIF($BW$7:$BW$26,">"&BW24)+COUNTIF($BW$6:BW23,BW24)) ->  | BZ24: 18 | CA24: =' Musique'!AL20 ->  | CB24: =IF(CA24="","",COUNTIF($CA$7:$CA$26,">"&CA24)+COUNTIF($CA$6:CA23,CA24)) ->  | CD24: 18 | CE24: =' Musique'!BB20 ->  | CF24: =IF(CE24="","",IF(CE24=0,COUNTIF(CE$7:CE$26,">0")+COUNTIF(CE$6:CE23,0),COUNTIF($CE$7:$CE$26,"<"&CE24)+COUNTIF($CE$6:CE23,CE24)-COUNTIF(CE$6:CE$26,0))) ->  | CH24: 18 | CI24: =' Musique'!BH20 ->  | CJ24: =IF(CI24="","",COUNTIF($CI$7:$CI$26,">"&CI24)+COUNTIF($CI$6:CI23,CI24)) ->  | CL24: 18 | CM24: =' Musique'!BN20 ->  | CN24: =IF(CM24="","",COUNTIF($CM$7:$CM$26,">"&CM24)+COUNTIF($CM$6:CM23,CM24)) ->  | CP24: 18 | CQ24: =AGC!AP21 ->  | CR24: =IF(CQ24="","",COUNTIF($CQ$7:$CQ$26,">"&CQ24)+COUNTIF($CQ$6:CQ23,CQ24)) ->  | CT24: 18 | CU24: =AGC!AQ21 ->  | CV24: =IF(CU24="","",COUNTIF($CU$7:$CU$26,">"&CU24)+COUNTIF($CU$6:CU23,CU24)) ->  | CX24: 18 | CY24: =AGC!AN21 ->  | CZ24: =IF(CY24="","",COUNTIF($CY$7:$CY$26,">"&CY24)+COUNTIF($CY$6:CY23,CY24)) ->  | DH24: =' Musique'!A20 ->  | DI24: =COUNTIF($EU$7:$FU$8,"18") -> 0 | DJ24: =IF(DI24="","",COUNTIF($DI$7:$DI$26,">"&DI24)+COUNTIF($DI$6:DI23,DI24)) -> 17 | DN24: =COUNTIF($EU$7:$FU$9,"18") -> 0 | DO24: =IF(DN24="","",COUNTIF($DN$7:$DN$26,">"&DN24)+COUNTIF($DN$6:DN23,DN24)) -> 17 | DS24: =COUNTIF($EU$7:$FU$10,"18") -> 0 | DT24: =IF(DS24="","",COUNTIF($DS$7:$DS$26,">"&DS24)+COUNTIF($DS$6:DS23,DS24)) -> 17 | DX24: =COUNTIF($EU$7:$FU$11,"18") -> 0 | DY24: =IF(DX24="","",COUNTIF($DX$7:$DX$26,">"&DX24)+COUNTIF($DX$6:DX23,DX24)) -> 17 | EC24: =COUNTIF($EU$7:$FU$12,"18") -> 0 | ED24: =IF(EC24="","",COUNTIF($EC$7:$EC$26,">"&EC24)+COUNTIF($EC$6:EC23,EC24)) -> 17 | EH24: =COUNTIF($EU$7:$FU$13,"18") -> 0 | EI24: =IF(EH24="","",COUNTIF($EH$7:$EH$26,">"&EH24)+COUNTIF($EH$6:EH23,EH24)) -> 17 | EM24: =COUNTIF($EU$7:$FU$14,"18") -> 0 | EN24: =IF(EM24="","",COUNTIF($EM$7:$EM$26,">"&EM24)+COUNTIF($EM$6:EM23,EM24)) -> 17
A25: 19 | B25: =' Musique'!A21 ->  | C25: ='Points Vic '!AL22 ->  | D25: =IF(C25="","",COUNTIF($C$7:$C$26,">"&C25)+COUNTIF($C$6:C24,C25)) ->  | F25: 19 | G25: =' Musique'!AJ21 ->  | H25: =IF(G25="","",IF(G25=0,COUNTIF(G$7:G$26,">0")+COUNTIF(G$6:G24,0),COUNTIF($G$7:$G$26,"<"&G25)+COUNTIF($G$6:G24,G25)-COUNTIF(G$6:G$26,0))) ->  | J25: 19 | K25: =' Musique'!AK21 ->  | L25: =IF(K25="","",IF(K25=0,COUNTIF(K$7:K$26,">0")+COUNTIF(K$6:K24,0),COUNTIF($K$7:$K$26,"<"&K25)+COUNTIF($K$6:K24,K25)-COUNTIF(K$6:K$26,0))) ->  | N25: 19 | O25: =' Musique'!AO21 ->  | P25: =IF(O25="","",COUNTIF($O$7:$O$26,">"&O25)+COUNTIF($O$6:O24,O25)) ->  | R25: 19 | S25: =' Musique'!AQ21 ->  | T25: =IF(S25="","",COUNTIF($S$7:$S$26,">"&S25)+COUNTIF($S$6:S24,S25)) ->  | V25: 19 | W25: =' Musique'!AR21 ->  | X25: =IF(W25="","",COUNTIF($W$7:$W$26,">"&W25)+COUNTIF($W$6:W24,W25)) ->  | Z25: 19 | AA25: =' Musique'!AS21 ->  | AB25: =IF(AA25="","",COUNTIF($AA$7:$AA$26,">"&AA25)+COUNTIF($AA$6:AA24,AA25)) ->  | AD25: 19 | AE25: =' Musique'!AT21 ->  | AF25: =IF(AE25="","",IF(AE25=0,COUNTIF(AE$7:AE$26,">0")+COUNTIF(AE$6:AE24,0),COUNTIF($AE$7:$AE$26,"<"&AE25)+COUNTIF($AE$6:AE24,AE25)-COUNTIF(AE$6:AE$26,0))) ->  | AH25: 19 | AI25: =' Musique'!AU21 ->  | AJ25: =IF(AI25="","",COUNTIF($AI$7:$AI$26,">"&AI25)+COUNTIF($AI$6:AI24,AI25)) ->  | AL25: 19 | AM25: =' Musique'!AV21 ->  | AN25: =IF(AM25="","",COUNTIF($AM$7:$AM$26,">"&AM25)+COUNTIF($AM$6:AM24,AM25)) ->  | AP25: 19 | AQ25: =' Musique'!AW21 ->  | AR25: =IF(AQ25="","",COUNTIF($AQ$7:$AQ$26,">"&AQ25)+COUNTIF($AQ$6:AQ24,AQ25)) ->  | AT25: 19 | AU25: =' Musique'!AX21 ->  | AV25: =IF(AU25="","",IF(AU25=0,COUNTIF(AU$7:AU$26,">0")+COUNTIF(AU$6:AU24,0),COUNTIF($AU$7:$AU$26,"<"&AU25)+COUNTIF($AU$6:AU24,AU25)-COUNTIF(AU$6:AU$26,0))) ->  | AX25: 19 | AY25: =' Musique'!AZ21 ->  | AZ25: =IF(AY25="","",COUNTIF($AY$7:$AY$26,">"&AY25)+COUNTIF($AY$6:AY24,AY25)) ->  | BB25: 19 | BC25: =' Musique'!AV21 ->  | BD25: =IF(BC25="","",COUNTIF($BC$7:$BC$26,">"&BC25)+COUNTIF($BC$6:BC24,BC25)) ->  | BF25: 19 | BG25: =' Musique'!BM21 ->  | BH25: =IF(BG25="","",IF(BG25=0,COUNTIF(BG$7:BG$26,">0")+COUNTIF(BG$6:BG24,0),COUNTIF($BG$7:$BG$26,"<"&BG25)+COUNTIF($BG$6:BG24,BG25)-COUNTIF(BG$6:BG$26,0))) ->  | BJ25: 19 | BK25: =' Musique'!BJ21 ->  | BL25: =IF(BK25="","",COUNTIF($BK$7:$BK$26,">"&BK25)+COUNTIF($BK$6:BK24,BK25)) ->  | BN25: 19 | BO25: =' Musique'!BK21 ->  | BP25: =IF(BO25="","",IF(BO25=0,COUNTIF(BO$7:BO$26,">0")+COUNTIF(BO$6:BO24,0),COUNTIF($BO$7:$BO$26,"<"&BO25)+COUNTIF($BO$6:BO24,BO25)-COUNTIF(BO$6:BO$26,0))) ->  | BR25: 19 | BS25: =' Musique'!BE21 ->  | BT25: =IF(BS25="","",COUNTIF($BS$7:$BS$26,">"&BS25)+COUNTIF($BS$6:BS24,BS25)) ->  | BV25: 19 | BW25: =' Musique'!BP21 ->  | BX25: =IF(BW25="","",COUNTIF($BW$7:$BW$26,">"&BW25)+COUNTIF($BW$6:BW24,BW25)) ->  | BZ25: 19 | CA25: =' Musique'!AL21 ->  | CB25: =IF(CA25="","",COUNTIF($CA$7:$CA$26,">"&CA25)+COUNTIF($CA$6:CA24,CA25)) ->  | CD25: 19 | CE25: =' Musique'!BB21 ->  | CF25: =IF(CE25="","",IF(CE25=0,COUNTIF(CE$7:CE$26,">0")+COUNTIF(CE$6:CE24,0),COUNTIF($CE$7:$CE$26,"<"&CE25)+COUNTIF($CE$6:CE24,CE25)-COUNTIF(CE$6:CE$26,0))) ->  | CH25: 19 | CI25: =' Musique'!BH21 ->  | CJ25: =IF(CI25="","",COUNTIF($CI$7:$CI$26,">"&CI25)+COUNTIF($CI$6:CI24,CI25)) ->  | CL25: 19 | CM25: =' Musique'!BN21 ->  | CN25: =IF(CM25="","",COUNTIF($CM$7:$CM$26,">"&CM25)+COUNTIF($CM$6:CM24,CM25)) ->  | CP25: 19 | CQ25: =AGC!AP22 ->  | CR25: =IF(CQ25="","",COUNTIF($CQ$7:$CQ$26,">"&CQ25)+COUNTIF($CQ$6:CQ24,CQ25)) ->  | CT25: 19 | CU25: =AGC!AQ22 ->  | CV25: =IF(CU25="","",COUNTIF($CU$7:$CU$26,">"&CU25)+COUNTIF($CU$6:CU24,CU25)) ->  | CX25: 19 | CY25: =AGC!AN22 ->  | CZ25: =IF(CY25="","",COUNTIF($CY$7:$CY$26,">"&CY25)+COUNTIF($CY$6:CY24,CY25)) ->  | DH25: =' Musique'!A21 ->  | DI25: =COUNTIF($EU$7:$FU$8,"19") -> 0 | DJ25: =IF(DI25="","",COUNTIF($DI$7:$DI$26,">"&DI25)+COUNTIF($DI$6:DI24,DI25)) -> 18 | DN25: =COUNTIF($EU$7:$FU$9,"19") -> 0 | DO25: =IF(DN25="","",COUNTIF($DN$7:$DN$26,">"&DN25)+COUNTIF($DN$6:DN24,DN25)) -> 18 | DS25: =COUNTIF($EU$7:$FU$10,"19") -> 0 | DT25: =IF(DS25="","",COUNTIF($DS$7:$DS$26,">"&DS25)+COUNTIF($DS$6:DS24,DS25)) -> 18 | DX25: =COUNTIF($EU$7:$FU$11,"19") -> 0 | DY25: =IF(DX25="","",COUNTIF($DX$7:$DX$26,">"&DX25)+COUNTIF($DX$6:DX24,DX25)) -> 18 | EC25: =COUNTIF($EU$7:$FU$12,"19") -> 0 | ED25: =IF(EC25="","",COUNTIF($EC$7:$EC$26,">"&EC25)+COUNTIF($EC$6:EC24,EC25)) -> 18 | EH25: =COUNTIF($EU$7:$FU$13,"19") -> 0 | EI25: =IF(EH25="","",COUNTIF($EH$7:$EH$26,">"&EH25)+COUNTIF($EH$6:EH24,EH25)) -> 18 | EM25: =COUNTIF($EU$7:$FU$14,"19") -> 0 | EN25: =IF(EM25="","",COUNTIF($EM$7:$EM$26,">"&EM25)+COUNTIF($EM$6:EM24,EM25)) -> 18
A26: 20 | B26: =' Musique'!A22 ->  | C26: ='Points Vic '!AL23 ->  | D26: =IF(C26="","",COUNTIF($C$7:$C$26,">"&C26)+COUNTIF($C$6:C25,C26)) ->  | F26: 20 | G26: =' Musique'!AJ22 ->  | H26: =IF(G26="","",IF(G26=0,COUNTIF(G$7:G$26,">0")+COUNTIF(G$6:G25,0),COUNTIF($G$7:$G$26,"<"&G26)+COUNTIF($G$6:G25,G26)-COUNTIF(G$6:G$26,0))) ->  | J26: 20 | K26: =' Musique'!AK22 ->  | L26: =IF(K26="","",IF(K26=0,COUNTIF(K$7:K$26,">0")+COUNTIF(K$6:K25,0),COUNTIF($K$7:$K$26,"<"&K26)+COUNTIF($K$6:K25,K26)-COUNTIF(K$6:K$26,0))) ->  | N26: 20 | O26: =' Musique'!AO22 ->  | P26: =IF(O26="","",COUNTIF($O$7:$O$26,">"&O26)+COUNTIF($O$6:O25,O26)) ->  | R26: 20 | S26: =' Musique'!AQ22 ->  | T26: =IF(S26="","",COUNTIF($S$7:$S$26,">"&S26)+COUNTIF($S$6:S25,S26)) ->  | V26: 20 | W26: =' Musique'!AR22 ->  | X26: =IF(W26="","",COUNTIF($W$7:$W$26,">"&W26)+COUNTIF($W$6:W25,W26)) ->  | Z26: 20 | AA26: =' Musique'!AS22 ->  | AB26: =IF(AA26="","",COUNTIF($AA$7:$AA$26,">"&AA26)+COUNTIF($AA$6:AA25,AA26)) ->  | AD26: 20 | AE26: =' Musique'!AT22 ->  | AF26: =IF(AE26="","",IF(AE26=0,COUNTIF(AE$7:AE$26,">0")+COUNTIF(AE$6:AE25,0),COUNTIF($AE$7:$AE$26,"<"&AE26)+COUNTIF($AE$6:AE25,AE26)-COUNTIF(AE$6:AE$26,0))) ->  | AH26: 20 | AI26: =' Musique'!AU22 ->  | AJ26: =IF(AI26="","",COUNTIF($AI$7:$AI$26,">"&AI26)+COUNTIF($AI$6:AI25,AI26)) ->  | AL26: 20 | AM26: =' Musique'!AV22 ->  | AN26: =IF(AM26="","",COUNTIF($AM$7:$AM$26,">"&AM26)+COUNTIF($AM$6:AM25,AM26)) ->  | AP26: 20 | AQ26: =' Musique'!AW22 ->  | AR26: =IF(AQ26="","",COUNTIF($AQ$7:$AQ$26,">"&AQ26)+COUNTIF($AQ$6:AQ25,AQ26)) ->  | AT26: 20 | AU26: =' Musique'!AX22 ->  | AV26: =IF(AU26="","",IF(AU26=0,COUNTIF(AU$7:AU$26,">0")+COUNTIF(AU$6:AU25,0),COUNTIF($AU$7:$AU$26,"<"&AU26)+COUNTIF($AU$6:AU25,AU26)-COUNTIF(AU$6:AU$26,0))) ->  | AX26: 20 | AY26: =' Musique'!AZ22 ->  | AZ26: =IF(AY26="","",COUNTIF($AY$7:$AY$26,">"&AY26)+COUNTIF($AY$6:AY25,AY26)) ->  | BB26: 20 | BC26: =' Musique'!AV22 ->  | BD26: =IF(BC26="","",COUNTIF($BC$7:$BC$26,">"&BC26)+COUNTIF($BC$6:BC25,BC26)) ->  | BF26: 20 | BG26: =' Musique'!BM22 ->  | BH26: =IF(BG26="","",IF(BG26=0,COUNTIF(BG$7:BG$26,">0")+COUNTIF(BG$6:BG25,0),COUNTIF($BG$7:$BG$26,"<"&BG26)+COUNTIF($BG$6:BG25,BG26)-COUNTIF(BG$6:BG$26,0))) ->  | BJ26: 20 | BK26: =' Musique'!BJ22 ->  | BL26: =IF(BK26="","",COUNTIF($BK$7:$BK$26,">"&BK26)+COUNTIF($BK$6:BK25,BK26)) ->  | BN26: 20 | BO26: =' Musique'!BK22 ->  | BP26: =IF(BO26="","",IF(BO26=0,COUNTIF(BO$7:BO$26,">0")+COUNTIF(BO$6:BO25,0),COUNTIF($BO$7:$BO$26,"<"&BO26)+COUNTIF($BO$6:BO25,BO26)-COUNTIF(BO$6:BO$26,0))) ->  | BR26: 20 | BS26: =' Musique'!BE22 ->  | BT26: =IF(BS26="","",COUNTIF($BS$7:$BS$26,">"&BS26)+COUNTIF($BS$6:BS25,BS26)) ->  | BV26: 20 | BW26: =' Musique'!BP22 ->  | BX26: =IF(BW26="","",COUNTIF($BW$7:$BW$26,">"&BW26)+COUNTIF($BW$6:BW25,BW26)) ->  | BZ26: 20 | CA26: =' Musique'!AL22 ->  | CB26: =IF(CA26="","",COUNTIF($CA$7:$CA$26,">"&CA26)+COUNTIF($CA$6:CA25,CA26)) ->  | CD26: 20 | CE26: =' Musique'!BB22 ->  | CF26: =IF(CE26="","",IF(CE26=0,COUNTIF(CE$7:CE$26,">0")+COUNTIF(CE$6:CE25,0),COUNTIF($CE$7:$CE$26,"<"&CE26)+COUNTIF($CE$6:CE25,CE26)-COUNTIF(CE$6:CE$26,0))) ->  | CH26: 20 | CI26: =' Musique'!BH22 ->  | CJ26: =IF(CI26="","",COUNTIF($CI$7:$CI$26,">"&CI26)+COUNTIF($CI$6:CI25,CI26)) ->  | CL26: 20 | CM26: =' Musique'!BN22 ->  | CN26: =IF(CM26="","",COUNTIF($CM$7:$CM$26,">"&CM26)+COUNTIF($CM$6:CM25,CM26)) ->  | CP26: 20 | CQ26: =AGC!AP23 ->  | CR26: =IF(CQ26="","",COUNTIF($CQ$7:$CQ$26,">"&CQ26)+COUNTIF($CQ$6:CQ25,CQ26)) ->  | CT26: 20 | CU26: =AGC!AQ23 ->  | CV26: =IF(CU26="","",COUNTIF($CU$7:$CU$26,">"&CU26)+COUNTIF($CU$6:CU25,CU26)) ->  | CX26: 20 | CY26: =AGC!AN23 ->  | CZ26: =IF(CY26="","",COUNTIF($CY$7:$CY$26,">"&CY26)+COUNTIF($CY$6:CY25,CY26)) ->  | DH26: =' Musique'!A22 ->  | DI26: =COUNTIF($EU$7:$FU$8,"20") -> 0 | DJ26: =IF(DI26="","",COUNTIF($DI$7:$DI$26,">"&DI26)+COUNTIF($DI$6:DI25,DI26)) -> 19 | DN26: =COUNTIF($EU$7:$FU$9,"20") -> 0 | DO26: =IF(DN26="","",COUNTIF($DN$7:$DN$26,">"&DN26)+COUNTIF($DN$6:DN25,DN26)) -> 19 | DS26: =COUNTIF($EU$7:$FU$10,"20") -> 0 | DT26: =IF(DS26="","",COUNTIF($DS$7:$DS$26,">"&DS26)+COUNTIF($DS$6:DS25,DS26)) -> 19 | DX26: =COUNTIF($EU$7:$FU$11,"20") -> 0 | DY26: =IF(DX26="","",COUNTIF($DX$7:$DX$26,">"&DX26)+COUNTIF($DX$6:DX25,DX26)) -> 19 | EC26: =COUNTIF($EU$7:$FU$12,"20") -> 0 | ED26: =IF(EC26="","",COUNTIF($EC$7:$EC$26,">"&EC26)+COUNTIF($EC$6:EC25,EC26)) -> 19 | EH26: =COUNTIF($EU$7:$FU$13,"20") -> 0 | EI26: =IF(EH26="","",COUNTIF($EH$7:$EH$26,">"&EH26)+COUNTIF($EH$6:EH25,EH26)) -> 19 | EM26: =COUNTIF($EU$7:$FU$14,"20") -> 0 | EN26: =IF(EM26="","",COUNTIF($EM$7:$EM$26,">"&EM26)+COUNTIF($EM$6:EM25,EM26)) -> 19

Sheet Musique
A2: N° | B2: GAINS | C2: DERNIERES PERFORMANCES | E2: P1 | F2: P2 | G2: P3 | H2: P4 | I2: P5 | J2: P6 | K2: Perf<3 | L2: Nb C | M2: % 1 er | N2: % 2 ème | O2: % 3ème | P2: % 4ème | Q2: % 5éme | R2: % 6 ème | S2: % 7ème | T2: % 8et9 ème | U2: % NP | V2: Nb D | W2: P1 | X2: P2 | Y2: P3 | Z2: P4 | AA2: P5 | AB2: P6 | AC2: P1 | AD2: P2 | AE2: P3 | AF2: P4 | AG2: P5 | AH2: P6 | AJ2: ET 3 | AK2: ET 6 | AL2: RC | AN2: Perf<4 | AO2: Dudziack | AQ2: VO | AR2: Bollinger | AS2: CR3DP | AT2: IF 5DP | AU2: CR*IF | AV2: CR/IF | AW2: CR6DP | AX2: IF 6DP | AZ2: CR*IF | BA2: CR/IF | BB2: Moyenne | BE2: LSC | BG2: LIC | BH2: Rcourse | BJ2: Trend | BK2: IR | BM2: Forme | BN2: RCL | BP2: Standart Deviation | BR2: Nbre Courses | BS2: Nbre Victoires | BT2: Nbre Places
A3: =IF(C3="","",1) -> 1 | B3: 59 705 € | C3: 4p 3p (17) 2p 1p 5p 9p 8p 7p 0p (16) 1p 2p 8p | E3: =MID(SUBSTITUTE(SUBSTITUTE(SUBSTITUTE(SUBSTITUTE(SUBSTITUTE(SUBSTITUTE(SUBSTITUTE($C3,"(18) ",""),"(17) ",""),"(16) ",""),"Deb",""),"A","0"),"T","0"),"10","0"),(COLUMN()-4)*3-2,1) -> 4 | F3: =MID(SUBSTITUTE(SUBSTITUTE(SUBSTITUTE(SUBSTITUTE(SUBSTITUTE(SUBSTITUTE(SUBSTITUTE($C3,"(18) ",""),"(17) ",""),"(16) ",""),"Deb",""),"A","0"),"T","0"),"10","0"),(COLUMN()-4)*3-2,1) -> 3 | G3: 2 | H3: 1 | I3: 5 | J3: 9 | K3: =IF(B3="","",COUNTIF(W3:AB3,"> 3")) -> 3 | L3: =IF(B3="","",COUNT(W3:AB3)) -> 6 | M3: =IF(B3="","",(COUNTIF(W3:AB3,"1")/L3)*100) -> 16.66666667 | N3: =IF(B3="","",(COUNTIF(W3:AB3,"2")/L3)*100) -> 16.66666667 | O3: =IF(B3="","",(COUNTIF(W3:AB3,"3")/L3)*100) -> 16.66666667 | P3: =IF(B3="","",(COUNTIF(W3:AB3,"4")/L3)*100) -> 16.66666667 | Q3: =IF(B3="","",(COUNTIF(W3:AB3,"5")/L3)*100) -> 16.66666667 | R3: =IF(B3="","",(COUNTIF(W3:AB3,"6")/L3)*100) -> 0 | S3: =IF(B3="","",(COUNTIF(W3:AB3,"7")/L3)*100) -> 0 | T3: =IF(B3="","",((COUNTIF(W3:AB3,"8")/L3)*100)+((COUNTIF(W3:AB3,"9")/L3)*100)) -> 16.66666667 | U3: =IF(B3="","",((COUNTIF(W3:AB3,"10")/L3))*100) -> 0 | V3: =IF(B3="","",(COUNTIF(E3:J3,"D"))) -> 0 | W3: =IF(ISERROR(IF(E3="D",10,IF(E3="0",10,VALUE(E3))))," ",IF(E3="D",10,IF(E3="0",10,VALUE(E3)))) -> 4 | X3: 3 | Y3: 2 | Z3: 1 | AA3: 5 | AB3: 9 | AC3: =IF(B3="","",(IF($W3<>" ",(1*$W3)*($W3<>""),0))) -> 4 | AD3: =IF(B3="","",(IF($X3<>" ",(1*$X3)*($X3<>""),0))) -> 3 | AE3: =IF(B3="","",(IF($Y3<>" ",(1*$Y3)*($Y3<>""),0))) -> 2 | AF3: =IF(B3="","",(IF($Z3<>" ",(1*$Z3)*($Z3<>""),0))) -> 1 | AG3: =IF(B3="","",(IF($AA3<>" ",(1*$AA3)*($AA3<>""),0))) -> 5 | AH3: =IF(B3="","",(IF($AB3<>" ",(1*AB3)*($AB3<>""),0))) -> 9 | AJ3: =IF(B3="","",STDEVP(W3:AB3)) -> 2.581988897 | AK3: =IF(B3="","",STDEVP(X3:Z3)) -> 0.8164965809 | AL3: =IF(B3="","",AN3/L3) -> 0.5 | AN3: =IF(B3="","",COUNTIF(W3:AB3,"<4")) -> 3 | AO3: =IF(B3="","",IF(ISERROR((AN3/2*AL3)-((L3-AN3)/2*(1-AL3))/SQRT(L3/(4*AL3*(1-AL3)))),0,(AN3/2*AL3)-((L3-AN3)/2*(1-AL3))/SQRT(L3/(4*AL3*(1-AL3))))) -> 0.4438137822 | AQ3: =IF(B3="","",SUM(P3:U3)*(AJ3/AX3)) -> 32.27486122 | AR3: =IF(B3="","",(AVERAGE(W3:AB3)+1)/(AVERAGE(W3:AB3)-1)) -> 1.666666667 | AS3: =IF(B3="","",IF(ISERROR((3*(11-W3)+2*(11-X3)+(11-Y3))/COUNTA(W3:Y3))=TRUE,"",(3*(11-W3)+2*(11-X3)+(11-Y3))/COUNTA(W3:Y3))) -> 15.33333333 | AT3: =IF(B3="","",((AC3+AD3+AE3+AF3+AG3)/(COUNT(AC3:AG3)))) -> 3 | AU3: =IF(B3="","",IF(ISERROR(AS3*AT3)=TRUE,"",AS3*AT3)) -> 46 | AV3: =IF(B3="","",IF(ISERROR(AS3/AT3)=TRUE,"",AS3/AT3)) -> 5.111111111 | AW3: =IF(B3="","",((6*(11-AC3))+(5*(11-AD3))+(4*(11-AE3))+(3*(11-AF3))+(2*(11-AG3))+(11-AH3))/COUNTA(AC3:AH3)) -> 27 | AX3: =IF(B3="","",((AC3+AD3+AE3+AF3+AG3+AH3)/(COUNT(AC3:AH3)))) -> 4 | AZ3: =IF(B3="","",AW3*AX3) -> 108 | BA3: =IF(B3="","",AW3/AX3) -> 6.75 | BB3: =IF(B3="","",HARMEAN(W3:AB3)) -> 2.505800464 | BE3: =IF(B3="","",(SUM(M3:S3)/100)+AJ3) -> 3.415322231 | BG3: =IFERROR(IF(B3="","",(SUM(P3:U3)/100)-AL3)+1," ") -> 1 | BH3: =IF(B3="","",(BE3/BG3)) -> 3.415322231 | BJ3: =IF(B3="","",IF(ISERROR((COUNTA(W3:AB3)/(SUMPRODUCT(COUNTIF(W3:AB3,{"a";"o";"t";"d"})*0.1)+SUMPRODUCT(COUNTIF(W3:AB3,{1;2;3;4;5;6;7;8;9})/({1;2;3;4;5;6;7;8;9}))))+(COUNTA(W3:AB3)/(SUMPRODUCT(COUNTIF(W3:AB3,{"a";"o";"t";"d"})*0.1)+SUMPRODUCT(COUNTIF(W3:AB3,{1;2;3;4;5;6;7;8;9})/({1;2;3;4;5;6;7;8;9}))))+((SUMPRODUCT(COUNTIF(W3,{"a";"o";"t";"d"})*0.1)+SUMPRODUCT(COUNTIF(W3,{1;2;3;4;5;6;7;8;9})/({1;2;3;4;5;6;7;8;9})))+((SUMPRODUCT(COUNTIF(Y3,{"a";"o";"t";"d"})*0.1)+SUMPRODUCT(COUNTIF(Y3,{1;2;3;4;5;6;7;8;9})/({1;2;3;4;5;6;7;8;9}))))+((SUMPRODUCT(COUNTIF(AB3,{"a";"o";"t";"d"})*0.1)+SUMPRODUCT(COUNTIF(AB3,{1;2;3;4;5;6;7;8;9})/({1;2;3;4;5;6;7;8;9}))))))=TRUE,"",(COUNTA(W3:AB3)/(SUMPRODUCT(COUNTIF(W3:AB3,{"a";"o";"t";"d"})*0.1)+SUMPRODUCT(COUNTIF(W3:AB3,{1;2;3;4;5;6;7;8;9})/({1;2;3;4;5;6;7;8;9}))))+(COUNTA(W3:AB3)/(SUMPRODUCT(COUNTIF(W3:AB3,{"a";"o";"t";"d"})*0.1)+SUMPRODUCT(COUNTIF(W3:AB3,{1;2;3;4;5;6;7;8;9})/({1;2;3;4;5;6;7;8;9}))))+((SUMPRODUCT(COUNTIF(W3,{"a";"o";"t";"d"})*0.1)+SUMPRODUCT(COUNTIF(W3,{1;2;3;4;5;6;7;8;9})/({1;2;3;4;5;6;7;8;9})))+((SUMPRODUCT(COUNTIF(Y3,{"a";"o";"t";"d"})*0.1)+SUMPRODUCT(COUNTIF(Y3,{1;2;3;4;5;6;7;8;9})/({1;2;3;4;5;6;7;8;9}))))+((SUMPRODUCT(COUNTIF(AB3,{"a";"o";"t";"d"})*0.1)+SUMPRODUCT(COUNTIF(AB3,{1;2;3;4;5;6;7;8;9})/({1;2;3;4;5;6;7;8;9}))))))) -> 5.872712039 | BK3: =IF(B3="","",IF(ISERROR((AJ3/SUM(M3:O3))*100),0,(AJ3/SUM(M3:Q3))*100)) -> 3.098386677 | BM3: =IF(B3="","",IF(ISERROR((((AC3*5)+(AD3*4)+(AE3*3)+(AF3*2)+AG3)/15)-(((AD3*5)+(AE3*4)+(AF3*3)+(AG3*2)+AH3)/15))+1=TRUE,"",(((AC3*5)+(AD3*4)+(AE3*3)+(AF3*2)+AG3)/15)-(((AD3*5)+(AE3*4)+(AF3*3)+(AG3*2)+AH3)/15))+1) -> 1 | BN3: =(IF(B3="","",(M3-N3)+(N3-O3)+(O3-P3)+(P3-Q3)+(Q3-R3)+(R3-S3))) -> 16.66666667 | BP3: =IF(B3="","",SQRT((BB3-(W3))^2/4)) -> 0.747099768 | BR3: 12 | BS3: 2 | BT3: 3
A4: =IF(C4="","",2) -> 2 | B4: 56 600 € | C4: 1p 0p 0p (17) 1p 6p 4p 9p 2p 2p 2p 0p (16) 7p | E4: 1 | F4: 0 | G4: 0 | H4: 1 | I4: 6 | J4: 4 | K4: =IF(B4="","",COUNTIF(W4:AB4,"> 3")) -> 4 | L4: =IF(B4="","",COUNT(W4:AB4)) -> 6 | M4: =IF(B4="","",(COUNTIF(W4:AB4,"1")/L4)*100) -> 33.33333333 | N4: =IF(B4="","",(COUNTIF(W4:AB4,"2")/L4)*100) -> 0 | O4: =IF(B4="","",(COUNTIF(W4:AB4,"3")/L4)*100) -> 0 | P4: =IF(B4="","",(COUNTIF(W4:AB4,"4")/L4)*100) -> 16.66666667 | Q4: =IF(B4="","",(COUNTIF(W4:AB4,"5")/L4)*100) -> 0 | R4: =IF(B4="","",(COUNTIF(W4:AB4,"6")/L4)*100) -> 16.66666667 | S4: =IF(B4="","",(COUNTIF(W4:AB4,"7")/L4)*100) -> 0 | T4: =IF(B4="","",((COUNTIF(W4:AB4,"8")/L4)*100)+((COUNTIF(W4:AB4,"9")/L4)*100)) -> 0 | U4: =IF(B4="","",((COUNTIF(W4:AB4,"10")/L4))*100) -> 33.33333333 | V4: =IF(B4="","",(COUNTIF(E4:J4,"D"))) -> 0 | W4: 1 | X4: 10 | Y4: 10 | Z4: 1 | AA4: 6 | AB4: 4 | AC4: =IF(B4="","",(IF($W4<>" ",(1*$W4)*($W4<>""),0))) -> 1 | AD4: =IF(B4="","",(IF($X4<>" ",(1*$X4)*($X4<>""),0))) -> 10 | AE4: =IF(B4="","",(IF($Y4<>" ",(1*$Y4)*($Y4<>""),0))) -> 10 | AF4: =IF(B4="","",(IF($Z4<>" ",(1*$Z4)*($Z4<>""),0))) -> 1 | AG4: =IF(B4="","",(IF($AA4<>" ",(1*$AA4)*($AA4<>""),0))) -> 6 | AH4: =IF(B4="","",(IF($AB4<>" ",(1*AB4)*($AB4<>""),0))) -> 4 | AJ4: =IF(B4="","",STDEVP(W4:Y4)) -> 4.242640687 | AK4: =IF(B4="","",STDEVP(X4:Z4)) -> 4.242640687 | AL4: =IF(B4="","",AN4/L4) -> 0.3333333333 | AN4: =IF(B4="","",COUNTIF(W4:AB4,"<4")) -> 2 | AO4: =IF(B4="","",IF(ISERROR((AN4/2*AL4)-((L4-AN4)/2*(1-AL4))/SQRT(L4/(4*AL4*(1-AL4)))),0,(AN4/2*AL4)-((L4-AN4)/2*(1-AL4))/SQRT(L4/(4*AL4*(1-AL4))))) -> -0.1798669059 | AQ4: =IF(B4="","",SUM(P4:U4)*(AJ4/AX4)) -> 53.03300859 | AR4: =IF(B4="","",(AVERAGE(W4:AB4)+1)/(AVERAGE(W4:AB4)-1)) -> 1.461538462 | AS4: =IF(B4="","",IF(ISERROR((3*(11-W4)+2*(11-X4)+(11-Y4))/COUNTA(W4:Y4))=TRUE,"",(3*(11-W4)+2*(11-X4)+(11-Y4))/COUNTA(W4:Y4))) -> 11 | AT4: =IF(B4="","",((AC4+AD4+AE4+AF4+AG4)/(COUNT(AC4:AG4)))) -> 5.6 | AU4: =IF(B4="","",IF(ISERROR(AS4*AT4)=TRUE,"",AS4*AT4)) -> 61.6 | AV4: =IF(B4="","",IF(ISERROR(AS4/AT4)=TRUE,"",AS4/AT4)) -> 1.964285714 | AW4: =IF(B4="","",((6*(11-AC4))+(5*(11-AD4))+(4*(11-AE4))+(3*(11-AF4))+(2*(11-AG4))+(11-AH4))/COUNTA(AC4:AH4)) -> 19.33333333 | AX4: =IF(B4="","",((AC4+AD4+AE4+AF4+AG4+AH4)/(COUNT(AC4:AH4)))) -> 5.333333333 | AZ4: =IF(B4="","",AW4*AX4) -> 103.1111111 | BA4: =IF(B4="","",AW4/AX4) -> 3.625 | BB4: =IF(B4="","",HARMEAN(W4:AB4)) -> 2.292993631 | BE4: =IF(B4="","",(SUM(M4:S4)/100)+AJ4) -> 4.909307354 | BG4: 1.333333333 | BH4: =IF(B4="","",(BE4/BG4)) -> 3.681980515 | BJ4: =IF(B4="","",IF(ISERROR((COUNTA(W4:AB4)/(SUMPRODUCT(COUNTIF(W4:AB4,{"a";"o";"t";"d"})*0.1)+SUMPRODUCT(COUNTIF(W4:AB4,{1;2;3;4;5;6;7;8;9})/({1;2;3;4;5;6;7;8;9}))))+(COUNTA(W4:AB4)/(SUMPRODUCT(COUNTIF(W4:AB4,{"a";"o";"t";"d"})*0.1)+SUMPRODUCT(COUNTIF(W4:AB4,{1;2;3;4;5;6;7;8;9})/({1;2;3;4;5;6;7;8;9}))))+((SUMPRODUCT(COUNTIF(W4,{"a";"o";"t";"d"})*0.1)+SUMPRODUCT(COUNTIF(W4,{1;2;3;4;5;6;7;8;9})/({1;2;3;4;5;6;7;8;9})))+((SUMPRODUCT(COUNTIF(Y4,{"a";"o";"t";"d"})*0.1)+SUMPRODUCT(COUNTIF(Y4,{1;2;3;4;5;6;7;8;9})/({1;2;3;4;5;6;7;8;9}))))+((SUMPRODUCT(COUNTIF(AB4,{"a";"o";"t";"d"})*0.1)+SUMPRODUCT(COUNTIF(AB4,{1;2;3;4;5;6;7;8;9})/({1;2;3;4;5;6;7;8;9}))))))=TRUE,"",(COUNTA(W4:AB4)/(SUMPRODUCT(COUNTIF(W4:AB4,{"a";"o";"t";"d"})*0.1)+SUMPRODUCT(COUNTIF(W4:AB4,{1;2;3;4;5;6;7;8;9})/({1;2;3;4;5;6;7;8;9}))))+(COUNTA(W4:AB4)/(SUMPRODUCT(COUNTIF(W4:AB4,{"a";"o";"t";"d"})*0.1)+SUMPRODUCT(COUNTIF(W4:AB4,{1;2;3;4;5;6;7;8;9})/({1;2;3;4;5;6;7;8;9}))))+((SUMPRODUCT(COUNTIF(W4,{"a";"o";"t";"d"})*0.1)+SUMPRODUCT(COUNTIF(W4,{1;2;3;4;5;6;7;8;9})/({1;2;3;4;5;6;7;8;9})))+((SUMPRODUCT(COUNTIF(Y4,{"a";"o";"t";"d"})*0.1)+SUMPRODUCT(COUNTIF(Y4,{1;2;3;4;5;6;7;8;9})/({1;2;3;4;5;6;7;8;9}))))+((SUMPRODUCT(COUNTIF(AB4,{"a";"o";"t";"d"})*0.1)+SUMPRODUCT(COUNTIF(AB4,{1;2;3;4;5;6;7;8;9})/({1;2;3;4;5;6;7;8;9}))))))) -> 6.215517241 | BK4: =IF(B4="","",IF(ISERROR((AJ4/SUM(M4:O4))*100),0,(AJ4/SUM(M4:Q4))*100)) -> 8.485281374 | BM4: =IF(B4="","",IF(ISERROR((((AC4*5)+(AD4*4)+(AE4*3)+(AF4*2)+AG4)/15)-(((AD4*5)+(AE4*4)+(AF4*3)+(AG4*2)+AH4)/15))+1=TRUE,"",(((AC4*5)+(AD4*4)+(AE4*3)+(AF4*2)+AG4)/15)-(((AD4*5)+(AE4*4)+(AF4*3)+(AG4*2)+AH4)/15))+1) -> -0.7333333333 | BN4: =(IF(B4="","",(M4-N4)+(N4-O4)+(O4-P4)+(P4-Q4)+(Q4-R4)+(R4-S4))) -> 33.33333333 | BP4: =IF(B4="","",SQRT((BB4-(W4))^2/4)) -> 0.6464968153 | BR4: 12 | BS4: 2 | BT4: 3
A5: =IF(C5="","",3) -> 3 | B5: 47 685 € | C5: (17) 6p 1p 9p 9p 2p 1p 5p 7p 4p 4p 6p (16) 6p | E5: 6 | F5: 1 | G5: 9 | H5: 9 | I5: 2 | J5: 1 | K5: 3 | L5: 6 | M5: 33.33333333 | N5: 16.66666667 | O5: 0 | P5: 0 | Q5: 0 | R5: 16.66666667 | S5: 0 | T5: 33.33333333 | U5: 0 | V5: 0 | W5: 6 | X5: 1 | Y5: 9 | Z5: 9 | AA5: 2 | AB5: 1 | AC5: 6 | AD5: 1 | AE5: 9 | AF5: 9 | AG5: 2 | AH5: 1 | AJ5: 3.299831646 | AK5: 3.771236166 | AL5: 0.5 | AN5: 3 | AO5: 0.4438137822 | AQ5: 35.35533906 | AR5: 1.545454545 | AS5: 12.33333333 | AT5: 5.4 | AU5: 66.6 | AV5: 2.283950617 | AW5: 20.33333333 | AX5: 4.666666667 | AZ5: 94.88888889 | BA5: 4.357142857 | BB5: 2.076923077 | BE5: 3.966498312 | BG5: 1 | BH5: =IF(B5="","",(BE5/BG5)) -> 3.966498312 | BJ5: =IF(B5="","",IF(ISERROR((COUNTA(W5:AB5)/(SUMPRODUCT(COUNTIF(W5:AB5,{"a";"o";"t";"d"})*0.1)+SUMPRODUCT(COUNTIF(W5:AB5,{1;2;3;4;5;6;7;8;9})/({1;2;3;4;5;6;7;8;9}))))+(COUNTA(W5:AB5)/(SUMPRODUCT(COUNTIF(W5:AB5,{"a";"o";"t";"d"})*0.1)+SUMPRODUCT(COUNTIF(W5:AB5,{1;2;3;4;5;6;7;8;9})/({1;2;3;4;5;6;7;8;9}))))+((SUMPRODUCT(COUNTIF(W5,{"a";"o";"t";"d"})*0.1)+SUMPRODUCT(COUNTIF(W5,{1;2;3;4;5;6;7;8;9})/({1;2;3;4;5;6;7;8;9})))+((SUMPRODUCT(COUNTIF(Y5,{"a";"o";"t";"d"})*0.1)+SUMPRODUCT(COUNTIF(Y5,{1;2;3;4;5;6;7;8;9})/({1;2;3;4;5;6;7;8;9}))))+((SUMPRODUCT(COUNTIF(AB5,{"a";"o";"t";"d"})*0.1)+SUMPRODUCT(COUNTIF(AB5,{1;2;3;4;5;6;7;8;9})/({1;2;3;4;5;6;7;8;9}))))))=TRUE,"",(COUNTA(W5:AB5)/(SUMPRODUCT(COUNTIF(W5:AB5,{"a";"o";"t";"d"})*0.1)+SUMPRODUCT(COUNTIF(W5:AB5,{1;2;3;4;5;6;7;8;9})/({1;2;3;4;5;6;7;8;9}))))+(COUNTA(W5:AB5)/(SUMPRODUCT(COUNTIF(W5:AB5,{"a";"o";"t";"d"})*0.1)+SUMPRODUCT(COUNTIF(W5:AB5,{1;2;3;4;5;6;7;8;9})/({1;2;3;4;5;6;7;8;9}))))+((SUMPRODUCT(COUNTIF(W5,{"a";"o";"t";"d"})*0.1)+SUMPRODUCT(COUNTIF(W5,{1;2;3;4;5;6;7;8;9})/({1;2;3;4;5;6;7;8;9})))+((SUMPRODUCT(COUNTIF(Y5,{"a";"o";"t";"d"})*0.1)+SUMPRODUCT(COUNTIF(Y5,{1;2;3;4;5;6;7;8;9})/({1;2;3;4;5;6;7;8;9}))))+((SUMPRODUCT(COUNTIF(AB5,{"a";"o";"t";"d"})*0.1)+SUMPRODUCT(COUNTIF(AB5,{1;2;3;4;5;6;7;8;9})/({1;2;3;4;5;6;7;8;9}))))))) -> 5.431623932 | BK5: 6.599663291 | BM5: 1.533333333 | BN5: 33.33333333 | BP5: 1.961538462 | BR5: 12 | BS5: 2 | BT5: 1
A6: =IF(C6="","",4) -> 4 | B6: 33 800 € | C6: 0p 3p (17) 6p 2p 0p 3p 3p 1p 4p 3p | E6: 0 | F6: 3 | G6: 6 | H6: 2 | I6: 0 | J6: 3 | K6: 3 | L6: 6 | M6: 0 | N6: 16.66666667 | O6: 33.33333333 | P6: 0 | Q6: 0 | R6: 16.66666667 | S6: 0 | T6: 0 | U6: 33.33333333 | V6: 0 | W6: 10 | X6: 3 | Y6: 6 | Z6: 2 | AA6: 10 | AB6: 3 | AC6: 10 | AD6: 3 | AE6: 6 | AF6: 2 | AG6: 10 | AH6: 3 | AJ6: 2.867441756 | AK6: 1.699673171 | AL6: 0.5 | AN6: 3 | AO6: 0.4438137822 | AQ6: 25.30095667 | AR6: 1.428571429 | AS6: 8 | AT6: 6.2 | AU6: 49.6 | AV6: 1.290322581 | AW6: 17.16666667 | AX6: 5.666666667 | AZ6: 97.27777778 | BA6: 3.029411765 | BB6: 3.913043478 | BE6: 3.534108422 | BG6: 1 | BH6: =IF(B6="","",(BE6/BG6)) -> 3.534108422 | BJ6: =IF(B6="","",IF(ISERROR((COUNTA(W6:AB6)/(SUMPRODUCT(COUNTIF(W6:AB6,{"a";"o";"t";"d"})*0.1)+SUMPRODUCT(COUNTIF(W6:AB6,{1;2;3;4;5;6;7;8;9})/({1;2;3;4;5;6;7;8;9}))))+(COUNTA(W6:AB6)/(SUMPRODUCT(COUNTIF(W6:AB6,{"a";"o";"t";"d"})*0.1)+SUMPRODUCT(COUNTIF(W6:AB6,{1;2;3;4;5;6;7;8;9})/({1;2;3;4;5;6;7;8;9}))))+((SUMPRODUCT(COUNTIF(W6,{"a";"o";"t";"d"})*0.1)+SUMPRODUCT(COUNTIF(W6,{1;2;3;4;5;6;7;8;9})/({1;2;3;4;5;6;7;8;9})))+((SUMPRODUCT(COUNTIF(Y6,{"a";"o";"t";"d"})*0.1)+SUMPRODUCT(COUNTIF(Y6,{1;2;3;4;5;6;7;8;9})/({1;2;3;4;5;6;7;8;9}))))+((SUMPRODUCT(COUNTIF(AB6,{"a";"o";"t";"d"})*0.1)+SUMPRODUCT(COUNTIF(AB6,{1;2;3;4;5;6;7;8;9})/({1;2;3;4;5;6;7;8;9}))))))=TRUE,"",(COUNTA(W6:AB6)/(SUMPRODUCT(COUNTIF(W6:AB6,{"a";"o";"t";"d"})*0.1)+SUMPRODUCT(COUNTIF(W6:AB6,{1;2;3;4;5;6;7;8;9})/({1;2;3;4;5;6;7;8;9}))))+(COUNTA(W6:AB6)/(SUMPRODUCT(COUNTIF(W6:AB6,{"a";"o";"t";"d"})*0.1)+SUMPRODUCT(COUNTIF(W6:AB6,{1;2;3;4;5;6;7;8;9})/({1;2;3;4;5;6;7;8;9}))))+((SUMPRODUCT(COUNTIF(W6,{"a";"o";"t";"d"})*0.1)+SUMPRODUCT(COUNTIF(W6,{1;2;3;4;5;6;7;8;9})/({1;2;3;4;5;6;7;8;9})))+((SUMPRODUCT(COUNTIF(Y6,{"a";"o";"t";"d"})*0.1)+SUMPRODUCT(COUNTIF(Y6,{1;2;3;4;5;6;7;8;9})/({1;2;3;4;5;6;7;8;9}))))+((SUMPRODUCT(COUNTIF(AB6,{"a";"o";"t";"d"})*0.1)+SUMPRODUCT(COUNTIF(AB6,{1;2;3;4;5;6;7;8;9})/({1;2;3;4;5;6;7;8;9}))))))) -> 9.5 | BK6: 5.734883511 | BM6: 2.733333333 | BN6: 0 | BP6: 3.043478261 | BR6: 10 | BS6: 1 | BT6: 5
A7: =IF(C7="","",5) -> 5 | B7: 40 050 € | C7: 9p (17) 2p 6p 2p 1p 3p 1p 2p 0p | E7: 9 | F7: 2 | G7: 6 | H7: 2 | I7: 1 | J7: 3 | K7: 2 | L7: 6 | M7: 16.66666667 | N7: 33.33333333 | O7: 16.66666667 | P7: 0 | Q7: 0 | R7: 16.66666667 | S7: 0 | T7: 16.66666667 | U7: 0 | V7: 0 | W7: 9 | X7: 2 | Y7: 6 | Z7: 2 | AA7: 1 | AB7: 3 | AC7: 9 | AD7: 2 | AE7: 6 | AF7: 2 | AG7: 1 | AH7: 3 | AJ7: 2.867441756 | AK7: 1.885618083 | AL7: 0.6666666667 | AN7: 4 | AO7: 1.205033274 | AQ7: 24.93427614 | AR7: 1.705882353 | AS7: 9.666666667 | AT7: 4 | AU7: 38.66666667 | AV7: 2.416666667 | AW7: 22 | AX7: 3.833333333 | AZ7: 84.33333333 | BA7: 5.739130435 | BB7: 2.29787234 | BE7: 3.700775089 | BG7: 0.6666666667 | BH7: =IF(B7="","",(BE7/BG7)) -> 5.551162634 | BJ7: =IF(B7="","",IF(ISERROR((COUNTA(W7:AB7)/(SUMPRODUCT(COUNTIF(W7:AB7,{"a";"o";"t";"d"})*0.1)+SUMPRODUCT(COUNTIF(W7:AB7,{1;2;3;4;5;6;7;8;9})/({1;2;3;4;5;6;7;8;9}))))+(COUNTA(W7:AB7)/(SUMPRODUCT(COUNTIF(W7:AB7,{"a";"o";"t";"d"})*0.1)+SUMPRODUCT(COUNTIF(W7:AB7,{1;2;3;4;5;6;7;8;9})/({1;2;3;4;5;6;7;8;9}))))+((SUMPRODUCT(COUNTIF(W7,{"a";"o";"t";"d"})*0.1)+SUMPRODUCT(COUNTIF(W7,{1;2;3;4;5;6;7;8;9})/({1;2;3;4;5;6;7;8;9})))+((SUMPRODUCT(COUNTIF(Y7,{"a";"o";"t";"d"})*0.1)+SUMPRODUCT(COUNTIF(Y7,{1;2;3;4;5;6;7;8;9})/({1;2;3;4;5;6;7;8;9}))))+((SUMPRODUCT(COUNTIF(AB7,{"a";"o";"t";"d"})*0.1)+SUMPRODUCT(COUNTIF(AB7,{1;2;3;4;5;6;7;8;9})/({1;2;3;4;5;6;7;8;9}))))))=TRUE,"",(COUNTA(W7:AB7)/(SUMPRODUCT(COUNTIF(W7:AB7,{"a";"o";"t";"d"})*0.1)+SUMPRODUCT(COUNTIF(W7:AB7,{1;2;3;4;5;6;7;8;9})/({1;2;3;4;5;6;7;8;9}))))+(COUNTA(W7:AB7)/(SUMPRODUCT(COUNTIF(W7:AB7,{"a";"o";"t";"d"})*0.1)+SUMPRODUCT(COUNTIF(W7:AB7,{1;2;3;4;5;6;7;8;9})/({1;2;3;4;5;6;7;8;9}))))+((SUMPRODUCT(COUNTIF(W7,{"a";"o";"t";"d"})*0.1)+SUMPRODUCT(COUNTIF(W7,{1;2;3;4;5;6;7;8;9})/({1;2;3;4;5;6;7;8;9})))+((SUMPRODUCT(COUNTIF(Y7,{"a";"o";"t";"d"})*0.1)+SUMPRODUCT(COUNTIF(Y7,{1;2;3;4;5;6;7;8;9})/({1;2;3;4;5;6;7;8;9}))))+((SUMPRODUCT(COUNTIF(AB7,{"a";"o";"t";"d"})*0.1)+SUMPRODUCT(COUNTIF(AB7,{1;2;3;4;5;6;7;8;9})/({1;2;3;4;5;6;7;8;9}))))))) -> 5.206855792 | BK7: 4.301162634 | BM7: 3.066666667 | BN7: 16.66666667 | BP7: 3.35106383 | BR7: 9 | BS7: 2 | BT7: 4
A8: =IF(C8="","",6) -> 6 | B8: 24 900 € | C8: 9p 1p 0p 2p (17) 5p 3p 1p 3p | E8: 9 | F8: 1 | G8: 0 | H8: 2 | I8: 5 | J8: 3 | K8: 3 | L8: 6 | M8: 16.66666667 | N8: 16.66666667 | O8: 16.66666667 | P8: 0 | Q8: 16.66666667 | R8: 0 | S8: 0 | T8: 16.66666667 | U8: 16.66666667 | V8: 0 | W8: 9 | X8: 1 | Y8: 10 | Z8: 2 | AA8: 5 | AB8: 3 | AC8: 9 | AD8: 1 | AE8: 10 | AF8: 2 | AG8: 5 | AH8: 3 | AJ8: 4.027681991 | AK8: 4.027681991 | AL8: 0.5 | AN8: 3 | AO8: 0.4438137822 | AQ8: 40.27681991 | AR8: 1.5 | AS8: 9 | AT8: 5.4 | AU8: 48.6 | AV8: 1.666666667 | AW8: 18.83333333 | AX8: 5 | AZ8: 94.16666667 | BA8: 3.766666667 | BB8: 2.673267327 | BE8: 4.694348658 | BG8: 1 | BH8: =IF(B8="","",(BE8/BG8)) -> 4.694348658 | BJ8: =IF(B8="","",IF(ISERROR((COUNTA(W8:AB8)/(SUMPRODUCT(COUNTIF(W8:AB8,{"a";"o";"t";"d"})*0.1)+SUMPRODUCT(COUNTIF(W8:AB8,{1;2;3;4;5;6;7;8;9})/({1;2;3;4;5;6;7;8;9}))))+(COUNTA(W8:AB8)/(SUMPRODUCT(COUNTIF(W8:AB8,{"a";"o";"t";"d"})*0.1)+SUMPRODUCT(COUNTIF(W8:AB8,{1;2;3;4;5;6;7;8;9})/({1;2;3;4;5;6;7;8;9}))))+((SUMPRODUCT(COUNTIF(W8,{"a";"o";"t";"d"})*0.1)+SUMPRODUCT(COUNTIF(W8,{1;2;3;4;5;6;7;8;9})/({1;2;3;4;5;6;7;8;9})))+((SUMPRODUCT(COUNTIF(Y8,{"a";"o";"t";"d"})*0.1)+SUMPRODUCT(COUNTIF(Y8,{1;2;3;4;5;6;7;8;9})/({1;2;3;4;5;6;7;8;9}))))+((SUMPRODUCT(COUNTIF(AB8,{"a";"o";"t";"d"})*0.1)+SUMPRODUCT(COUNTIF(AB8,{1;2;3;4;5;6;7;8;9})/({1;2;3;4;5;6;7;8;9}))))))=TRUE,"",(COUNTA(W8:AB8)/(SUMPRODUCT(COUNTIF(W8:AB8,{"a";"o";"t";"d"})*0.1)+SUMPRODUCT(COUNTIF(W8:AB8,{1;2;3;4;5;6;7;8;9})/({1;2;3;4;5;6;7;8;9}))))+(COUNTA(W8:AB8)/(SUMPRODUCT(COUNTIF(W8:AB8,{"a";"o";"t";"d"})*0.1)+SUMPRODUCT(COUNTIF(W8:AB8,{1;2;3;4;5;6;7;8;9})/({1;2;3;4;5;6;7;8;9}))))+((SUMPRODUCT(COUNTIF(W8,{"a";"o";"t";"d"})*0.1)+SUMPRODUCT(COUNTIF(W8,{1;2;3;4;5;6;7;8;9})/({1;2;3;4;5;6;7;8;9})))+((SUMPRODUCT(COUNTIF(Y8,{"a";"o";"t";"d"})*0.1)+SUMPRODUCT(COUNTIF(Y8,{1;2;3;4;5;6;7;8;9})/({1;2;3;4;5;6;7;8;9}))))+((SUMPRODUCT(COUNTIF(AB8,{"a";"o";"t";"d"})*0.1)+SUMPRODUCT(COUNTIF(AB8,{1;2;3;4;5;6;7;8;9})/({1;2;3;4;5;6;7;8;9}))))))) -> 6.040299367 | BK8: 6.041522987 | BM8: 2.6 | BN8: 16.66666667 | BP8: 3.163366337 | BR8: 8 | BS8: 2 | BT8: 3
A9: =IF(C9="","",7) -> 7 | B9: 51 200 € | C9: 0p (17) 4p 0p 3p 6p 1p 1p 4p 3p 7p 5p 7p | E9: 0 | F9: 4 | G9: 0 | H9: 3 | I9: 6 | J9: 1 | K9: 4 | L9: 6 | M9: 16.66666667 | N9: 0 | O9: 16.66666667 | P9: 16.66666667 | Q9: 0 | R9: 16.66666667 | S9: 0 | T9: 0 | U9: 33.33333333 | V9: 0 | W9: 10 | X9: 4 | Y9: 10 | Z9: 3 | AA9: 6 | AB9: 1 | AC9: 10 | AD9: 4 | AE9: 10 | AF9: 3 | AG9: 6 | AH9: 1 | AJ9: 2.828427125 | AK9: 3.091206165 | AL9: 0.3333333333 | AN9: 2 | AO9: -0.1798669059 | AQ9: 33.27561323 | AR9: 1.428571429 | AS9: 6 | AT9: 6.6 | AU9: 39.6 | AV9: 0.9090909091 | AW9: 14.83333333 | AX9: 5.666666667 | AZ9: 84.05555556 | BA9: 2.617647059 | BB9: 3.076923077 | BE9: 3.495093791 | BG9: 1.333333333 | BH9: 2.621320344 | BJ9: =IF(B9="","",IF(ISERROR((COUNTA(W9:AB9)/(SUMPRODUCT(COUNTIF(W9:AB9,{"a";"o";"t";"d"})*0.1)+SUMPRODUCT(COUNTIF(W9:AB9,{1;2;3;4;5;6;7;8;9})/({1;2;3;4;5;6;7;8;9}))))+(COUNTA(W9:AB9)/(SUMPRODUCT(COUNTIF(W9:AB9,{"a";"o";"t";"d"})*0.1)+SUMPRODUCT(COUNTIF(W9:AB9,{1;2;3;4;5;6;7;8;9})/({1;2;3;4;5;6;7;8;9}))))+((SUMPRODUCT(COUNTIF(W9,{"a";"o";"t";"d"})*0.1)+SUMPRODUCT(COUNTIF(W9,{1;2;3;4;5;6;7;8;9})/({1;2;3;4;5;6;7;8;9})))+((SUMPRODUCT(COUNTIF(Y9,{"a";"o";"t";"d"})*0.1)+SUMPRODUCT(COUNTIF(Y9,{1;2;3;4;5;6;7;8;9})/({1;2;3;4;5;6;7;8;9}))))+((SUMPRODUCT(COUNTIF(AB9,{"a";"o";"t";"d"})*0.1)+SUMPRODUCT(COUNTIF(AB9,{1;2;3;4;5;6;7;8;9})/({1;2;3;4;5;6;7;8;9}))))))=TRUE,"",(COUNTA(W9:AB9)/(SUMPRODUCT(COUNTIF(W9:AB9,{"a";"o";"t";"d"})*0.1)+SUMPRODUCT(COUNTIF(W9:AB9,{1;2;3;4;5;6;7;8;9})/({1;2;3;4;5;6;7;8;9}))))+(COUNTA(W9:AB9)/(SUMPRODUCT(COUNTIF(W9:AB9,{"a";"o";"t";"d"})*0.1)+SUMPRODUCT(COUNTIF(W9:AB9,{1;2;3;4;5;6;7;8;9})/({1;2;3;4;5;6;7;8;9}))))+((SUMPRODUCT(COUNTIF(W9,{"a";"o";"t";"d"})*0.1)+SUMPRODUCT(COUNTIF(W9,{1;2;3;4;5;6;7;8;9})/({1;2;3;4;5;6;7;8;9})))+((SUMPRODUCT(COUNTIF(Y9,{"a";"o";"t";"d"})*0.1)+SUMPRODUCT(COUNTIF(Y9,{1;2;3;4;5;6;7;8;9})/({1;2;3;4;5;6;7;8;9}))))+((SUMPRODUCT(COUNTIF(AB9,{"a";"o";"t";"d"})*0.1)+SUMPRODUCT(COUNTIF(AB9,{1;2;3;4;5;6;7;8;9})/({1;2;3;4;5;6;7;8;9}))))))) -> 7.857142857 | BK9: 5.656854249 | BM9: 2.733333333 | BN9: 16.66666667 | BP9: 3.461538462 | BR9: 12 | BS9: 2 | BT9: 2
A10: =IF(C10="","",8) -> 8 | B10: 34 600 € | C10: 1p (17) 8p 5p 7p 2p 5p 6p 1p 3p (16) 0p | E10: 1 | F10: 8 | G10: 5 | H10: 7 | I10: 2 | J10: 5 | K10: 4 | L10: 6 | M10: 16.66666667 | N10: 16.66666667 | O10: 0 | P10: 0 | Q10: 33.33333333 | R10: 0 | S10: 16.66666667 | T10: 16.66666667 | U10: 0 | V10: 0 | W10: 1 | X10: 8 | Y10: 5 | Z10: 7 | AA10: 2 | AB10: 5 | AC10: 1 | AD10: 8 | AE10: 5 | AF10: 7 | AG10: 2 | AH10: 5 | AJ10: 2.867441756 | AK10: 1.247219129 | AL10: 0.3333333333 | AN10: 2 | AO10: -0.1798669059 | AQ10: 40.96345365 | AR10: 1.545454545 | AS10: 14 | AT10: 4.6 | AU10: 64.4 | AV10: 3.043478261 | AW10: 22.5 | AX10: 4.666666667 | AZ10: 105 | BA10: 4.821428571 | BB10: 2.767710049 | BE10: 3.700775089 | BG10: 1.333333333 | BH10: 2.775581317 | BJ10: =IF(B10="","",IF(ISERROR((COUNTA(W10:AB10)/(SUMPRODUCT(COUNTIF(W10:AB10,{"a";"o";"t";"d"})*0.1)+SUMPRODUCT(COUNTIF(W10:AB10,{1;2;3;4;5;6;7;8;9})/({1;2;3;4;5;6;7;8;9}))))+(COUNTA(W10:AB10)/(SUMPRODUCT(COUNTIF(W10:AB10,{"a";"o";"t";"d"})*0.1)+SUMPRODUCT(COUNTIF(W10:AB10,{1;2;3;4;5;6;7;8;9})/({1;2;3;4;5;6;7;8;9}))))+((SUMPRODUCT(COUNTIF(W10,{"a";"o";"t";"d"})*0.1)+SUMPRODUCT(COUNTIF(W10,{1;2;3;4;5;6;7;8;9})/({1;2;3;4;5;6;7;8;9})))+((SUMPRODUCT(COUNTIF(Y10,{"a";"o";"t";"d"})*0.1)+SUMPRODUCT(COUNTIF(Y10,{1;2;3;4;5;6;7;8;9})/({1;2;3;4;5;6;7;8;9}))))+((SUMPRODUCT(COUNTIF(AB10,{"a";"o";"t";"d"})*0.1)+SUMPRODUCT(COUNTIF(AB10,{1;2;3;4;5;6;7;8;9})/({1;2;3;4;5;6;7;8;9}))))))=TRUE,"",(COUNTA(W10:AB10)/(SUMPRODUCT(COUNTIF(W10:AB10,{"a";"o";"t";"d"})*0.1)+SUMPRODUCT(COUNTIF(W10:AB10,{1;2;3;4;5;6;7;8;9})/({1;2;3;4;5;6;7;8;9}))))+(COUNTA(W10:AB10)/(SUMPRODUCT(COUNTIF(W10:AB10,{"a";"o";"t";"d"})*0.1)+SUMPRODUCT(COUNTIF(W10:AB10,{1;2;3;4;5;6;7;8;9})/({1;2;3;4;5;6;7;8;9}))))+((SUMPRODUCT(COUNTIF(W10,{"a";"o";"t";"d"})*0.1)+SUMPRODUCT(COUNTIF(W10,{1;2;3;4;5;6;7;8;9})/({1;2;3;4;5;6;7;8;9})))+((SUMPRODUCT(COUNTIF(Y10,{"a";"o";"t";"d"})*0.1)+SUMPRODUCT(COUNTIF(Y10,{1;2;3;4;5;6;7;8;9})/({1;2;3;4;5;6;7;8;9}))))+((SUMPRODUCT(COUNTIF(AB10,{"a";"o";"t";"d"})*0.1)+SUMPRODUCT(COUNTIF(AB10,{1;2;3;4;5;6;7;8;9})/({1;2;3;4;5;6;7;8;9}))))))) -> 6.935420099 | BK10: 4.301162634 | BM10: -0.4666666667 | BN10: 0 | BP10: 0.8838550247 | BR10: 10 | BS10: 2 | BT10: 2
A11: =IF(C11="","",9) -> 9 | B11: 35 965 € | C11: 6p 0p 4p 5p (17) 2p 3p 2p 5p 2p 3p 2p (16) 4p | E11: 6 | F11: 0 | G11: 4 | H11: 5 | I11: 2 | J11: 3 | K11: 4 | L11: 6 | M11: 0 | N11: 16.66666667 | O11: 16.66666667 | P11: 16.66666667 | Q11: 16.66666667 | R11: 16.66666667 | S11: 0 | T11: 0 | U11: 16.66666667 | V11: 0 | W11: 6 | X11: 10 | Y11: 4 | Z11: 5 | AA11: 2 | AB11: 3 | AC11: 6 | AD11: 10 | AE11: 4 | AF11: 5 | AG11: 2 | AH11: 3 | AJ11: 2.494438258 | AK11: 2.624669291 | AL11: 0.3333333333 | AN11: 2 | AO11: -0.1798669059 | AQ11: 33.25917677 | AR11: 1.5 | AS11: 8 | AT11: 5.4 | AU11: 43.2 | AV11: 1.481481481 | AW11: 17.83333333 | AX11: 5 | AZ11: 89.16666667 | BA11: 3.566666667 | BB11: 3.870967742 | BE11: 3.327771591 | BG11: 1.333333333 | BH11: 2.495828693 | BJ11: =IF(B11="","",IF(ISERROR((COUNTA(W11:AB11)/(SUMPRODUCT(COUNTIF(W11:AB11,{"a";"o";"t";"d"})*0.1)+SUMPRODUCT(COUNTIF(W11:AB11,{1;2;3;4;5;6;7;8;9})/({1;2;3;4;5;6;7;8;9}))))+(COUNTA(W11:AB11)/(SUMPRODUCT(COUNTIF(W11:AB11,{"a";"o";"t";"d"})*0.1)+SUMPRODUCT(COUNTIF(W11:AB11,{1;2;3;4;5;6;7;8;9})/({1;2;3;4;5;6;7;8;9}))))+((SUMPRODUCT(COUNTIF(W11,{"a";"o";"t";"d"})*0.1)+SUMPRODUCT(COUNTIF(W11,{1;2;3;4;5;6;7;8;9})/({1;2;3;4;5;6;7;8;9})))+((SUMPRODUCT(COUNTIF(Y11,{"a";"o";"t";"d"})*0.1)+SUMPRODUCT(COUNTIF(Y11,{1;2;3;4;5;6;7;8;9})/({1;2;3;4;5;6;7;8;9}))))+((SUMPRODUCT(COUNTIF(AB11,{"a";"o";"t";"d"})*0.1)+SUMPRODUCT(COUNTIF(AB11,{1;2;3;4;5;6;7;8;9})/({1;2;3;4;5;6;7;8;9}))))))=TRUE,"",(COUNTA(W11:AB11)/(SUMPRODUCT(COUNTIF(W11:AB11,{"a";"o";"t";"d"})*0.1)+SUMPRODUCT(COUNTIF(W11:AB11,{1;2;3;4;5;6;7;8;9})/({1;2;3;4;5;6;7;8;9}))))+(COUNTA(W11:AB11)/(SUMPRODUCT(COUNTIF(W11:AB11,{"a";"o";"t";"d"})*0.1)+SUMPRODUCT(COUNTIF(W11:AB11,{1;2;3;4;5;6;7;8;9})/({1;2;3;4;5;6;7;8;9}))))+((SUMPRODUCT(COUNTIF(W11,{"a";"o";"t";"d"})*0.1)+SUMPRODUCT(COUNTIF(W11,{1;2;3;4;5;6;7;8;9})/({1;2;3;4;5;6;7;8;9})))+((SUMPRODUCT(COUNTIF(Y11,{"a";"o";"t";"d"})*0.1)+SUMPRODUCT(COUNTIF(Y11,{1;2;3;4;5;6;7;8;9})/({1;2;3;4;5;6;7;8;9}))))+((SUMPRODUCT(COUNTIF(AB11,{"a";"o";"t";"d"})*0.1)+SUMPRODUCT(COUNTIF(AB11,{1;2;3;4;5;6;7;8;9})/({1;2;3;4;5;6;7;8;9}))))))) -> 9.025862069 | BK11: 3.741657387 | BM11: 1.4 | BN11: 0 | BP11: 1.064516129 | BR11: 13 | BS11: 0 | BT11: 6
A12: =IF(C12="","",10) -> 10 | B12: 38 480 € | C12: 2p 8p 1p 1p 5p (17) 4p 1p 6p | E12: 2 | F12: 8 | G12: 1 | H12: 1 | I12: 5 | J12: 4 | K12: 3 | L12: 6 | M12: 33.33333333 | N12: 16.66666667 | O12: 0 | P12: 16.66666667 | Q12: 16.66666667 | R12: 0 | S12: 0 | T12: 16.66666667 | U12: 0 | V12: 0 | W12: 2 | X12: 8 | Y12: 1 | Z12: 1 | AA12: 5 | AB12: 4 | AC12: 2 | AD12: 8 | AE12: 1 | AF12: 1 | AG12: 5 | AH12: 4 | AJ12: 3.091206165 | AK12: 3.299831646 | AL12: 0.5 | AN12: 3 | AO12: 0.4438137822 | AQ12: 44.16008807 | AR12: 1.8 | AS12: 14.33333333 | AT12: 3.4 | AU12: 48.73333333 | AV12: 4.215686275 | AW12: 26.33333333 | AX12: 3.5 | AZ12: 92.16666667 | BA12: 7.523809524 | BB12: 1.951219512 | BE12: 3.924539498 | BG12: 1 | BH12: 3.924539498 | BJ12: =IF(B12="","",IF(ISERROR((COUNTA(W12:AB12)/(SUMPRODUCT(COUNTIF(W12:AB12,{"a";"o";"t";"d"})*0.1)+SUMPRODUCT(COUNTIF(W12:AB12,{1;2;3;4;5;6;7;8;9})/({1;2;3;4;5;6;7;8;9}))))+(COUNTA(W12:AB12)/(SUMPRODUCT(COUNTIF(W12:AB12,{"a";"o";"t";"d"})*0.1)+SUMPRODUCT(COUNTIF(W12:AB12,{1;2;3;4;5;6;7;8;9})/({1;2;3;4;5;6;7;8;9}))))+((SUMPRODUCT(COUNTIF(W12,{"a";"o";"t";"d"})*0.1)+SUMPRODUCT(COUNTIF(W12,{1;2;3;4;5;6;7;8;9})/({1;2;3;4;5;6;7;8;9})))+((SUMPRODUCT(COUNTIF(Y12,{"a";"o";"t";"d"})*0.1)+SUMPRODUCT(COUNTIF(Y12,{1;2;3;4;5;6;7;8;9})/({1;2;3;4;5;6;7;8;9}))))+((SUMPRODUCT(COUNTIF(AB12,{"a";"o";"t";"d"})*0.1)+SUMPRODUCT(COUNTIF(AB12,{1;2;3;4;5;6;7;8;9})/({1;2;3;4;5;6;7;8;9}))))))=TRUE,"",(COUNTA(W12:AB12)/(SUMPRODUCT(COUNTIF(W12:AB12,{"a";"o";"t";"d"})*0.1)+SUMPRODUCT(COUNTIF(W12:AB12,{1;2;3;4;5;6;7;8;9})/({1;2;3;4;5;6;7;8;9}))))+(COUNTA(W12:AB12)/(SUMPRODUCT(COUNTIF(W12:AB12,{"a";"o";"t";"d"})*0.1)+SUMPRODUCT(COUNTIF(W12:AB12,{1;2;3;4;5;6;7;8;9})/({1;2;3;4;5;6;7;8;9}))))+((SUMPRODUCT(COUNTIF(W12,{"a";"o";"t";"d"})*0.1)+SUMPRODUCT(COUNTIF(W12,{1;2;3;4;5;6;7;8;9})/({1;2;3;4;5;6;7;8;9})))+((SUMPRODUCT(COUNTIF(Y12,{"a";"o";"t";"d"})*0.1)+SUMPRODUCT(COUNTIF(Y12,{1;2;3;4;5;6;7;8;9})/({1;2;3;4;5;6;7;8;9}))))+((SUMPRODUCT(COUNTIF(AB12,{"a";"o";"t";"d"})*0.1)+SUMPRODUCT(COUNTIF(AB12,{1;2;3;4;5;6;7;8;9})/({1;2;3;4;5;6;7;8;9}))))))) -> 5.652439024 | BK12: 3.709447398 | BM12: 0.4 | BN12: 33.33333333 | BP12: 0.0243902439 | BR12: 8 | BS12: 3 | BT12: 1
A13: =IF(C13="","",11) -> 11 | B13: 25 800 € | C13: 1p (17) 1p 3p 1p 4p 7p 3p | E13: 1 | F13: 1 | G13: 3 | H13: 1 | I13: 4 | J13: 7 | K13: 2 | L13: 6 | M13: 50 | N13: 0 | O13: 16.66666667 | P13: 16.66666667 | Q13: 0 | R13: 0 | S13: 16.66666667 | T13: 0 | U13: 0 | V13: 0 | W13: 1 | X13: 1 | Y13: 3 | Z13: 1 | AA13: 4 | AB13: 7 | AC13: 1 | AD13: 1 | AE13: 3 | AF13: 1 | AG13: 4 | AH13: 7 | AJ13: 0.9428090416 | AK13: 0.9428090416 | AL13: 0.6666666667 | AN13: 4 | AO13: 1.205033274 | AQ13: 11.09187108 | AR13: 2.090909091 | AS13: 19.33333333 | AT13: 2 | AU13: 38.66666667 | AV13: 9.666666667 | AW13: 31.66666667 | AX13: 2.833333333 | AZ13: 89.72222222 | BA13: 11.17647059 | BB13: 1.610223642 | BE13: 1.942809042 | BG13: 0.6666666667 | BH13: 2.914213562 | BJ13: =IF(B13="","",IF(ISERROR((COUNTA(W13:AB13)/(SUMPRODUCT(COUNTIF(W13:AB13,{"a";"o";"t";"d"})*0.1)+SUMPRODUCT(COUNTIF(W13:AB13,{1;2;3;4;5;6;7;8;9})/({1;2;3;4;5;6;7;8;9}))))+(COUNTA(W13:AB13)/(SUMPRODUCT(COUNTIF(W13:AB13,{"a";"o";"t";"d"})*0.1)+SUMPRODUCT(COUNTIF(W13:AB13,{1;2;3;4;5;6;7;8;9})/({1;2;3;4;5;6;7;8;9}))))+((SUMPRODUCT(COUNTIF(W13,{"a";"o";"t";"d"})*0.1)+SUMPRODUCT(COUNTIF(W13,{1;2;3;4;5;6;7;8;9})/({1;2;3;4;5;6;7;8;9})))+((SUMPRODUCT(COUNTIF(Y13,{"a";"o";"t";"d"})*0.1)+SUMPRODUCT(COUNTIF(Y13,{1;2;3;4;5;6;7;8;9})/({1;2;3;4;5;6;7;8;9}))))+((SUMPRODUCT(COUNTIF(AB13,{"a";"o";"t";"d"})*0.1)+SUMPRODUCT(COUNTIF(AB13,{1;2;3;4;5;6;7;8;9})/({1;2;3;4;5;6;7;8;9}))))))=TRUE,"",(COUNTA(W13:AB13)/(SUMPRODUCT(COUNTIF(W13:AB13,{"a";"o";"t";"d"})*0.1)+SUMPRODUCT(COUNTIF(W13:AB13,{1;2;3;4;5;6;7;8;9})/({1;2;3;4;5;6;7;8;9}))))+(COUNTA(W13:AB13)/(SUMPRODUCT(COUNTIF(W13:AB13,{"a";"o";"t";"d"})*0.1)+SUMPRODUCT(COUNTIF(W13:AB13,{1;2;3;4;5;6;7;8;9})/({1;2;3;4;5;6;7;8;9}))))+((SUMPRODUCT(COUNTIF(W13,{"a";"o";"t";"d"})*0.1)+SUMPRODUCT(COUNTIF(W13,{1;2;3;4;5;6;7;8;9})/({1;2;3;4;5;6;7;8;9})))+((SUMPRODUCT(COUNTIF(Y13,{"a";"o";"t";"d"})*0.1)+SUMPRODUCT(COUNTIF(Y13,{1;2;3;4;5;6;7;8;9})/({1;2;3;4;5;6;7;8;9}))))+((SUMPRODUCT(COUNTIF(AB13,{"a";"o";"t";"d"})*0.1)+SUMPRODUCT(COUNTIF(AB13,{1;2;3;4;5;6;7;8;9})/({1;2;3;4;5;6;7;8;9}))))))) -> 4.696637761 | BK13: 1.13137085 | BM13: 0.2666666667 | BN13: 33.33333333 | BP13: 0.3051118211 | BR13: 7 | BS13: 3 | BT13: 2
A14: =IF(C14="","",12) -> 12 | B14: 44 335 € | C14: 0p 0p 0p (17) 7p 5p 1p 5p 4p 1p 2p 7p 6p | E14: 0 | F14: 0 | G14: 0 | H14: 7 | I14: 5 | J14: 1 | K14: 5 | L14: 6 | M14: 16.66666667 | N14: 0 | O14: 0 | P14: 0 | Q14: 16.66666667 | R14: 0 | S14: 16.66666667 | T14: 0 | U14: 50 | V14: 0 | W14: 10 | X14: 10 | Y14: 10 | Z14: 7 | AA14: 5 | AB14: 1 | AC14: 10 | AD14: 10 | AE14: 10 | AF14: 7 | AG14: 5 | AH14: 1 | AJ14: 0 | AK14: 1.414213562 | AL14: 0.1666666667 | AN14: 1 | AO14: -0.5506048119 | AQ14: 0 | AR14: 1.324324324 | AS14: 2 | AT14: 8.4 | AU14: 16.8 | AV14: 0.2380952381 | AW14: 8.166666667 | AX14: 7.166666667 | AZ14: 58.52777778 | BA14: 1.139534884 | BB14: 3.652173913 | BE14: 0.5 | BG14: 1.666666667 | BH14: 0.3 | BJ14: =IF(B14="","",IF(ISERROR((COUNTA(W14:AB14)/(SUMPRODUCT(COUNTIF(W14:AB14,{"a";"o";"t";"d"})*0.1)+SUMPRODUCT(COUNTIF(W14:AB14,{1;2;3;4;5;6;7;8;9})/({1;2;3;4;5;6;7;8;9}))))+(COUNTA(W14:AB14)/(SUMPRODUCT(COUNTIF(W14:AB14,{"a";"o";"t";"d"})*0.1)+SUMPRODUCT(COUNTIF(W14:AB14,{1;2;3;4;5;6;7;8;9})/({1;2;3;4;5;6;7;8;9}))))+((SUMPRODUCT(COUNTIF(W14,{"a";"o";"t";"d"})*0.1)+SUMPRODUCT(COUNTIF(W14,{1;2;3;4;5;6;7;8;9})/({1;2;3;4;5;6;7;8;9})))+((SUMPRODUCT(COUNTIF(Y14,{"a";"o";"t";"d"})*0.1)+SUMPRODUCT(COUNTIF(Y14,{1;2;3;4;5;6;7;8;9})/({1;2;3;4;5;6;7;8;9}))))+((SUMPRODUCT(COUNTIF(AB14,{"a";"o";"t";"d"})*0.1)+SUMPRODUCT(COUNTIF(AB14,{1;2;3;4;5;6;7;8;9})/({1;2;3;4;5;6;7;8;9}))))))=TRUE,"",(COUNTA(W14:AB14)/(SUMPRODUCT(COUNTIF(W14:AB14,{"a";"o";"t";"d"})*0.1)+SUMPRODUCT(COUNTIF(W14:AB14,{1;2;3;4;5;6;7;8;9})/({1;2;3;4;5;6;7;8;9}))))+(COUNTA(W14:AB14)/(SUMPRODUCT(COUNTIF(W14:AB14,{"a";"o";"t";"d"})*0.1)+SUMPRODUCT(COUNTIF(W14:AB14,{1;2;3;4;5;6;7;8;9})/({1;2;3;4;5;6;7;8;9}))))+((SUMPRODUCT(COUNTIF(W14,{"a";"o";"t";"d"})*0.1)+SUMPRODUCT(COUNTIF(W14,{1;2;3;4;5;6;7;8;9})/({1;2;3;4;5;6;7;8;9})))+((SUMPRODUCT(COUNTIF(Y14,{"a";"o";"t";"d"})*0.1)+SUMPRODUCT(COUNTIF(Y14,{1;2;3;4;5;6;7;8;9})/({1;2;3;4;5;6;7;8;9}))))+((SUMPRODUCT(COUNTIF(AB14,{"a";"o";"t";"d"})*0.1)+SUMPRODUCT(COUNTIF(AB14,{1;2;3;4;5;6;7;8;9})/({1;2;3;4;5;6;7;8;9}))))))) -> 9.936170213 | BK14: 0 | BM14: 2.133333333 | BN14: 0 | BP14: 3.173913043 | BR14: 16 | BS14: 2 | BT14: 2
A15: =IF(C15="","",13) -> 13 | B15: 28 250 € | C15: 0p 1p 1p 5p (17) 2p 7p 9p 5p | E15: 0 | F15: 1 | G15: 1 | H15: 5 | I15: 2 | J15: 7 | K15: 3 | L15: 6 | M15: 33.33333333 | N15: 16.66666667 | O15: 0 | P15: 0 | Q15: 16.66666667 | R15: 0 | S15: 16.66666667 | T15: 0 | U15: 16.66666667 | V15: 0 | W15: 10 | X15: 1 | Y15: 1 | Z15: 5 | AA15: 2 | AB15: 7 | AC15: 10 | AD15: 1 | AE15: 1 | AF15: 5 | AG15: 2 | AH15: 7 | AJ15: 4.242640687 | AK15: 1.885618083 | AL15: 0.5 | AN15: 3 | AO15: 0.4438137822 | AQ15: 48.95354639 | AR15: 1.6 | AS15: 11 | AT15: 3.8 | AU15: 41.8 | AV15: 2.894736842 | AW15: 22.66666667 | AX15: 4.333333333 | AZ15: 98.22222222 | BA15: 5.230769231 | BB15: 2.038834951 | BE15: 5.07597402 | BG15: 1 | BH15: 5.07597402 | BJ15: =IF(B15="","",IF(ISERROR((COUNTA(W15:AB15)/(SUMPRODUCT(COUNTIF(W15:AB15,{"a";"o";"t";"d"})*0.1)+SUMPRODUCT(COUNTIF(W15:AB15,{1;2;3;4;5;6;7;8;9})/({1;2;3;4;5;6;7;8;9}))))+(COUNTA(W15:AB15)/(SUMPRODUCT(COUNTIF(W15:AB15,{"a";"o";"t";"d"})*0.1)+SUMPRODUCT(COUNTIF(W15:AB15,{1;2;3;4;5;6;7;8;9})/({1;2;3;4;5;6;7;8;9}))))+((SUMPRODUCT(COUNTIF(W15,{"a";"o";"t";"d"})*0.1)+SUMPRODUCT(COUNTIF(W15,{1;2;3;4;5;6;7;8;9})/({1;2;3;4;5;6;7;8;9})))+((SUMPRODUCT(COUNTIF(Y15,{"a";"o";"t";"d"})*0.1)+SUMPRODUCT(COUNTIF(Y15,{1;2;3;4;5;6;7;8;9})/({1;2;3;4;5;6;7;8;9}))))+((SUMPRODUCT(COUNTIF(AB15,{"a";"o";"t";"d"})*0.1)+SUMPRODUCT(COUNTIF(AB15,{1;2;3;4;5;6;7;8;9})/({1;2;3;4;5;6;7;8;9}))))))=TRUE,"",(COUNTA(W15:AB15)/(SUMPRODUCT(COUNTIF(W15:AB15,{"a";"o";"t";"d"})*0.1)+SUMPRODUCT(COUNTIF(W15:AB15,{1;2;3;4;5;6;7;8;9})/({1;2;3;4;5;6;7;8;9}))))+(COUNTA(W15:AB15)/(SUMPRODUCT(COUNTIF(W15:AB15,{"a";"o";"t";"d"})*0.1)+SUMPRODUCT(COUNTIF(W15:AB15,{1;2;3;4;5;6;7;8;9})/({1;2;3;4;5;6;7;8;9}))))+((SUMPRODUCT(COUNTIF(W15,{"a";"o";"t";"d"})*0.1)+SUMPRODUCT(COUNTIF(W15,{1;2;3;4;5;6;7;8;9})/({1;2;3;4;5;6;7;8;9})))+((SUMPRODUCT(COUNTIF(Y15,{"a";"o";"t";"d"})*0.1)+SUMPRODUCT(COUNTIF(Y15,{1;2;3;4;5;6;7;8;9})/({1;2;3;4;5;6;7;8;9}))))+((SUMPRODUCT(COUNTIF(AB15,{"a";"o";"t";"d"})*0.1)+SUMPRODUCT(COUNTIF(AB15,{1;2;3;4;5;6;7;8;9})/({1;2;3;4;5;6;7;8;9}))))))) -> 5.36396267 | BK15: 6.363961031 | BM15: 3.266666667 | BN15: 16.66666667 | BP15: 3.980582524 | BR15: 8 | BS15: 2 | BT15: 1
A16: =IF(C16="","",14) -> 14 | B16: 19 650 € | C16: 2p (17) 9p 1p 3p 4p 5p 2p 3p | E16: 2 | F16: 9 | G16: 1 | H16: 3 | I16: 4 | J16: 5 | K16: 3 | L16: 6 | M16: 16.66666667 | N16: 16.66666667 | O16: 16.66666667 | P16: 16.66666667 | Q16: 16.66666667 | R16: 0 | S16: 0 | T16: 16.66666667 | U16: 0 | V16: 0 | W16: 2 | X16: 9 | Y16: 1 | Z16: 3 | AA16: 4 | AB16: 5 | AC16: 2 | AD16: 9 | AE16: 1 | AF16: 3 | AG16: 4 | AH16: 5 | AJ16: 3.559026084 | AK16: 3.399346342 | AL16: 0.5 | AN16: 3 | AO16: 0.4438137822 | AQ16: 44.48782605 | AR16: 1.666666667 | AS16: 13.66666667 | AT16: 3.8 | AU16: 51.93333333 | AV16: 3.596491228 | AW16: 24.66666667 | AX16: 4 | AZ16: 98.66666667 | BA16: 6.166666667 | BB16: 2.505800464 | BE16: 4.392359417 | BG16: 1 | BH16: 4.392359417 | BJ16: =IF(B16="","",IF(ISERROR((COUNTA(W16:AB16)/(SUMPRODUCT(COUNTIF(W16:AB16,{"a";"o";"t";"d"})*0.1)+SUMPRODUCT(COUNTIF(W16:AB16,{1;2;3;4;5;6;7;8;9})/({1;2;3;4;5;6;7;8;9}))))+(COUNTA(W16:AB16)/(SUMPRODUCT(COUNTIF(W16:AB16,{"a";"o";"t";"d"})*0.1)+SUMPRODUCT(COUNTIF(W16:AB16,{1;2;3;4;5;6;7;8;9})/({1;2;3;4;5;6;7;8;9}))))+((SUMPRODUCT(COUNTIF(W16,{"a";"o";"t";"d"})*0.1)+SUMPRODUCT(COUNTIF(W16,{1;2;3;4;5;6;7;8;9})/({1;2;3;4;5;6;7;8;9})))+((SUMPRODUCT(COUNTIF(Y16,{"a";"o";"t";"d"})*0.1)+SUMPRODUCT(COUNTIF(Y16,{1;2;3;4;5;6;7;8;9})/({1;2;3;4;5;6;7;8;9}))))+((SUMPRODUCT(COUNTIF(AB16,{"a";"o";"t";"d"})*0.1)+SUMPRODUCT(COUNTIF(AB16,{1;2;3;4;5;6;7;8;9})/({1;2;3;4;5;6;7;8;9}))))))=TRUE,"",(COUNTA(W16:AB16)/(SUMPRODUCT(COUNTIF(W16:AB16,{"a";"o";"t";"d"})*0.1)+SUMPRODUCT(COUNTIF(W16:AB16,{1;2;3;4;5;6;7;8;9})/({1;2;3;4;5;6;7;8;9}))))+(COUNTA(W16:AB16)/(SUMPRODUCT(COUNTIF(W16:AB16,{"a";"o";"t";"d"})*0.1)+SUMPRODUCT(COUNTIF(W16:AB16,{1;2;3;4;5;6;7;8;9})/({1;2;3;4;5;6;7;8;9}))))+((SUMPRODUCT(COUNTIF(W16,{"a";"o";"t";"d"})*0.1)+SUMPRODUCT(COUNTIF(W16,{1;2;3;4;5;6;7;8;9})/({1;2;3;4;5;6;7;8;9})))+((SUMPRODUCT(COUNTIF(Y16,{"a";"o";"t";"d"})*0.1)+SUMPRODUCT(COUNTIF(Y16,{1;2;3;4;5;6;7;8;9})/({1;2;3;4;5;6;7;8;9}))))+((SUMPRODUCT(COUNTIF(AB16,{"a";"o";"t";"d"})*0.1)+SUMPRODUCT(COUNTIF(AB16,{1;2;3;4;5;6;7;8;9})/({1;2;3;4;5;6;7;8;9}))))))) -> 6.711600928 | BK16: 4.270831301 | BM16: 0.2 | BN16: 16.66666667 | BP16: 0.252900232 | BR16: 8 | BS16: 1 | BT16: 4
A17: =IF(C17="","",15) -> 15 | B17: 8 750 € | C17: 0p 9p (17) 4p 3p 4p | E17: 0 | F17: 9 | G17: 4 | H17: 3 | I17: 4 | K17: 4 | L17: 5 | M17: 0 | N17: 0 | O17: 20 | P17: 40 | Q17: 0 | R17: 0 | S17: 0 | T17: 20 | U17: 20 | V17: 0 | W17: 10 | X17: 9 | Y17: 4 | Z17: 3 | AA17: 4 | AC17: 10 | AD17: 9 | AE17: 4 | AF17: 3 | AG17: 4 | AH17: 0 | AJ17: 2.624669291 | AK17: 2.624669291 | AL17: 0.2 | AN17: 1 | AO17: -0.4724334022 | AQ17: 41.99470866 | AR17: 1.4 | AS17: 4.666666667 | AT17: 6 | AU17: 28 | AV17: 0.7777777778 | AW17: 15.5 | AX17: 5 | AZ17: 77.5 | BA17: 3.1 | BB17: 4.787234043 | BE17: 3.224669291 | BG17: 1.6 | BH17: 2.015418307 | BJ17: =IF(B17="","",IF(ISERROR((COUNTA(W17:AB17)/(SUMPRODUCT(COUNTIF(W17:AB17,{"a";"o";"t";"d"})*0.1)+SUMPRODUCT(COUNTIF(W17:AB17,{1;2;3;4;5;6;7;8;9})/({1;2;3;4;5;6;7;8;9}))))+(COUNTA(W17:AB17)/(SUMPRODUCT(COUNTIF(W17:AB17,{"a";"o";"t";"d"})*0.1)+SUMPRODUCT(COUNTIF(W17:AB17,{1;2;3;4;5;6;7;8;9})/({1;2;3;4;5;6;7;8;9}))))+((SUMPRODUCT(COUNTIF(W17,{"a";"o";"t";"d"})*0.1)+SUMPRODUCT(COUNTIF(W17,{1;2;3;4;5;6;7;8;9})/({1;2;3;4;5;6;7;8;9})))+((SUMPRODUCT(COUNTIF(Y17,{"a";"o";"t";"d"})*0.1)+SUMPRODUCT(COUNTIF(Y17,{1;2;3;4;5;6;7;8;9})/({1;2;3;4;5;6;7;8;9}))))+((SUMPRODUCT(COUNTIF(AB17,{"a";"o";"t";"d"})*0.1)+SUMPRODUCT(COUNTIF(AB17,{1;2;3;4;5;6;7;8;9})/({1;2;3;4;5;6;7;8;9}))))))=TRUE,"",(COUNTA(W17:AB17)/(SUMPRODUCT(COUNTIF(W17:AB17,{"a";"o";"t";"d"})*0.1)+SUMPRODUCT(COUNTIF(W17:AB17,{1;2;3;4;5;6;7;8;9})/({1;2;3;4;5;6;7;8;9}))))+(COUNTA(W17:AB17)/(SUMPRODUCT(COUNTIF(W17:AB17,{"a";"o";"t";"d"})*0.1)+SUMPRODUCT(COUNTIF(W17:AB17,{1;2;3;4;5;6;7;8;9})/({1;2;3;4;5;6;7;8;9}))))+((SUMPRODUCT(COUNTIF(W17,{"a";"o";"t";"d"})*0.1)+SUMPRODUCT(COUNTIF(W17,{1;2;3;4;5;6;7;8;9})/({1;2;3;4;5;6;7;8;9})))+((SUMPRODUCT(COUNTIF(Y17,{"a";"o";"t";"d"})*0.1)+SUMPRODUCT(COUNTIF(Y17,{1;2;3;4;5;6;7;8;9})/({1;2;3;4;5;6;7;8;9}))))+((SUMPRODUCT(COUNTIF(AB17,{"a";"o";"t";"d"})*0.1)+SUMPRODUCT(COUNTIF(AB17,{1;2;3;4;5;6;7;8;9})/({1;2;3;4;5;6;7;8;9}))))))) -> 12.95588235 | BK17: 4.374448819 | BM17: 3 | BN17: 0 | BP17: 2.606382979 | BR17: 5 | BS17: 0 | BT17: 1
A18: =IF(C18="","",16) ->  | BJ18: =IF(B18="","",IF(ISERROR((COUNTA(W18:AB18)/(SUMPRODUCT(COUNTIF(W18:AB18,{"a";"o";"t";"d"})*0.1)+SUMPRODUCT(COUNTIF(W18:AB18,{1;2;3;4;5;6;7;8;9})/({1;2;3;4;5;6;7;8;9}))))+(COUNTA(W18:AB18)/(SUMPRODUCT(COUNTIF(W18:AB18,{"a";"o";"t";"d"})*0.1)+SUMPRODUCT(COUNTIF(W18:AB18,{1;2;3;4;5;6;7;8;9})/({1;2;3;4;5;6;7;8;9}))))+((SUMPRODUCT(COUNTIF(W18,{"a";"o";"t";"d"})*0.1)+SUMPRODUCT(COUNTIF(W18,{1;2;3;4;5;6;7;8;9})/({1;2;3;4;5;6;7;8;9})))+((SUMPRODUCT(COUNTIF(Y18,{"a";"o";"t";"d"})*0.1)+SUMPRODUCT(COUNTIF(Y18,{1;2;3;4;5;6;7;8;9})/({1;2;3;4;5;6;7;8;9}))))+((SUMPRODUCT(COUNTIF(AB18,{"a";"o";"t";"d"})*0.1)+SUMPRODUCT(COUNTIF(AB18,{1;2;3;4;5;6;7;8;9})/({1;2;3;4;5;6;7;8;9}))))))=TRUE,"",(COUNTA(W18:AB18)/(SUMPRODUCT(COUNTIF(W18:AB18,{"a";"o";"t";"d"})*0.1)+SUMPRODUCT(COUNTIF(W18:AB18,{1;2;3;4;5;6;7;8;9})/({1;2;3;4;5;6;7;8;9}))))+(COUNTA(W18:AB18)/(SUMPRODUCT(COUNTIF(W18:AB18,{"a";"o";"t";"d"})*0.1)+SUMPRODUCT(COUNTIF(W18:AB18,{1;2;3;4;5;6;7;8;9})/({1;2;3;4;5;6;7;8;9}))))+((SUMPRODUCT(COUNTIF(W18,{"a";"o";"t";"d"})*0.1)+SUMPRODUCT(COUNTIF(W18,{1;2;3;4;5;6;7;8;9})/({1;2;3;4;5;6;7;8;9})))+((SUMPRODUCT(COUNTIF(Y18,{"a";"o";"t";"d"})*0.1)+SUMPRODUCT(COUNTIF(Y18,{1;2;3;4;5;6;7;8;9})/({1;2;3;4;5;6;7;8;9}))))+((SUMPRODUCT(COUNTIF(AB18,{"a";"o";"t";"d"})*0.1)+SUMPRODUCT(COUNTIF(AB18,{1;2;3;4;5;6;7;8;9})/({1;2;3;4;5;6;7;8;9}))))))) ->  | BR18: 14 | BS18: 3 | BT18: 1
A19: =IF(C19="","",17) ->  | F19: =MID(SUBSTITUTE(SUBSTITUTE(SUBSTITUTE(SUBSTITUTE(SUBSTITUTE(SUBSTITUTE(SUBSTITUTE($C19,"(18) ",""),"(17) ",""),"(16) ",""),"Deb",""),"A","0"),"T","0"),"10","0"),(COLUMN()-4)*3-2,1) ->  | W19: =IF(ISERROR(IF(E19="D",10,IF(E19="0",10,VALUE(E19))))," ",IF(E19="D",10,IF(E19="0",10,VALUE(E19)))) ->  | BJ19: =IF(B19="","",IF(ISERROR((COUNTA(W19:AB19)/(SUMPRODUCT(COUNTIF(W19:AB19,{"a";"o";"t";"d"})*0.1)+SUMPRODUCT(COUNTIF(W19:AB19,{1;2;3;4;5;6;7;8;9})/({1;2;3;4;5;6;7;8;9}))))+(COUNTA(W19:AB19)/(SUMPRODUCT(COUNTIF(W19:AB19,{"a";"o";"t";"d"})*0.1)+SUMPRODUCT(COUNTIF(W19:AB19,{1;2;3;4;5;6;7;8;9})/({1;2;3;4;5;6;7;8;9}))))+((SUMPRODUCT(COUNTIF(W19,{"a";"o";"t";"d"})*0.1)+SUMPRODUCT(COUNTIF(W19,{1;2;3;4;5;6;7;8;9})/({1;2;3;4;5;6;7;8;9})))+((SUMPRODUCT(COUNTIF(Y19,{"a";"o";"t";"d"})*0.1)+SUMPRODUCT(COUNTIF(Y19,{1;2;3;4;5;6;7;8;9})/({1;2;3;4;5;6;7;8;9}))))+((SUMPRODUCT(COUNTIF(AB19,{"a";"o";"t";"d"})*0.1)+SUMPRODUCT(COUNTIF(AB19,{1;2;3;4;5;6;7;8;9})/({1;2;3;4;5;6;7;8;9}))))))=TRUE,"",(COUNTA(W19:AB19)/(SUMPRODUCT(COUNTIF(W19:AB19,{"a";"o";"t";"d"})*0.1)+SUMPRODUCT(COUNTIF(W19:AB19,{1;2;3;4;5;6;7;8;9})/({1;2;3;4;5;6;7;8;9}))))+(COUNTA(W19:AB19)/(SUMPRODUCT(COUNTIF(W19:AB19,{"a";"o";"t";"d"})*0.1)+SUMPRODUCT(COUNTIF(W19:AB19,{1;2;3;4;5;6;7;8;9})/({1;2;3;4;5;6;7;8;9}))))+((SUMPRODUCT(COUNTIF(W19,{"a";"o";"t";"d"})*0.1)+SUMPRODUCT(COUNTIF(W19,{1;2;3;4;5;6;7;8;9})/({1;2;3;4;5;6;7;8;9})))+((SUMPRODUCT(COUNTIF(Y19,{"a";"o";"t";"d"})*0.1)+SUMPRODUCT(COUNTIF(Y19,{1;2;3;4;5;6;7;8;9})/({1;2;3;4;5;6;7;8;9}))))+((SUMPRODUCT(COUNTIF(AB19,{"a";"o";"t";"d"})*0.1)+SUMPRODUCT(COUNTIF(AB19,{1;2;3;4;5;6;7;8;9})/({1;2;3;4;5;6;7;8;9}))))))) -> 
A20: =IF(C20="","",18) ->  | BJ20: =IF(B20="","",IF(ISERROR((COUNTA(W20:AB20)/(SUMPRODUCT(COUNTIF(W20:AB20,{"a";"o";"t";"d"})*0.1)+SUMPRODUCT(COUNTIF(W20:AB20,{1;2;3;4;5;6;7;8;9})/({1;2;3;4;5;6;7;8;9}))))+(COUNTA(W20:AB20)/(SUMPRODUCT(COUNTIF(W20:AB20,{"a";"o";"t";"d"})*0.1)+SUMPRODUCT(COUNTIF(W20:AB20,{1;2;3;4;5;6;7;8;9})/({1;2;3;4;5;6;7;8;9}))))+((SUMPRODUCT(COUNTIF(W20,{"a";"o";"t";"d"})*0.1)+SUMPRODUCT(COUNTIF(W20,{1;2;3;4;5;6;7;8;9})/({1;2;3;4;5;6;7;8;9})))+((SUMPRODUCT(COUNTIF(Y20,{"a";"o";"t";"d"})*0.1)+SUMPRODUCT(COUNTIF(Y20,{1;2;3;4;5;6;7;8;9})/({1;2;3;4;5;6;7;8;9}))))+((SUMPRODUCT(COUNTIF(AB20,{"a";"o";"t";"d"})*0.1)+SUMPRODUCT(COUNTIF(AB20,{1;2;3;4;5;6;7;8;9})/({1;2;3;4;5;6;7;8;9}))))))=TRUE,"",(COUNTA(W20:AB20)/(SUMPRODUCT(COUNTIF(W20:AB20,{"a";"o";"t";"d"})*0.1)+SUMPRODUCT(COUNTIF(W20:AB20,{1;2;3;4;5;6;7;8;9})/({1;2;3;4;5;6;7;8;9}))))+(COUNTA(W20:AB20)/(SUMPRODUCT(COUNTIF(W20:AB20,{"a";"o";"t";"d"})*0.1)+SUMPRODUCT(COUNTIF(W20:AB20,{1;2;3;4;5;6;7;8;9})/({1;2;3;4;5;6;7;8;9}))))+((SUMPRODUCT(COUNTIF(W20,{"a";"o";"t";"d"})*0.1)+SUMPRODUCT(COUNTIF(W20,{1;2;3;4;5;6;7;8;9})/({1;2;3;4;5;6;7;8;9})))+((SUMPRODUCT(COUNTIF(Y20,{"a";"o";"t";"d"})*0.1)+SUMPRODUCT(COUNTIF(Y20,{1;2;3;4;5;6;7;8;9})/({1;2;3;4;5;6;7;8;9}))))+((SUMPRODUCT(COUNTIF(AB20,{"a";"o";"t";"d"})*0.1)+SUMPRODUCT(COUNTIF(AB20,{1;2;3;4;5;6;7;8;9})/({1;2;3;4;5;6;7;8;9}))))))) -> 
A21: =IF(C21="","",19) ->  | BJ21: =IF(B21="","",IF(ISERROR((COUNTA(W21:AB21)/(SUMPRODUCT(COUNTIF(W21:AB21,{"a";"o";"t";"d"})*0.1)+SUMPRODUCT(COUNTIF(W21:AB21,{1;2;3;4;5;6;7;8;9})/({1;2;3;4;5;6;7;8;9}))))+(COUNTA(W21:AB21)/(SUMPRODUCT(COUNTIF(W21:AB21,{"a";"o";"t";"d"})*0.1)+SUMPRODUCT(COUNTIF(W21:AB21,{1;2;3;4;5;6;7;8;9})/({1;2;3;4;5;6;7;8;9}))))+((SUMPRODUCT(COUNTIF(W21,{"a";"o";"t";"d"})*0.1)+SUMPRODUCT(COUNTIF(W21,{1;2;3;4;5;6;7;8;9})/({1;2;3;4;5;6;7;8;9})))+((SUMPRODUCT(COUNTIF(Y21,{"a";"o";"t";"d"})*0.1)+SUMPRODUCT(COUNTIF(Y21,{1;2;3;4;5;6;7;8;9})/({1;2;3;4;5;6;7;8;9}))))+((SUMPRODUCT(COUNTIF(AB21,{"a";"o";"t";"d"})*0.1)+SUMPRODUCT(COUNTIF(AB21,{1;2;3;4;5;6;7;8;9})/({1;2;3;4;5;6;7;8;9}))))))=TRUE,"",(COUNTA(W21:AB21)/(SUMPRODUCT(COUNTIF(W21:AB21,{"a";"o";"t";"d"})*0.1)+SUMPRODUCT(COUNTIF(W21:AB21,{1;2;3;4;5;6;7;8;9})/({1;2;3;4;5;6;7;8;9}))))+(COUNTA(W21:AB21)/(SUMPRODUCT(COUNTIF(W21:AB21,{"a";"o";"t";"d"})*0.1)+SUMPRODUCT(COUNTIF(W21:AB21,{1;2;3;4;5;6;7;8;9})/({1;2;3;4;5;6;7;8;9}))))+((SUMPRODUCT(COUNTIF(W21,{"a";"o";"t";"d"})*0.1)+SUMPRODUCT(COUNTIF(W21,{1;2;3;4;5;6;7;8;9})/({1;2;3;4;5;6;7;8;9})))+((SUMPRODUCT(COUNTIF(Y21,{"a";"o";"t";"d"})*0.1)+SUMPRODUCT(COUNTIF(Y21,{1;2;3;4;5;6;7;8;9})/({1;2;3;4;5;6;7;8;9}))))+((SUMPRODUCT(COUNTIF(AB21,{"a";"o";"t";"d"})*0.1)+SUMPRODUCT(COUNTIF(AB21,{1;2;3;4;5;6;7;8;9})/({1;2;3;4;5;6;7;8;9}))))))) -> 
A22: =IF(C22="","",20) ->  | BJ22: =IF(B22="","",IF(ISERROR((COUNTA(W22:AB22)/(SUMPRODUCT(COUNTIF(W22:AB22,{"a";"o";"t";"d"})*0.1)+SUMPRODUCT(COUNTIF(W22:AB22,{1;2;3;4;5;6;7;8;9})/({1;2;3;4;5;6;7;8;9}))))+(COUNTA(W22:AB22)/(SUMPRODUCT(COUNTIF(W22:AB22,{"a";"o";"t";"d"})*0.1)+SUMPRODUCT(COUNTIF(W22:AB22,{1;2;3;4;5;6;7;8;9})/({1;2;3;4;5;6;7;8;9}))))+((SUMPRODUCT(COUNTIF(W22,{"a";"o";"t";"d"})*0.1)+SUMPRODUCT(COUNTIF(W22,{1;2;3;4;5;6;7;8;9})/({1;2;3;4;5;6;7;8;9})))+((SUMPRODUCT(COUNTIF(Y22,{"a";"o";"t";"d"})*0.1)+SUMPRODUCT(COUNTIF(Y22,{1;2;3;4;5;6;7;8;9})/({1;2;3;4;5;6;7;8;9}))))+((SUMPRODUCT(COUNTIF(AB22,{"a";"o";"t";"d"})*0.1)+SUMPRODUCT(COUNTIF(AB22,{1;2;3;4;5;6;7;8;9})/({1;2;3;4;5;6;7;8;9}))))))=TRUE,"",(COUNTA(W22:AB22)/(SUMPRODUCT(COUNTIF(W22:AB22,{"a";"o";"t";"d"})*0.1)+SUMPRODUCT(COUNTIF(W22:AB22,{1;2;3;4;5;6;7;8;9})/({1;2;3;4;5;6;7;8;9}))))+(COUNTA(W22:AB22)/(SUMPRODUCT(COUNTIF(W22:AB22,{"a";"o";"t";"d"})*0.1)+SUMPRODUCT(COUNTIF(W22:AB22,{1;2;3;4;5;6;7;8;9})/({1;2;3;4;5;6;7;8;9}))))+((SUMPRODUCT(COUNTIF(W22,{"a";"o";"t";"d"})*0.1)+SUMPRODUCT(COUNTIF(W22,{1;2;3;4;5;6;7;8;9})/({1;2;3;4;5;6;7;8;9})))+((SUMPRODUCT(COUNTIF(Y22,{"a";"o";"t";"d"})*0.1)+SUMPRODUCT(COUNTIF(Y22,{1;2;3;4;5;6;7;8;9})/({1;2;3;4;5;6;7;8;9}))))+((SUMPRODUCT(COUNTIF(AB22,{"a";"o";"t";"d"})*0.1)+SUMPRODUCT(COUNTIF(AB22,{1;2;3;4;5;6;7;8;9})/({1;2;3;4;5;6;7;8;9}))))))) -> 

Sheet AGC (hidden)
AO1: =((5/3)*((LARGE($A$4:$A$19,1)-5)/2))/(LARGE($A$4:$A$19,1)/5) -> 2.777777778 | AR1: Nb partants | AS1: 17
AL2: 17000 | AM2: =AL2/2 -> 8500 | AN2: =AM2/2 -> 4250
A3: N° | B3: GAINS | C3: DERNIERES PERFORMANCES | E3: P1 | F3: P2 | G3: P3 | H3: P4 | I3: P5 | J3: P6 | K3: CR 3 | L3: Mh | M3: IF | N3: Nb C | O3: % 1 er | P3: % 2 ème | Q3: % 3 ème | R3: % 4 ème | S3: % 5 ème | T3: % 6 ème | U3: % 7 ème | V3: % 8et9 ème | W3: % NP | X3: P1 | Y3: P2 | Z3: P3 | AA3: P4 | AB3: P5 | AC3: P6 | AD3: ecart type | AE3: Crif | AF3: CR6 | AG3: Régression | AH3: Nbre Courses | AI3: Nbre Victoires | AJ3: Nbre Places | AL3: GV | AM3: GP | AN3: AGC | AO3: % Vic | AP3: % RC | AQ3: MG | AR3: Cote Th | AS3: CTH | AT3: ValCarrière | AU3: Potentiel 1er | AV3: Potentiel 2e | AW3: Rcourse | AX3: Proba
A4: =' Musique'!A3 -> 1 | B4: =IF(' Musique'!C3="","",' Musique'!B3) -> 59 705 € | C4: =IF(' Musique'!C3="","",' Musique'!C3) -> 4p 3p (17) 2p 1p 5p 9p 8p 7p 0p (16) 1p 2p 8p | E4: =' Musique'!E3 -> 4 | F4: =' Musique'!F3 -> 3 | G4: =' Musique'!G3 -> 2 | H4: =' Musique'!H3 -> 1 | I4: =' Musique'!I3 -> 5 | J4: =' Musique'!J3 -> 9 | K4: =IF(E4="","",(3*(11-X4)+2*(11-Y4)+(11-Z4))/COUNTA(X4:Z4)) -> 15.33333333 | L4: =IF(E4="","",COUNTA(E4:J4)/(SUMPRODUCT(COUNTIF(E4:J4,{"a";"o";"t";"d"})*0.1)+SUMPRODUCT(COUNTIF(E4:J4,{1;2;3;4;5;6;7;8;9})/({1;2;3;4;5;6;7;8;9})))) -> 2.505800464 | M4: =IF(E4="","",(SUMPRODUCT(COUNTIF(E4:I4,{1;2;3;4;5;6;7;8;9;0;"D"})*{1;2;3;4;5;10;10;10;10;10;10}))/COUNTA(E4:I4)) -> 3 | N4: =IF(E4="","",COUNT(X4:AC4)) -> 6 | O4: =IF(E4="","",(COUNTIF(X4:AC4,"1")/N4)*100) -> 16.66666667 | P4: =IF(E4="","",(COUNTIF(X4:AC4,"2")/N4)*100) -> 16.66666667 | Q4: =IF(E4="","",(COUNTIF(X4:AC4,"3")/N4)*100) -> 16.66666667 | R4: =IF(E4="","",(COUNTIF(X4:AC4,"4")/N4)*100) -> 16.66666667 | S4: =IF(E4="","",(COUNTIF(X4:AC4,"5")/N4)*100) -> 16.66666667 | T4: =IF(E4="","",(COUNTIF(X4:AC4,"6")/N4)*100) -> 0 | U4: =IF(E4="","",(COUNTIF(X4:AC4,"7")/N4)*100) -> 0 | V4: =IF(E4="","",((COUNTIF(X4:AC4,"8")/N4)*100) +((COUNTIF(X4:AC4,"9")/N4)*100)) -> 16.66666667 | W4: =IF(E4="","",(COUNTIF(E4:J4,"D")+(COUNTIF(E4:J4,"0")/N4))*100) -> 0 | X4: =IF(E4="","",IF(E4="D",10,IF(E4="0",10,VALUE(E4)))) -> 4 | Y4: =IF(E4="","",IF(F4="D",10,IF(F4="0",10,VALUE(F4)))) -> 3 | Z4: =IF(E4="","",IF(G4="D",10,IF(G4="0",10,VALUE(G4)))) -> 2 | AA4: =IF(E4="","",IF(H4="D",10,IF(H4="0",10,VALUE(H4)))) -> 1 | AB4: =IF(E4="","",IF(I4="D",10,IF(I4="0",10,VALUE(I4)))) -> 5 | AC4: =IF(E4="","",IF(J4="D",10,IF(J4="0",10,VALUE(J4)))) -> 9 | AD4: =IF(COUNT(X4:AC4)>0,SQRT(DEVSQ(IF(X4<>"",MIN(X4,10),AVERAGE(X4:AC4)),IF(Y4<>"",MIN(Y4,10),AVERAGE(X4:AC4)),IF(Z4<>"",MIN(Z4,10),AVERAGE(X4:AC4)),IF(AA4<>"",MIN(AA4,10),AVERAGE(X4:AC4)),IF(AB4<>"",MIN(AB4,10),AVERAGE(X4:AC4)),IF(AC4<>"",MIN(AC4,10),AVERAGE(X4:AC4)))/COUNTA(X4:AC4)),"") -> 2.581988897 | AE4: =IF(E4="","",K4*M4) -> 46 | AF4: =IF(E4="","",((6*(11-E4)+5*(11-F4)+4*(11-G4)+3*(11-H4)+2*(11-I4)+(11-J4))/COUNTA(E4:_JC4))) -> 162 | AG4: =IF(E4="","",(K4-AF4)) -> -146.6666667 | AH4: =' Musique'!BR3 -> 12 | AI4: =' Musique'!BS3 -> 2 | AJ4: =' Musique'!BT3 -> 3 | AK4: =IF(B4="","",VALUE(SUBSTITUTE(B4,CHAR(160),""))) -> 59705 | AL4: =IF(E4="","",(AK4*AI4)/AH4) -> 9950.833333 | AM4: =IF(E4="","",(AK4*AJ4)/AH4) -> 14926.25 | AN4: =IF(ISERROR((AL4/AM4)*100)=TRUE,"",(AL4/AM4)*100) -> 66.66666667 | AO4: =IF(E4="","",(AI4/AH4)*100) -> 16.66666667 | AP4: =IF(E4="","",((AI4+AJ4)/AH4)*100) -> 41.66666667 | AQ4: =IF(E4="","",AK4/AH4) -> 4975.416667 | AR4: =IF(E4="","",(100-AP4)/AP4) -> 1.4 | AS4: =IF(E4="","",IF(ISERROR(AH4/AI4),AH4,AH4/AI4)) -> 6 | AT4: =IF(E4="","",(AO4*AR4)) -> 23.33333333 | AU4: =IF(E4="","",AL4/$AM$2) -> 1.170686275 | AV4: =IF(E4="","",AM4/$AN$2) -> 3.512058824 | AW4: =IF(E4="","",AU4/AV4) -> 0.3333333333 | AX4: =IF(E4="","",($AO$1/(AO4/(SUM($AP$4:$AP$19))*100))*100) -> 113.9026252
A5: =' Musique'!A4 -> 2 | B5: =IF(' Musique'!C4="","",' Musique'!B4) -> 56 600 € | C5: =IF(' Musique'!C4="","",' Musique'!C4) -> 1p 0p 0p (17) 1p 6p 4p 9p 2p 2p 2p 0p (16) 7p | E5: =' Musique'!E4 -> 1 | F5: =' Musique'!F4 -> 0 | G5: =' Musique'!G4 -> 0 | H5: =' Musique'!H4 -> 1 | I5: =' Musique'!I4 -> 6 | J5: =' Musique'!J4 -> 4 | K5: =IF(E5="","",(3*(11-X5)+2*(11-Y5)+(11-Z5))/COUNTA(X5:Z5)) -> 11 | L5: =IF(E5="","",COUNTA(E5:J5)/(SUMPRODUCT(COUNTIF(E5:J5,{"a";"o";"t";"d"})*0.1)+SUMPRODUCT(COUNTIF(E5:J5,{1;2;3;4;5;6;7;8;9})/({1;2;3;4;5;6;7;8;9})))) -> 2.482758621 | M5: =IF(E5="","",(SUMPRODUCT(COUNTIF(E5:I5,{1;2;3;4;5;6;7;8;9;0;"D"})*{1;2;3;4;5;10;10;10;10;10;10}))/COUNTA(E5:I5)) -> 6.4 | N5: =IF(E5="","",COUNTA(X5:AC5)) -> 6 | O5: =IF(E5="","",(COUNTIF(X5:AC5,"1")/N5)*100) -> 33.33333333 | P5: =IF(E5="","",(COUNTIF(X5:AC5,"2")/N5)*100) -> 0 | Q5: =IF(E5="","",(COUNTIF(X5:AC5,"3")/N5)*100) -> 0 | R5: =IF(E5="","",(COUNTIF(X5:AC5,"4")/N5)*100) -> 16.66666667 | S5: =IF(E5="","",(COUNTIF(X5:AC5,"5")/N5)*100) -> 0 | T5: =IF(E5="","",(COUNTIF(X5:AC5,"6")/N5)*100) -> 16.66666667 | U5: =IF(E5="","",(COUNTIF(X5:AC5,"7")/N5)*100) -> 0 | V5: =IF(E5="","",((COUNTIF(X5:AC5,"8")/N5)*100) +((COUNTIF(X5:AC5,"9")/N5)*100)) -> 0 | W5: =IF(E5="","",(COUNTIF(E5:J5,"D")+(COUNTIF(E5:J5,"0")/N5))*100) -> 33.33333333 | X5: =IF(E5="","",IF(E5="D",10,IF(E5="0",10,VALUE(E5)))) -> 1 | Y5: =IF(E5="","",IF(F5="D",10,IF(F5="0",10,VALUE(F5)))) -> 10 | Z5: =IF(E5="","",IF(G5="D",10,IF(G5="0",10,VALUE(G5)))) -> 10 | AA5: =IF(E5="","",IF(H5="D",10,IF(H5="0",10,VALUE(H5)))) -> 1 | AB5: =IF(E5="","",IF(I5="D",10,IF(I5="0",10,VALUE(I5)))) -> 6 | AC5: =IF(E5="","",IF(J5="D",10,IF(J5="0",10,VALUE(J5)))) -> 4 | AD5: 3.726779962 | AE5: =IF(E5="","",K5*M5) -> 70.4 | AF5: =IF(E5="","",((6*(11-E5)+5*(11-F5)+4*(11-G5)+3*(11-H5)+2*(11-I5)+(11-J5))/COUNTA(E5:_JC4))) -> 206 | AG5: =IF(E5="","",(K5-AF5)) -> -195 | AH5: =' Musique'!BR4 -> 12 | AI5: =' Musique'!BS4 -> 2 | AJ5: =' Musique'!BT4 -> 3 | AK5: 56600 | AL5: =IF(E5="","",(AK5*AI5)/AH5) -> 9433.333333 | AM5: =IF(E5="","",(AK5*AJ5)/AH5) -> 14150 | AN5: 66.66666667 | AO5: =IF(E5="","",(AI5/AH5)*100) -> 16.66666667 | AP5: =IF(E5="","",((AI5+AJ5)/AH5)*100) -> 41.66666667 | AQ5: =IF(E5="","",AK5/AH5) -> 4716.666667 | AR5: =IF(E5="","",(100-AP5)/AP5) -> 1.4 | AS5: =IF(E5="","",IF(ISERROR(AH5/AI5),AH5,AH5/AI5)) -> 6 | AT5: =IF(E5="","",(AO5*AR5)) -> 23.33333333 | AU5: =IF(E5="","",AL5/$AM$2) -> 1.109803922 | AV5: =IF(E5="","",AM5/$AN$2) -> 3.329411765 | AW5: =IF(E5="","",AU5/AV5) -> 0.3333333333 | AX5: =IF(E5="","",($AO$1/(AO5/(SUM($AP$4:$AP$19))*100))*100) -> 113.9026252
A6: =' Musique'!A5 -> 3 | B6: =IF(' Musique'!C5="","",' Musique'!B5) -> 47 685 € | C6: =IF(' Musique'!C5="","",' Musique'!C5) -> (17) 6p 1p 9p 9p 2p 1p 5p 7p 4p 4p 6p (16) 6p | E6: =' Musique'!E5 -> 6 | F6: =' Musique'!F5 -> 1 | G6: =' Musique'!G5 -> 9 | H6: =' Musique'!H5 -> 9 | I6: =' Musique'!I5 -> 2 | J6: =' Musique'!J5 -> 1 | K6: 12.33333333 | L6: =IF(E6="","",COUNTA(E6:J6)/(SUMPRODUCT(COUNTIF(E6:J6,{"a";"o";"t";"d"})*0.1)+SUMPRODUCT(COUNTIF(E6:J6,{1;2;3;4;5;6;7;8;9})/({1;2;3;4;5;6;7;8;9})))) -> 2.076923077 | M6: =IF(E6="","",(SUMPRODUCT(COUNTIF(E6:I6,{1;2;3;4;5;6;7;8;9;0;"D"})*{1;2;3;4;5;10;10;10;10;10;10}))/COUNTA(E6:I6)) -> 6.6 | N6: 6 | O6: 33.33333333 | P6: 16.66666667 | Q6: 0 | R6: 0 | S6: 0 | T6: 16.66666667 | U6: 0 | V6: 33.33333333 | W6: 0 | X6: 6 | Y6: 1 | Z6: 9 | AA6: 9 | AB6: 2 | AC6: 1 | AD6: 3.496029494 | AE6: 81.4 | AF6: =IF(E6="","",((6*(11-E6)+5*(11-F6)+4*(11-G6)+3*(11-H6)+2*(11-I6)+(11-J6))/COUNTA(E6:_JC4))) -> 122 | AG6: -109.6666667 | AH6: =' Musique'!BR5 -> 12 | AI6: =' Musique'!BS5 -> 2 | AJ6: =' Musique'!BT5 -> 1 | AK6: 47685 | AL6: 7947.5 | AM6: 3973.75 | AN6: 200 | AO6: 16.66666667 | AP6: 25 | AQ6: 3973.75 | AR6: 3 | AS6: 6 | AT6: 50 | AU6: 0.935 | AV6: 0.935 | AW6: 1 | AX6: 113.9026252
A7: =' Musique'!A6 -> 4 | B7: =IF(' Musique'!C6="","",' Musique'!B6) -> 33 800 € | C7: =IF(' Musique'!C6="","",' Musique'!C6) -> 0p 3p (17) 6p 2p 0p 3p 3p 1p 4p 3p | E7: =' Musique'!E6 -> 0 | F7: =' Musique'!F6 -> 3 | G7: =' Musique'!G6 -> 6 | H7: =' Musique'!H6 -> 2 | I7: =' Musique'!I6 -> 0 | J7: =' Musique'!J6 -> 3 | K7: 8 | L7: =IF(E7="","",COUNTA(E7:J7)/(SUMPRODUCT(COUNTIF(E7:J7,{"a";"o";"t";"d"})*0.1)+SUMPRODUCT(COUNTIF(E7:J7,{1;2;3;4;5;6;7;8;9})/({1;2;3;4;5;6;7;8;9})))) -> 4.5 | M7: =IF(E7="","",(SUMPRODUCT(COUNTIF(E7:I7,{1;2;3;4;5;6;7;8;9;0;"D"})*{1;2;3;4;5;10;10;10;10;10;10}))/COUNTA(E7:I7)) -> 7 | N7: 6 | O7: 0 | P7: 16.66666667 | Q7: 33.33333333 | R7: 0 | S7: 0 | T7: 16.66666667 | U7: 0 | V7: 0 | W7: 33.33333333 | X7: 10 | Y7: 3 | Z7: 6 | AA7: 2 | AB7: 10 | AC7: 3 | AD7: 3.299831646 | AE7: 56 | AF7: =IF(E7="","",((6*(11-E7)+5*(11-F7)+4*(11-G7)+3*(11-H7)+2*(11-I7)+(11-J7))/COUNTA(E7:_JC4))) -> 183 | AG7: -175 | AH7: =' Musique'!BR6 -> 10 | AI7: =' Musique'!BS6 -> 1 | AJ7: =' Musique'!BT6 -> 5 | AK7: 33800 | AL7: 3380 | AM7: 16900 | AN7: 20 | AO7: 10 | AP7: 60 | AQ7: 3380 | AR7: 0.6666666667 | AS7: 10 | AT7: 6.666666667 | AU7: 0.3976470588 | AV7: 3.976470588 | AW7: 0.1 | AX7: 189.8377086
A8: =' Musique'!A7 -> 5 | B8: =IF(' Musique'!C7="","",' Musique'!B7) -> 40 050 € | C8: =IF(' Musique'!C7="","",' Musique'!C7) -> 9p (17) 2p 6p 2p 1p 3p 1p 2p 0p | E8: =' Musique'!E7 -> 9 | F8: =' Musique'!F7 -> 2 | G8: =' Musique'!G7 -> 6 | H8: =' Musique'!H7 -> 2 | I8: =' Musique'!I7 -> 1 | J8: =' Musique'!J7 -> 3 | K8: 9.666666667 | L8: =IF(E8="","",COUNTA(E8:J8)/(SUMPRODUCT(COUNTIF(E8:J8,{"a";"o";"t";"d"})*0.1)+SUMPRODUCT(COUNTIF(E8:J8,{1;2;3;4;5;6;7;8;9})/({1;2;3;4;5;6;7;8;9})))) -> 2.29787234 | M8: =IF(E8="","",(SUMPRODUCT(COUNTIF(E8:I8,{1;2;3;4;5;6;7;8;9;0;"D"})*{1;2;3;4;5;10;10;10;10;10;10}))/COUNTA(E8:I8)) -> 5 | N8: 6 | O8: 16.66666667 | P8: 33.33333333 | Q8: 16.66666667 | R8: 0 | S8: 0 | T8: 16.66666667 | U8: 0 | V8: 16.66666667 | W8: 0 | X8: 9 | Y8: 2 | Z8: 6 | AA8: 2 | AB8: 1 | AC8: 3 | AD8: 2.793842436 | AE8: 48.33333333 | AF8: =IF(E8="","",((6*(11-E8)+5*(11-F8)+4*(11-G8)+3*(11-H8)+2*(11-I8)+(11-J8))/COUNTA(E8:_JC4))) -> 132 | AG8: -122.3333333 | AH8: =' Musique'!BR7 -> 9 | AI8: =' Musique'!BS7 -> 2 | AJ8: =' Musique'!BT7 -> 4 | AK8: 40050 | AL8: 8900 | AM8: 17800 | AN8: 50 | AO8: 22.22222222 | AP8: 66.66666667 | AQ8: 4450 | AR8: 0.5 | AS8: 4.5 | AT8: 11.11111111 | AU8: 1.047058824 | AV8: 4.188235294 | AW8: 0.25 | AX8: 85.42696886
A9: =' Musique'!A8 -> 6 | B9: =IF(' Musique'!C8="","",' Musique'!B8) -> 24 900 € | C9: =IF(' Musique'!C8="","",' Musique'!C8) -> 9p 1p 0p 2p (17) 5p 3p 1p 3p | E9: =' Musique'!E8 -> 9 | F9: =' Musique'!F8 -> 1 | G9: =' Musique'!G8 -> 0 | H9: =' Musique'!H8 -> 2 | I9: =' Musique'!I8 -> 5 | J9: =' Musique'!J8 -> 3 | K9: 9 | L9: =IF(E9="","",COUNTA(E9:J9)/(SUMPRODUCT(COUNTIF(E9:J9,{"a";"o";"t";"d"})*0.1)+SUMPRODUCT(COUNTIF(E9:J9,{1;2;3;4;5;6;7;8;9})/({1;2;3;4;5;6;7;8;9})))) -> 2.797927461 | M9: =IF(E9="","",(SUMPRODUCT(COUNTIF(E9:I9,{1;2;3;4;5;6;7;8;9;0;"D"})*{1;2;3;4;5;10;10;10;10;10;10}))/COUNTA(E9:I9)) -> 5.6 | N9: 6 | O9: 16.66666667 | P9: 16.66666667 | Q9: 16.66666667 | R9: 0 | S9: 16.66666667 | T9: 0 | U9: 0 | V9: 16.66666667 | W9: 16.66666667 | X9: 9 | Y9: 1 | Z9: 10 | AA9: 2 | AB9: 5 | AC9: 3 | AD9: 3.415650255 | AE9: 50.4 | AF9: =IF(E9="","",((6*(11-E9)+5*(11-F9)+4*(11-G9)+3*(11-H9)+2*(11-I9)+(11-J9))/COUNTA(E9:_JC4))) -> 153 | AG9: -144 | AH9: =' Musique'!BR8 -> 8 | AI9: =' Musique'!BS8 -> 2 | AJ9: =' Musique'!BT8 -> 3 | AK9: 24900 | AL9: 6225 | AM9: 9337.5 | AN9: 66.66666667 | AO9: 25 | AP9: 62.5 | AQ9: 3112.5 | AR9: 0.6 | AS9: 4 | AT9: 15 | AU9: 0.7323529412 | AV9: 2.197058824 | AW9: 0.3333333333 | AX9: 75.93508344
A10: =' Musique'!A9 -> 7 | B10: =IF(' Musique'!C9="","",' Musique'!B9) -> 51 200 € | C10: =IF(' Musique'!C9="","",' Musique'!C9) -> 0p (17) 4p 0p 3p 6p 1p 1p 4p 3p 7p 5p 7p | E10: =' Musique'!E9 -> 0 | F10: =' Musique'!F9 -> 4 | G10: =' Musique'!G9 -> 0 | H10: =' Musique'!H9 -> 3 | I10: =' Musique'!I9 -> 6 | J10: =' Musique'!J9 -> 1 | K10: 6 | L10: =IF(E10="","",COUNTA(E10:J10)/(SUMPRODUCT(COUNTIF(E10:J10,{"a";"o";"t";"d"})*0.1)+SUMPRODUCT(COUNTIF(E10:J10,{1;2;3;4;5;6;7;8;9})/({1;2;3;4;5;6;7;8;9})))) -> 3.428571429 | M10: =IF(E10="","",(SUMPRODUCT(COUNTIF(E10:I10,{1;2;3;4;5;6;7;8;9;0;"D"})*{1;2;3;4;5;10;10;10;10;10;10}))/COUNTA(E10:I10)) -> 7.4 | N10: 6 | O10: 16.66666667 | P10: 0 | Q10: 16.66666667 | R10: 16.66666667 | S10: 0 | T10: 16.66666667 | U10: 0 | V10: 0 | W10: 33.33333333 | X10: 10 | Y10: 4 | Z10: 10 | AA10: 3 | AB10: 6 | AC10: 1 | AD10: 3.399346342 | AE10: 44.4 | AF10: =IF(E10="","",((6*(11-E10)+5*(11-F10)+4*(11-G10)+3*(11-H10)+2*(11-I10)+(11-J10))/COUNTA(E10:_JC4))) -> 189 | AG10: -183 | AH10: =' Musique'!BR9 -> 12 | AI10: =' Musique'!BS9 -> 2 | AJ10: =' Musique'!BT9 -> 2 | AK10: 51200 | AL10: 8533.333333 | AM10: 8533.333333 | AN10: 100 | AO10: 16.66666667 | AP10: 33.33333333 | AQ10: 4266.666667 | AR10: 2 | AS10: 6 | AT10: 33.33333333 | AU10: 1.003921569 | AV10: 2.007843137 | AW10: 0.5 | AX10: 113.9026252
A11: =' Musique'!A10 -> 8 | B11: =IF(' Musique'!C10="","",' Musique'!B10) -> 34 600 € | C11: =IF(' Musique'!C10="","",' Musique'!C10) -> 1p (17) 8p 5p 7p 2p 5p 6p 1p 3p (16) 0p | E11: =' Musique'!E10 -> 1 | F11: =' Musique'!F10 -> 8 | G11: =' Musique'!G10 -> 5 | H11: =' Musique'!H10 -> 7 | I11: =' Musique'!I10 -> 2 | J11: =' Musique'!J10 -> 5 | K11: 14 | L11: =IF(E11="","",COUNTA(E11:J11)/(SUMPRODUCT(COUNTIF(E11:J11,{"a";"o";"t";"d"})*0.1)+SUMPRODUCT(COUNTIF(E11:J11,{1;2;3;4;5;6;7;8;9})/({1;2;3;4;5;6;7;8;9})))) -> 2.767710049 | M11: =IF(E11="","",(SUMPRODUCT(COUNTIF(E11:I11,{1;2;3;4;5;6;7;8;9;0;"D"})*{1;2;3;4;5;10;10;10;10;10;10}))/COUNTA(E11:I11)) -> 5.6 | N11: 6 | O11: 16.66666667 | P11: 16.66666667 | Q11: 0 | R11: 0 | S11: 33.33333333 | T11: 0 | U11: 16.66666667 | V11: 16.66666667 | W11: 0 | X11: 1 | Y11: 8 | Z11: 5 | AA11: 7 | AB11: 2 | AC11: 5 | AD11: 2.494438258 | AE11: 78.4 | AF11: =IF(E11="","",((6*(11-E11)+5*(11-F11)+4*(11-G11)+3*(11-H11)+2*(11-I11)+(11-J11))/COUNTA(E11:_JC4))) -> 135 | AG11: -121 | AH11: =' Musique'!BR10 -> 10 | AI11: =' Musique'!BS10 -> 2 | AJ11: =' Musique'!BT10 -> 2 | AK11: 34600 | AL11: 6920 | AM11: 6920 | AN11: 100 | AO11: 20 | AP11: 40 | AQ11: 3460 | AR11: 1.5 | AS11: 5 | AT11: 30 | AU11: 0.8141176471 | AV11: 1.628235294 | AW11: 0.5 | AX11: 94.91885429
A12: =' Musique'!A11 -> 9 | B12: =IF(' Musique'!C11="","",' Musique'!B11) -> 35 965 € | C12: =IF(' Musique'!C11="","",' Musique'!C11) -> 6p 0p 4p 5p (17) 2p 3p 2p 5p 2p 3p 2p (16) 4p | E12: =' Musique'!E11 -> 6 | F12: =' Musique'!F11 -> 0 | G12: =' Musique'!G11 -> 4 | H12: =' Musique'!H11 -> 5 | I12: =' Musique'!I11 -> 2 | J12: =' Musique'!J11 -> 3 | K12: 8 | L12: =IF(E12="","",COUNTA(E12:J12)/(SUMPRODUCT(COUNTIF(E12:J12,{"a";"o";"t";"d"})*0.1)+SUMPRODUCT(COUNTIF(E12:J12,{1;2;3;4;5;6;7;8;9})/({1;2;3;4;5;6;7;8;9})))) -> 4.137931034 | M12: =IF(E12="","",(SUMPRODUCT(COUNTIF(E12:I12,{1;2;3;4;5;6;7;8;9;0;"D"})*{1;2;3;4;5;10;10;10;10;10;10}))/COUNTA(E12:I12)) -> 6.2 | N12: 6 | O12: 0 | P12: 16.66666667 | Q12: 16.66666667 | R12: 16.66666667 | S12: 16.66666667 | T12: 16.66666667 | U12: 0 | V12: 0 | W12: 16.66666667 | X12: 6 | Y12: 10 | Z12: 4 | AA12: 5 | AB12: 2 | AC12: 3 | AD12: 2.581988897 | AE12: 49.6 | AF12: =IF(E12="","",((6*(11-E12)+5*(11-F12)+4*(11-G12)+3*(11-H12)+2*(11-I12)+(11-J12))/COUNTA(E12:_JC4))) -> 157 | AG12: -149 | AH12: =' Musique'!BR11 -> 13 | AI12: =' Musique'!BS11 -> 0 | AJ12: =' Musique'!BT11 -> 6 | AK12: 35965 | AL12: 0 | AM12: 16599.23077 | AN12: 0 | AO12: 0 | AP12: 46.15384615 | AQ12: 2766.538462 | AR12: 1.166666667 | AS12: 13 | AT12: 0 | AU12: 0 | AV12: 3.905701357 | AW12: 0
A13: =' Musique'!A12 -> 10 | B13: =IF(' Musique'!C12="","",' Musique'!B12) -> 38 480 € | C13: =IF(' Musique'!C12="","",' Musique'!C12) -> 2p 8p 1p 1p 5p (17) 4p 1p 6p | E13: =' Musique'!E12 -> 2 | F13: =' Musique'!F12 -> 8 | G13: =' Musique'!G12 -> 1 | H13: =' Musique'!H12 -> 1 | I13: =' Musique'!I12 -> 5 | J13: =' Musique'!J12 -> 4 | K13: 14.33333333 | L13: =IF(E13="","",COUNTA(E13:J13)/(SUMPRODUCT(COUNTIF(E13:J13,{"a";"o";"t";"d"})*0.1)+SUMPRODUCT(COUNTIF(E13:J13,{1;2;3;4;5;6;7;8;9})/({1;2;3;4;5;6;7;8;9})))) -> 1.951219512 | M13: =IF(E13="","",(SUMPRODUCT(COUNTIF(E13:I13,{1;2;3;4;5;6;7;8;9;0;"D"})*{1;2;3;4;5;10;10;10;10;10;10}))/COUNTA(E13:I13)) -> 3.8 | N13: 6 | O13: 33.33333333 | P13: 16.66666667 | Q13: 0 | R13: 16.66666667 | S13: 16.66666667 | T13: 0 | U13: 0 | V13: 16.66666667 | W13: 0 | X13: 2 | Y13: 8 | Z13: 1 | AA13: 1 | AB13: 5 | AC13: 4 | AD13: 2.5 | AE13: 54.46666667 | AF13: =IF(E13="","",((6*(11-E13)+5*(11-F13)+4*(11-G13)+3*(11-H13)+2*(11-I13)+(11-J13))/COUNTA(E13:_JC4))) -> 158 | AG13: -143.6666667 | AH13: =' Musique'!BR12 -> 8 | AI13: =' Musique'!BS12 -> 3 | AJ13: =' Musique'!BT12 -> 1 | AK13: 38480 | AL13: 14430 | AM13: 4810 | AN13: 300 | AO13: 37.5 | AP13: 50 | AQ13: 4810 | AR13: 1 | AS13: 2.666666667 | AT13: 37.5 | AU13: 1.697647059 | AV13: 1.131764706 | AW13: 1.5 | AX13: 50.62338896
A14: =' Musique'!A13 -> 11 | B14: =IF(' Musique'!C13="","",' Musique'!B13) -> 25 800 € | C14: =IF(' Musique'!C13="","",' Musique'!C13) -> 1p (17) 1p 3p 1p 4p 7p 3p | E14: =' Musique'!E13 -> 1 | F14: =' Musique'!F13 -> 1 | G14: =' Musique'!G13 -> 3 | H14: =' Musique'!H13 -> 1 | I14: =' Musique'!I13 -> 4 | J14: =' Musique'!J13 -> 7 | K14: 19.33333333 | L14: =IF(E14="","",COUNTA(E14:J14)/(SUMPRODUCT(COUNTIF(E14:J14,{"a";"o";"t";"d"})*0.1)+SUMPRODUCT(COUNTIF(E14:J14,{1;2;3;4;5;6;7;8;9})/({1;2;3;4;5;6;7;8;9})))) -> 1.610223642 | M14: =IF(E14="","",(SUMPRODUCT(COUNTIF(E14:I14,{1;2;3;4;5;6;7;8;9;0;"D"})*{1;2;3;4;5;10;10;10;10;10;10}))/COUNTA(E14:I14)) -> 2 | N14: 6 | O14: 50 | P14: 0 | Q14: 16.66666667 | R14: 16.66666667 | S14: 0 | T14: 0 | U14: 16.66666667 | V14: 0 | W14: 0 | X14: 1 | Y14: 1 | Z14: 3 | AA14: 1 | AB14: 4 | AC14: 7 | AD14: 2.19215774 | AE14: 38.66666667 | AF14: =IF(E14="","",((6*(11-E14)+5*(11-F14)+4*(11-G14)+3*(11-H14)+2*(11-I14)+(11-J14))/COUNTA(E14:_JC4))) -> 190 | AG14: -170.6666667 | AH14: =' Musique'!BR13 -> 7 | AI14: =' Musique'!BS13 -> 3 | AJ14: =' Musique'!BT13 -> 2 | AK14: 25800 | AL14: 11057.14286 | AM14: 7371.428571 | AN14: 150 | AO14: 42.85714286 | AP14: 71.42857143 | AQ14: 3685.714286 | AR14: 0.4 | AS14: 2.333333333 | AT14: 17.14285714 | AU14: 1.300840336 | AV14: 1.734453782 | AW14: 0.75 | AX14: 44.29546534
A15: =' Musique'!A14 -> 12 | B15: =IF(' Musique'!C14="","",' Musique'!B14) -> 44 335 € | C15: =IF(' Musique'!C14="","",' Musique'!C14) -> 0p 0p 0p (17) 7p 5p 1p 5p 4p 1p 2p 7p 6p | E15: =' Musique'!E14 -> 0 | F15: =' Musique'!F14 -> 0 | G15: =' Musique'!G14 -> 0 | H15: =' Musique'!H14 -> 7 | I15: =' Musique'!I14 -> 5 | J15: =' Musique'!J14 -> 1 | K15: 2 | L15: =IF(E15="","",COUNTA(E15:J15)/(SUMPRODUCT(COUNTIF(E15:J15,{"a";"o";"t";"d"})*0.1)+SUMPRODUCT(COUNTIF(E15:J15,{1;2;3;4;5;6;7;8;9})/({1;2;3;4;5;6;7;8;9})))) -> 4.468085106 | M15: =IF(E15="","",(SUMPRODUCT(COUNTIF(E15:I15,{1;2;3;4;5;6;7;8;9;0;"D"})*{1;2;3;4;5;10;10;10;10;10;10}))/COUNTA(E15:I15)) -> 9 | N15: 6 | O15: 16.66666667 | P15: 0 | Q15: 0 | R15: 0 | S15: 16.66666667 | T15: 0 | U15: 16.66666667 | V15: 0 | W15: 50 | X15: 10 | Y15: 10 | Z15: 10 | AA15: 7 | AB15: 5 | AC15: 1 | AD15: 3.337497399 | AE15: 18 | AF15: =IF(E15="","",((6*(11-E15)+5*(11-F15)+4*(11-G15)+3*(11-H15)+2*(11-I15)+(11-J15))/COUNTA(E15:_JC4))) -> 199 | AG15: -197 | AH15: =' Musique'!BR14 -> 16 | AI15: =' Musique'!BS14 -> 2 | AJ15: =' Musique'!BT14 -> 2 | AK15: 44335 | AL15: 5541.875 | AM15: 5541.875 | AN15: 100 | AO15: 12.5 | AP15: 25 | AQ15: 2770.9375 | AR15: 3 | AS15: 8 | AT15: 37.5 | AU15: 0.6519852941 | AV15: 1.303970588 | AW15: 0.5 | AX15: 151.8701669
A16: =' Musique'!A15 -> 13 | B16: =IF(' Musique'!C15="","",' Musique'!B15) -> 28 250 € | C16: =IF(' Musique'!C15="","",' Musique'!C15) -> 0p 1p 1p 5p (17) 2p 7p 9p 5p | E16: =' Musique'!E15 -> 0 | F16: =' Musique'!F15 -> 1 | G16: =' Musique'!G15 -> 1 | H16: =' Musique'!H15 -> 5 | I16: =' Musique'!I15 -> 2 | J16: =' Musique'!J15 -> 7 | K16: 11 | L16: =IF(E16="","",COUNTA(E16:J16)/(SUMPRODUCT(COUNTIF(E16:J16,{"a";"o";"t";"d"})*0.1)+SUMPRODUCT(COUNTIF(E16:J16,{1;2;3;4;5;6;7;8;9})/({1;2;3;4;5;6;7;8;9})))) -> 2.110552764 | M16: =IF(E16="","",(SUMPRODUCT(COUNTIF(E16:I16,{1;2;3;4;5;6;7;8;9;0;"D"})*{1;2;3;4;5;10;10;10;10;10;10}))/COUNTA(E16:I16)) -> 3.8 | N16: 6 | O16: 33.33333333 | P16: 16.66666667 | Q16: 0 | R16: 0 | S16: 16.66666667 | T16: 0 | U16: 16.66666667 | V16: 0 | W16: 16.66666667 | X16: 10 | Y16: 1 | Z16: 1 | AA16: 5 | AB16: 2 | AC16: 7 | AD16: 3.34995854 | AE16: 41.8 | AF16: =IF(E16="","",((6*(11-E16)+5*(11-F16)+4*(11-G16)+3*(11-H16)+2*(11-I16)+(11-J16))/COUNTA(E16:_JC4))) -> 196 | AG16: -185 | AH16: =' Musique'!BR15 -> 8 | AI16: =' Musique'!BS15 -> 2 | AJ16: =' Musique'!BT15 -> 1 | AK16: 28250 | AL16: 7062.5 | AM16: 3531.25 | AN16: 200 | AO16: 25 | AP16: 37.5 | AQ16: 3531.25 | AR16: 1.666666667 | AS16: 4 | AT16: 41.66666667 | AU16: 0.8308823529 | AV16: 0.8308823529 | AW16: 1 | AX16: 75.93508344
A17: =' Musique'!A16 -> 14 | B17: =IF(' Musique'!C16="","",' Musique'!B16) -> 19 650 € | C17: =IF(' Musique'!C16="","",' Musique'!C16) -> 2p (17) 9p 1p 3p 4p 5p 2p 3p | E17: =' Musique'!E16 -> 2 | F17: =' Musique'!F16 -> 9 | G17: =' Musique'!G16 -> 1 | H17: =' Musique'!H16 -> 3 | I17: =' Musique'!I16 -> 4 | J17: =' Musique'!J16 -> 5 | K17: 13.66666667 | L17: =IF(E17="","",COUNTA(E17:J17)/(SUMPRODUCT(COUNTIF(E17:J17,{"a";"o";"t";"d"})*0.1)+SUMPRODUCT(COUNTIF(E17:J17,{1;2;3;4;5;6;7;8;9})/({1;2;3;4;5;6;7;8;9})))) -> 2.505800464 | M17: =IF(E17="","",(SUMPRODUCT(COUNTIF(E17:I17,{1;2;3;4;5;6;7;8;9;0;"D"})*{1;2;3;4;5;10;10;10;10;10;10}))/COUNTA(E17:I17)) -> 4 | N17: 6 | O17: 16.66666667 | P17: 16.66666667 | Q17: 16.66666667 | R17: 16.66666667 | S17: 16.66666667 | T17: 0 | U17: 0 | V17: 16.66666667 | W17: 0 | X17: 2 | Y17: 9 | Z17: 1 | AA17: 3 | AB17: 4 | AC17: 5 | AD17: 2.581988897 | AE17: 54.66666667 | AF17: =IF(E17="","",((6*(11-E17)+5*(11-F17)+4*(11-G17)+3*(11-H17)+2*(11-I17)+(11-J17))/COUNTA(E17:_JC4))) -> 148 | AG17: -134.3333333 | AH17: =' Musique'!BR16 -> 8 | AI17: =' Musique'!BS16 -> 1 | AJ17: =' Musique'!BT16 -> 4 | AK17: 19650 | AL17: 2456.25 | AM17: 9825 | AN17: 25 | AO17: 12.5 | AP17: 62.5 | AQ17: 2456.25 | AR17: 0.6 | AS17: 8 | AT17: 7.5 | AU17: 0.2889705882 | AV17: 2.311764706 | AW17: 0.125 | AX17: 151.8701669
A18: =' Musique'!A17 -> 15 | B18: =IF(' Musique'!C17="","",' Musique'!B17) -> 8 750 € | C18: =IF(' Musique'!C17="","",' Musique'!C17) -> 0p 9p (17) 4p 3p 4p | E18: =' Musique'!E17 -> 0 | F18: =' Musique'!F17 -> 9 | G18: =' Musique'!G17 -> 4 | H18: =' Musique'!H17 -> 3 | I18: =' Musique'!I17 -> 4 | J18: =' Musique'!J17 ->  | K18: 4.666666667 | L18: =IF(E18="","",COUNTA(E18:J18)/(SUMPRODUCT(COUNTIF(E18:J18,{"a";"o";"t";"d"})*0.1)+SUMPRODUCT(COUNTIF(E18:J18,{1;2;3;4;5;6;7;8;9})/({1;2;3;4;5;6;7;8;9})))) -> 6.352941176 | M18: =IF(E18="","",(SUMPRODUCT(COUNTIF(E18:I18,{1;2;3;4;5;6;7;8;9;0;"D"})*{1;2;3;4;5;10;10;10;10;10;10}))/COUNTA(E18:I18)) -> 6.2 | N18: 6 | O18: 0 | P18: 0 | Q18: 16.66666667 | R18: 33.33333333 | S18: 0 | T18: 0 | U18: 0 | V18: 16.66666667 | W18: 16.66666667 | X18: 10 | Y18: 9 | Z18: 4 | AA18: 3 | AB18: 4 | AE18: 28.93333333 | AF18: =IF(E18="","",((6*(11-E18)+5*(11-F18)+4*(11-G18)+3*(11-H18)+2*(11-I18)+(11-J18))/COUNTA(E18:_JC4))) ->  | AH18: =' Musique'!BR17 -> 5 | AI18: =' Musique'!BS17 -> 0 | AJ18: =' Musique'!BT17 -> 1 | AK18: 8750 | AL18: 0 | AM18: 1750 | AN18: 0 | AO18: 0 | AP18: 20 | AQ18: 1750 | AR18: 4 | AS18: 5 | AT18: 0 | AU18: 0 | AV18: 0.4117647059 | AW18: 0
A19: =' Musique'!A18 ->  | B19: =IF(' Musique'!C18="","",' Musique'!B18) ->  | C19: =IF(' Musique'!C18="","",' Musique'!C18) ->  | E19: =' Musique'!E18 ->  | F19: =' Musique'!F18 ->  | G19: =' Musique'!G18 ->  | H19: =' Musique'!H18 ->  | I19: =' Musique'!I18 ->  | J19: =' Musique'!J18 ->  | L19: =IF(E19="","",COUNTA(E19:J19)/(SUMPRODUCT(COUNTIF(E19:J19,{"a";"o";"t";"d"})*0.1)+SUMPRODUCT(COUNTIF(E19:J19,{1;2;3;4;5;6;7;8;9})/({1;2;3;4;5;6;7;8;9})))) ->  | M19: =IF(E19="","",(SUMPRODUCT(COUNTIF(E19:I19,{1;2;3;4;5;6;7;8;9;0;"D"})*{1;2;3;4;5;10;10;10;10;10;10}))/COUNTA(E19:I19)) ->  | AD19: =IF(COUNT(X19:AC19)>0,SQRT(DEVSQ(IF(X19<>"",MIN(X19,10),AVERAGE(X19:AC19)),IF(Y19<>"",MIN(Y19,10),AVERAGE(X19:AC19)),IF(Z19<>"",MIN(Z19,10),AVERAGE(X19:AC19)),IF(AA19<>"",MIN(AA19,10),AVERAGE(X19:AC19)),IF(AB19<>"",MIN(AB19,10),AVERAGE(X19:AC19)),IF(AC19<>"",MIN(AC19,10),AVERAGE(X19:AC19)))/COUNTA(X19:AC19)),"") ->  | AF19: =IF(E19="","",((6*(11-E19)+5*(11-F19)+4*(11-G19)+3*(11-H19)+2*(11-I19)+(11-J19))/COUNTA(E19:_JC4))) ->  | AH19: =' Musique'!BR18 -> 14 | AI19: =' Musique'!BS18 -> 3 | AJ19: =' Musique'!BT18 -> 1
A20: =' Musique'!A19 ->  | B20: =IF(' Musique'!C19="","",' Musique'!B19) ->  | C20: =IF(' Musique'!C19="","",' Musique'!C19) ->  | E20: =' Musique'!E19 ->  | F20: =' Musique'!F19 ->  | G20: =' Musique'!G19 ->  | H20: =' Musique'!H19 ->  | I20: =' Musique'!I19 ->  | J20: =' Musique'!J19 ->  | L20: =IF(E20="","",COUNTA(E20:J20)/(SUMPRODUCT(COUNTIF(E20:J20,{"a";"o";"t";"d"})*0.1)+SUMPRODUCT(COUNTIF(E20:J20,{1;2;3;4;5;6;7;8;9})/({1;2;3;4;5;6;7;8;9})))) ->  | M20: =IF(E20="","",(SUMPRODUCT(COUNTIF(E20:I20,{1;2;3;4;5;6;7;8;9;0;"D"})*{1;2;3;4;5;10;10;10;10;10;10}))/COUNTA(E20:I20)) ->  | AD20: =IF(COUNT(X20:AC20)>0,SQRT(DEVSQ(IF(X20<>"",MIN(X20,10),AVERAGE(X20:AC20)),IF(Y20<>"",MIN(Y20,10),AVERAGE(X20:AC20)),IF(Z20<>"",MIN(Z20,10),AVERAGE(X20:AC20)),IF(AA20<>"",MIN(AA20,10),AVERAGE(X20:AC20)),IF(AB20<>"",MIN(AB20,10),AVERAGE(X20:AC20)),IF(AC20<>"",MIN(AC20,10),AVERAGE(X20:AC20)))/COUNTA(X20:AC20)),"") ->  | AF20: =IF(E20="","",((6*(11-E20)+5*(11-F20)+4*(11-G20)+3*(11-H20)+2*(11-I20)+(11-J20))/COUNTA(E20:_JC4))) -> 
A21: =' Musique'!A20 ->  | B21: =IF(' Musique'!C20="","",' Musique'!B20) ->  | C21: =IF(' Musique'!C20="","",' Musique'!C20) ->  | E21: =' Musique'!E20 ->  | F21: =' Musique'!F20 ->  | G21: =' Musique'!G20 ->  | H21: =' Musique'!H20 ->  | I21: =' Musique'!I20 ->  | J21: =' Musique'!J20 ->  | L21: =IF(E21="","",COUNTA(E21:J21)/(SUMPRODUCT(COUNTIF(E21:J21,{"a";"o";"t";"d"})*0.1)+SUMPRODUCT(COUNTIF(E21:J21,{1;2;3;4;5;6;7;8;9})/({1;2;3;4;5;6;7;8;9})))) ->  | M21: =IF(E21="","",(SUMPRODUCT(COUNTIF(E21:I21,{1;2;3;4;5;6;7;8;9;0;"D"})*{1;2;3;4;5;10;10;10;10;10;10}))/COUNTA(E21:I21)) ->  | AD21: =IF(COUNT(X21:AC21)>0,SQRT(DEVSQ(IF(X21<>"",MIN(X21,10),AVERAGE(X21:AC21)),IF(Y21<>"",MIN(Y21,10),AVERAGE(X21:AC21)),IF(Z21<>"",MIN(Z21,10),AVERAGE(X21:AC21)),IF(AA21<>"",MIN(AA21,10),AVERAGE(X21:AC21)),IF(AB21<>"",MIN(AB21,10),AVERAGE(X21:AC21)),IF(AC21<>"",MIN(AC21,10),AVERAGE(X21:AC21)))/COUNTA(X21:AC21)),"") ->  | AF21: =IF(E21="","",((6*(11-E21)+5*(11-F21)+4*(11-G21)+3*(11-H21)+2*(11-I21)+(11-J21))/COUNTA(E21:_JC4))) -> 
A22: =' Musique'!A21 ->  | B22: =IF(' Musique'!C21="","",' Musique'!B21) ->  | C22: =IF(' Musique'!C21="","",' Musique'!C21) ->  | E22: =' Musique'!E21 ->  | F22: =' Musique'!F21 ->  | G22: =' Musique'!G21 ->  | H22: =' Musique'!H21 ->  | I22: =' Musique'!I21 ->  | J22: =' Musique'!J21 ->  | L22: =IF(E22="","",COUNTA(E22:J22)/(SUMPRODUCT(COUNTIF(E22:J22,{"a";"o";"t";"d"})*0.1)+SUMPRODUCT(COUNTIF(E22:J22,{1;2;3;4;5;6;7;8;9})/({1;2;3;4;5;6;7;8;9})))) ->  | M22: =IF(E22="","",(SUMPRODUCT(COUNTIF(E22:I22,{1;2;3;4;5;6;7;8;9;0;"D"})*{1;2;3;4;5;10;10;10;10;10;10}))/COUNTA(E22:I22)) ->  | AD22: =IF(COUNT(X22:AC22)>0,SQRT(DEVSQ(IF(X22<>"",MIN(X22,10),AVERAGE(X22:AC22)),IF(Y22<>"",MIN(Y22,10),AVERAGE(X22:AC22)),IF(Z22<>"",MIN(Z22,10),AVERAGE(X22:AC22)),IF(AA22<>"",MIN(AA22,10),AVERAGE(X22:AC22)),IF(AB22<>"",MIN(AB22,10),AVERAGE(X22:AC22)),IF(AC22<>"",MIN(AC22,10),AVERAGE(X22:AC22)))/COUNTA(X22:AC22)),"") ->  | AF22: =IF(E22="","",((6*(11-E22)+5*(11-F22)+4*(11-G22)+3*(11-H22)+2*(11-I22)+(11-J22))/COUNTA(E22:_JC4))) -> 
A23: =' Musique'!A22 ->  | B23: =IF(' Musique'!C22="","",' Musique'!B22) ->  | C23: =IF(' Musique'!C22="","",' Musique'!C22) ->  | AO23: =IF(E23="","",(AI23/AH23)*100) ->  | AP23: =IF(E23="","",((AI23+AJ23)/AH23)*100) ->  | AR23: =IF(E23="","",(100-AP23)/AP23) ->  | AS23: =IF(E23="","",IF(ISERROR(AH23/AI23),AH23,AH23/AI23)) ->  | AT23: =IF(E23="","",(AO23*AR23)) ->  | AU23: =IF(E23="","",AL23/$AM$2) ->  | AV23: =IF(E23="","",AM23/$AN$2) ->  | AW23: =IF(E23="","",AU23/AV23) ->  | AX23: =IF(E23="","",($AO$1/(AO23/(SUM($AP$4:$AP$19))*100))*100) -> 

Sheet Points Vic (hidden)
M2: =SUM(M4:M19) -> 18 | N2: 11 | O2: 10 | P2: 9 | Q2: 9 | R2: 6 | S2: 63 | AB2: =SUM(AB4:AB19) -> 18 | AC2: =SUM(AC4:AC19) -> 11 | AD2: =SUM(AD4:AD19) -> 10 | AE2: =SUM(AE4:AE19) -> 9 | AF2: =SUM(AF4:AF19) -> 9 | AG2: =SUM(AG4:AG4) -> 0.4761904762 | AH2: =SUM(AH4:AH19) -> 63
A3: Nø | B3: GAINS | C3: DERNIERES PERFORMANCES | E3: P1 | F3: P2 | G3: P3 | H3: P4 | I3: P5 | J3: P6 | K3: Perf<3 | L3: Nb C | M3: % 1 er | N3: % 2ème | O3: % 3ème | P3: % 4éme | Q3: % 5ème | R3: % 6ème | S3: Nb | T3: P1 | U3: P2 | V3: P3 | W3: P4 | X3: P5 | Y3: P6 | Z3: ET | AA3: RC | AB3: Feq 1 er | AC3: Freq 2ème | AD3: Freq 3ème | AE3: Freq 4 ème | AF3: Freq 5 ème | AG3: Freq 6 ème | AI3: Points Vic | AK3: N° | AL3: Points Vic
A4: =' Musique'!A3 -> 1 | B4: =IF(' Musique'!B3="","",' Musique'!B3) -> 59 705 € | C4: =IF(' Musique'!C3="","",' Musique'!C3) -> 4p 3p (17) 2p 1p 5p 9p 8p 7p 0p (16) 1p 2p 8p | E4: =' Musique'!E3 -> 4 | F4: =' Musique'!F3 -> 3 | G4: =' Musique'!G3 -> 2 | H4: =' Musique'!H3 -> 1 | I4: =' Musique'!I3 -> 5 | J4: =' Musique'!J3 -> 9 | K4: =IF(E4="","",COUNTIF(T4:Y4,"> 3")) -> 3 | L4: =IF(E4="","",COUNT(T4:Y4)) -> 6 | M4: =IF(E4="","",COUNTIF(T4:Y4,"1")) -> 1 | N4: =IF(E4="","",COUNTIF(T4:Y4,"2")) -> 1 | O4: =IF(E4="","",COUNTIF(T4:Y4,"3")) -> 1 | P4: =IF(E4="","",COUNTIF(T4:Y4,"4")) -> 1 | Q4: =IF(E4="","",COUNTIF(T4:Y4,"5")) -> 1 | R4: =IF(E4="","",COUNTIF(T4:Y4,"6")) -> 0 | S4: =IF(E4="","",SUM(M4:R4)) -> 5 | T4: =IF(ISERROR(IF(E4="D",10,IF(E4="0",10,VALUE(E4))))," ",IF(E4="D",10,IF(E4="0",10,VALUE(E4)))) -> 4 | U4: 3 | V4: 2 | W4: 1 | X4: 5 | Y4: 9 | Z4: =IF(E4="","",STDEVP(T4:V4)) -> 0.8164965809 | AA4: =IF(E4="","",S4/L4) -> 0.8333333333 | AB4: =IF(E4="","",($S4*M$2/$S$2)) -> 1.428571429 | AC4: =IF(E4="","",($S4*N$2/$S$2)) -> 0.873015873 | AD4: =IF(E4="","",($S4*O$2/$S$2)) -> 0.7936507937 | AE4: =IF(E4="","",($S4*P$2/$S$2)) -> 0.7142857143 | AF4: =IF(E4="","",($S4*Q$2/$S$2)) -> 0.7142857143 | AG4: =IF(E4="","",($S4*R$2/$S$2)) -> 0.4761904762 | AH4: =IF(E4="","",SUM(AB4:AG4)) -> 5 | AI4: =IF(E4="","",IF(ISERROR((AA4*(SUM(AB4:AD4)))/IF(Z4=0,1,Z4)),0,(AA4*(SUM(AB4:AD4)))/IF(Z4=0,1,Z4))*100) -> 315.9064152 | AK4: =$A$4 -> 1 | AL4: =AI4 -> 315.9064152
A5: =' Musique'!A4 -> 2 | B5: =IF(' Musique'!B4="","",' Musique'!B4) -> 56 600 € | C5: =IF(' Musique'!C4="","",' Musique'!C4) -> 1p 0p 0p (17) 1p 6p 4p 9p 2p 2p 2p 0p (16) 7p | E5: =' Musique'!E4 -> 1 | F5: =' Musique'!F4 -> 0 | G5: =' Musique'!G4 -> 0 | H5: =' Musique'!H4 -> 1 | I5: =' Musique'!I4 -> 6 | J5: =' Musique'!J4 -> 4 | K5: =IF(E5="","",COUNTIF(T5:Y5,"> 3")) -> 4 | L5: =IF(E5="","",COUNT(T5:Y5)) -> 6 | M5: =IF(E5="","",COUNTIF(T5:Y5,"1")) -> 2 | N5: =IF(E5="","",COUNTIF(T5:Y5,"2")) -> 0 | O5: =IF(E5="","",COUNTIF(T5:Y5,"3")) -> 0 | P5: =IF(E5="","",COUNTIF(T5:Y5,"4")) -> 1 | Q5: =IF(E5="","",COUNTIF(T5:Y5,"5")) -> 0 | R5: =IF(E5="","",COUNTIF(T5:Y5,"6")) -> 1 | S5: =IF(E5="","",SUM(M5:R5)) -> 4 | T5: 1 | U5: 10 | V5: 10 | W5: 1 | X5: 6 | Y5: 4 | Z5: =IF(E5="","",STDEVP(T5:V5)) -> 4.242640687 | AA5: =IF(E5="","",S5/L5) -> 0.6666666667 | AB5: =IF(E5="","",($S5*M$2/$S$2)) -> 1.142857143 | AC5: =IF(E5="","",($S5*N$2/$S$2)) -> 0.6984126984 | AD5: =IF(E5="","",($S5*O$2/$S$2)) -> 0.6349206349 | AE5: =IF(E5="","",($S5*P$2/$S$2)) -> 0.5714285714 | AF5: =IF(E5="","",($S5*Q$2/$S$2)) -> 0.5714285714 | AG5: =IF(E5="","",($S5*R$2/$S$2)) -> 0.380952381 | AH5: =IF(E5="","",SUM(AB5:AG5)) -> 4 | AI5: =IF(E5="","",IF(ISERROR((AA5*(SUM(AB5:AD5)))/IF(Z5=0,1,Z5)),0,(AA5*(SUM(AB5:AD5)))/IF(Z5=0,1,Z5))*100) -> 38.90957949 | AK5: =$A$5 -> 2 | AL5: =AI5 -> 38.90957949
A6: =' Musique'!A5 -> 3 | B6: =IF(' Musique'!B5="","",' Musique'!B5) -> 47 685 € | C6: =IF(' Musique'!C5="","",' Musique'!C5) -> (17) 6p 1p 9p 9p 2p 1p 5p 7p 4p 4p 6p (16) 6p | E6: =' Musique'!E5 -> 6 | F6: =' Musique'!F5 -> 1 | G6: =' Musique'!G5 -> 9 | H6: =' Musique'!H5 -> 9 | I6: =' Musique'!I5 -> 2 | J6: =' Musique'!J5 -> 1 | K6: 3 | L6: 6 | M6: 2 | N6: 1 | O6: 0 | P6: 0 | Q6: 0 | R6: 1 | S6: 4 | T6: 6 | U6: 1 | V6: 9 | W6: 9 | X6: 2 | Y6: 1 | Z6: 3.299831646 | AA6: 0.6666666667 | AB6: 1.142857143 | AC6: 0.6984126984 | AD6: 0.6349206349 | AE6: 0.5714285714 | AF6: 0.5714285714 | AG6: 0.380952381 | AH6: 4 | AI6: 50.02660221 | AK6: =$A$6 -> 3 | AL6: 50.02660221
A7: =' Musique'!A6 -> 4 | B7: =IF(' Musique'!B6="","",' Musique'!B6) -> 33 800 € | C7: =IF(' Musique'!C6="","",' Musique'!C6) -> 0p 3p (17) 6p 2p 0p 3p 3p 1p 4p 3p | E7: =' Musique'!E6 -> 0 | F7: =' Musique'!F6 -> 3 | G7: =' Musique'!G6 -> 6 | H7: =' Musique'!H6 -> 2 | I7: =' Musique'!I6 -> 0 | J7: =' Musique'!J6 -> 3 | K7: 3 | L7: 6 | M7: 0 | N7: 1 | O7: 2 | P7: 0 | Q7: 0 | R7: 1 | S7: 4 | T7: 10 | U7: 3 | V7: 6 | W7: 2 | X7: 10 | Y7: 3 | Z7: 2.867441756 | AA7: 0.6666666667 | AB7: 1.142857143 | AC7: 0.6984126984 | AD7: 0.6349206349 | AE7: 0.5714285714 | AF7: 0.5714285714 | AG7: 0.380952381 | AH7: 4 | AI7: 57.57025919 | AK7: =$A$7 -> 4 | AL7: 57.57025919
A8: =' Musique'!A7 -> 5 | B8: =IF(' Musique'!B7="","",' Musique'!B7) -> 40 050 € | C8: =IF(' Musique'!C7="","",' Musique'!C7) -> 9p (17) 2p 6p 2p 1p 3p 1p 2p 0p | E8: =' Musique'!E7 -> 9 | F8: =' Musique'!F7 -> 2 | G8: =' Musique'!G7 -> 6 | H8: =' Musique'!H7 -> 2 | I8: =' Musique'!I7 -> 1 | J8: =' Musique'!J7 -> 3 | K8: 2 | L8: 6 | M8: 1 | N8: 2 | O8: 1 | P8: 0 | Q8: 0 | R8: 1 | S8: 5 | T8: 9 | U8: 2 | V8: 6 | W8: 2 | X8: 1 | Y8: 3 | Z8: 2.867441756 | AA8: 0.8333333333 | AB8: 1.428571429 | AC8: 0.873015873 | AD8: 0.7936507937 | AE8: 0.7142857143 | AF8: 0.7142857143 | AG8: 0.4761904762 | AH8: 5 | AI8: 89.95352998 | AK8: =$A$8 -> 5 | AL8: 89.95352998
A9: =' Musique'!A8 -> 6 | B9: =IF(' Musique'!B8="","",' Musique'!B8) -> 24 900 € | C9: =IF(' Musique'!C8="","",' Musique'!C8) -> 9p 1p 0p 2p (17) 5p 3p 1p 3p | E9: =' Musique'!E8 -> 9 | F9: =' Musique'!F8 -> 1 | G9: =' Musique'!G8 -> 0 | H9: =' Musique'!H8 -> 2 | I9: =' Musique'!I8 -> 5 | J9: =' Musique'!J8 -> 3 | K9: 3 | L9: 6 | M9: 1 | N9: 1 | O9: 1 | P9: 0 | Q9: 1 | R9: 0 | S9: 4 | T9: 9 | U9: 1 | V9: 10 | W9: 2 | X9: 5 | Y9: 3 | Z9: 4.027681991 | AA9: 0.6666666667 | AB9: 1.142857143 | AC9: 0.6984126984 | AD9: 0.6349206349 | AE9: 0.5714285714 | AF9: 0.5714285714 | AG9: 0.380952381 | AH9: 4 | AI9: 40.98619639 | AK9: =$A$9 -> 6 | AL9: 40.98619639
A10: =' Musique'!A9 -> 7 | B10: =IF(' Musique'!B9="","",' Musique'!B9) -> 51 200 € | C10: =IF(' Musique'!C9="","",' Musique'!C9) -> 0p (17) 4p 0p 3p 6p 1p 1p 4p 3p 7p 5p 7p | E10: =' Musique'!E9 -> 0 | F10: =' Musique'!F9 -> 4 | G10: =' Musique'!G9 -> 0 | H10: =' Musique'!H9 -> 3 | I10: =' Musique'!I9 -> 6 | J10: =' Musique'!J9 -> 1 | K10: 4 | L10: 6 | M10: 1 | N10: 0 | O10: 1 | P10: 1 | Q10: 0 | R10: 1 | S10: 4 | T10: 10 | U10: 4 | V10: 10 | W10: 3 | X10: 6 | Y10: 1 | Z10: 2.828427125 | AA10: 0.6666666667 | AB10: 1.142857143 | AC10: 0.6984126984 | AD10: 0.6349206349 | AE10: 0.5714285714 | AF10: 0.5714285714 | AG10: 0.380952381 | AH10: 4 | AI10: 58.36436924 | AK10: =$A$10 -> 7 | AL10: 58.36436924
A11: =' Musique'!A10 -> 8 | B11: =IF(' Musique'!B10="","",' Musique'!B10) -> 34 600 € | C11: =IF(' Musique'!C10="","",' Musique'!C10) -> 1p (17) 8p 5p 7p 2p 5p 6p 1p 3p (16) 0p | E11: =' Musique'!E10 -> 1 | F11: =' Musique'!F10 -> 8 | G11: =' Musique'!G10 -> 5 | H11: =' Musique'!H10 -> 7 | I11: =' Musique'!I10 -> 2 | J11: =' Musique'!J10 -> 5 | K11: 4 | L11: 6 | M11: 1 | N11: 1 | O11: 0 | P11: 0 | Q11: 2 | R11: 0 | S11: 4 | T11: 1 | U11: 8 | V11: 5 | W11: 7 | X11: 2 | Y11: 5 | Z11: 2.867441756 | AA11: 0.6666666667 | AB11: 1.142857143 | AC11: 0.6984126984 | AD11: 0.6349206349 | AE11: 0.5714285714 | AF11: 0.5714285714 | AG11: 0.380952381 | AH11: 4 | AI11: 57.57025919 | AK11: =$A$11 -> 8 | AL11: 57.57025919
A12: =' Musique'!A11 -> 9 | B12: =IF(' Musique'!B11="","",' Musique'!B11) -> 35 965 € | C12: =IF(' Musique'!C11="","",' Musique'!C11) -> 6p 0p 4p 5p (17) 2p 3p 2p 5p 2p 3p 2p (16) 4p | E12: =' Musique'!E11 -> 6 | F12: =' Musique'!F11 -> 0 | G12: =' Musique'!G11 -> 4 | H12: =' Musique'!H11 -> 5 | I12: =' Musique'!I11 -> 2 | J12: =' Musique'!J11 -> 3 | K12: 4 | L12: 6 | M12: 0 | N12: 1 | O12: 1 | P12: 1 | Q12: 1 | R12: 1 | S12: 5 | T12: 6 | U12: 10 | V12: 4 | W12: 5 | X12: 2 | Y12: 3 | Z12: 2.494438258 | AA12: 0.8333333333 | AB12: 1.428571429 | AC12: 0.873015873 | AD12: 0.7936507937 | AE12: 0.7142857143 | AF12: 0.7142857143 | AG12: 0.4761904762 | AH12: 5 | AI12: 103.4046472 | AK12: =$A$12 -> 9 | AL12: 103.4046472
A13: =' Musique'!A12 -> 10 | B13: =IF(' Musique'!B12="","",' Musique'!B12) -> 38 480 € | C13: =IF(' Musique'!C12="","",' Musique'!C12) -> 2p 8p 1p 1p 5p (17) 4p 1p 6p | E13: =' Musique'!E12 -> 2 | F13: =' Musique'!F12 -> 8 | G13: =' Musique'!G12 -> 1 | H13: =' Musique'!H12 -> 1 | I13: =' Musique'!I12 -> 5 | J13: =' Musique'!J12 -> 4 | K13: 3 | L13: 6 | M13: 2 | N13: 1 | O13: 0 | P13: 1 | Q13: 1 | R13: 0 | S13: 5 | T13: 2 | U13: 8 | V13: 1 | W13: 1 | X13: 5 | Y13: 4 | Z13: 3.091206165 | AA13: 0.8333333333 | AB13: 1.428571429 | AC13: 0.873015873 | AD13: 0.7936507937 | AE13: 0.7142857143 | AF13: 0.7142857143 | AG13: 0.4761904762 | AH13: 5 | AI13: 83.44202688 | AK13: =$A$13 -> 10 | AL13: 83.44202688
A14: =' Musique'!A13 -> 11 | B14: =IF(' Musique'!B13="","",' Musique'!B13) -> 25 800 € | C14: =IF(' Musique'!C13="","",' Musique'!C13) -> 1p (17) 1p 3p 1p 4p 7p 3p | E14: =' Musique'!E13 -> 1 | F14: =' Musique'!F13 -> 1 | G14: =' Musique'!G13 -> 3 | H14: =' Musique'!H13 -> 1 | I14: =' Musique'!I13 -> 4 | J14: =' Musique'!J13 -> 7 | K14: 2 | L14: 6 | M14: 3 | N14: 0 | O14: 1 | P14: 1 | Q14: 0 | R14: 0 | S14: 5 | T14: 1 | U14: 1 | V14: 3 | W14: 1 | X14: 4 | Y14: 7 | Z14: 0.9428090416 | AA14: 0.8333333333 | AB14: 1.428571429 | AC14: 0.873015873 | AD14: 0.7936507937 | AE14: 0.7142857143 | AF14: 0.7142857143 | AG14: 0.4761904762 | AH14: 5 | AI14: 273.5829808 | AK14: =$A$14 -> 11 | AL14: 273.5829808
A15: =' Musique'!A14 -> 12 | B15: =IF(' Musique'!B14="","",' Musique'!B14) -> 44 335 € | C15: =IF(' Musique'!C14="","",' Musique'!C14) -> 0p 0p 0p (17) 7p 5p 1p 5p 4p 1p 2p 7p 6p | E15: =' Musique'!E14 -> 0 | F15: =' Musique'!F14 -> 0 | G15: =' Musique'!G14 -> 0 | H15: =' Musique'!H14 -> 7 | I15: =' Musique'!I14 -> 5 | J15: =' Musique'!J14 -> 1 | K15: 5 | L15: 6 | M15: 1 | N15: 0 | O15: 0 | P15: 0 | Q15: 1 | R15: 0 | S15: 2 | T15: 10 | U15: 10 | V15: 10 | W15: 7 | X15: 5 | Y15: 1 | Z15: 0 | AA15: 0.3333333333 | AB15: 0.5714285714 | AC15: 0.3492063492 | AD15: 0.3174603175 | AE15: 0.2857142857 | AF15: 0.2857142857 | AG15: 0.1904761905 | AH15: 2 | AI15: 41.26984127 | AK15: =$A$15 -> 12 | AL15: 41.26984127
A16: =' Musique'!A15 -> 13 | B16: =IF(' Musique'!B15="","",' Musique'!B15) -> 28 250 € | C16: =IF(' Musique'!C15="","",' Musique'!C15) -> 0p 1p 1p 5p (17) 2p 7p 9p 5p | E16: =' Musique'!E15 -> 0 | F16: =' Musique'!F15 -> 1 | G16: =' Musique'!G15 -> 1 | H16: =' Musique'!H15 -> 5 | I16: =' Musique'!I15 -> 2 | J16: =' Musique'!J15 -> 7 | K16: 3 | L16: 6 | M16: 2 | N16: 1 | O16: 0 | P16: 0 | Q16: 1 | R16: 0 | S16: 4 | T16: 10 | U16: 1 | V16: 1 | W16: 5 | X16: 2 | Y16: 7 | Z16: 4.242640687 | AA16: 0.6666666667 | AB16: 1.142857143 | AC16: 0.6984126984 | AD16: 0.6349206349 | AE16: 0.5714285714 | AF16: 0.5714285714 | AG16: 0.380952381 | AH16: 4 | AI16: 38.90957949 | AK16: =$A$16 -> 13 | AL16: 38.90957949
A17: =' Musique'!A16 -> 14 | B17: =IF(' Musique'!B16="","",' Musique'!B16) -> 19 650 € | C17: =IF(' Musique'!C16="","",' Musique'!C16) -> 2p (17) 9p 1p 3p 4p 5p 2p 3p | E17: =' Musique'!E16 -> 2 | F17: =' Musique'!F16 -> 9 | G17: =' Musique'!G16 -> 1 | H17: =' Musique'!H16 -> 3 | I17: =' Musique'!I16 -> 4 | J17: =' Musique'!J16 -> 5 | K17: 3 | L17: 6 | M17: 1 | N17: 1 | O17: 1 | P17: 1 | Q17: 1 | R17: 0 | S17: 5 | T17: 2 | U17: 9 | V17: 1 | W17: 3 | X17: 4 | Y17: 5 | Z17: 3.559026084 | AA17: 0.8333333333 | AB17: 1.428571429 | AC17: 0.873015873 | AD17: 0.7936507937 | AE17: 0.7142857143 | AF17: 0.7142857143 | AG17: 0.4761904762 | AH17: 5 | AI17: 72.47390209 | AK17: =$A$17 -> 14 | AL17: 72.47390209
A18: =' Musique'!A17 -> 15 | B18: =IF(' Musique'!B17="","",' Musique'!B17) -> 8 750 € | C18: =IF(' Musique'!C17="","",' Musique'!C17) -> 0p 9p (17) 4p 3p 4p | E18: =' Musique'!E17 -> 0 | F18: =' Musique'!F17 -> 9 | G18: =' Musique'!G17 -> 4 | H18: =' Musique'!H17 -> 3 | I18: =' Musique'!I17 -> 4 | J18: =' Musique'!J17 ->  | K18: 4 | L18: 5 | M18: 0 | N18: 0 | O18: 1 | P18: 2 | Q18: 0 | R18: 0 | S18: 3 | T18: 10 | U18: 9 | V18: 4 | W18: 3 | X18: 4 | Z18: 2.624669291 | AA18: 0.6 | AB18: 0.8571428571 | AC18: 0.5238095238 | AD18: 0.4761904762 | AE18: 0.4285714286 | AF18: 0.4285714286 | AG18: 0.2857142857 | AH18: 3 | AI18: 42.45432817 | AK18: =$A$18 -> 15 | AL18: 42.45432817
A19: =' Musique'!A18 ->  | B19: =IF(' Musique'!B18="","",' Musique'!B18) ->  | C19: =IF(' Musique'!C18="","",' Musique'!C18) ->  | E19: =' Musique'!E18 ->  | F19: =' Musique'!F18 ->  | G19: =' Musique'!G18 ->  | H19: =' Musique'!H18 ->  | I19: =' Musique'!I18 ->  | J19: =' Musique'!J18 ->  | AK19: =$A$19 -> 
A20: =' Musique'!A19 ->  | B20: =IF(' Musique'!B19="","",' Musique'!B19) ->  | C20: =IF(' Musique'!C19="","",' Musique'!C19) ->  | E20: =' Musique'!E19 ->  | F20: =' Musique'!F19 ->  | G20: =' Musique'!G19 ->  | H20: =' Musique'!H19 ->  | I20: =' Musique'!I19 ->  | J20: =' Musique'!J19 ->  | T20: =IF(ISERROR(IF(E20="D",10,IF(E20="0",10,VALUE(E20))))," ",IF(E20="D",10,IF(E20="0",10,VALUE(E20)))) ->  | AK20: =$A$20 ->  | AL20: =AI20 -> 
A21: =' Musique'!A20 ->  | B21: =IF(' Musique'!B20="","",' Musique'!B20) ->  | C21: =IF(' Musique'!C20="","",' Musique'!C20) ->  | E21: =' Musique'!E20 ->  | F21: =' Musique'!F20 ->  | G21: =' Musique'!G20 ->  | H21: =' Musique'!H20 ->  | I21: =' Musique'!I20 ->  | J21: =' Musique'!J20 ->  | AK21: =$A$21 ->  | AL21: =AI21 -> 
A22: =' Musique'!A21 ->  | B22: =IF(' Musique'!B21="","",' Musique'!B21) ->  | C22: =IF(' Musique'!C21="","",' Musique'!C21) ->  | E22: =' Musique'!E21 ->  | F22: =' Musique'!F21 ->  | G22: =' Musique'!G21 ->  | H22: =' Musique'!H21 ->  | I22: =' Musique'!I21 ->  | J22: =' Musique'!J21 ->  | AK22: =$A$22 ->  | AL22: =AI22 -> 
A23: =' Musique'!A22 ->  | B23: =IF(' Musique'!B22="","",' Musique'!B22) ->  | C23: =IF(' Musique'!C22="","",' Musique'!C22) ->  | E23: =' Musique'!E22 ->  | F23: =' Musique'!F22 ->  | G23: =' Musique'!G22 ->  | H23: =' Musique'!H22 ->  | I23: =' Musique'!I22 ->  | J23: =' Musique'!J22 ->  | AK23: =$A$23 ->  | AL23: =AI23 -> 

Sheet Rec Web
B2: Liste des courses
B17: Partants
B18: N° | C18: Cheval | D18: C | E18: SA | F18: Poids | G18: Déch. | H18: Jockey | I18: Entraîneur | J18: Musique | K18: Valeur | L18: Cotes références | M18: Dernières cotes | N18: Courues | O18: Victoires | P18: Places
B19: 1 | C19: Bhageerathi | D19: 3 | E19: F4 | F19: 61 | G19: - | H19: P.-C. Boudot | I19: Mme A. Fabre | J19: 4p3p(17)2p | K19: 40 | L19: 7.4 | M19: 8 | N19: 12 | O19: 2 | P19: 3
B20: 2 | C20: Most Empowered | D20: 12 | E20: F4 | F20: 60 | G20: - | H20: S. Pasquier | I20: M. Delcher-Sanchez | J20: 1p0p0p(17) | K20: 39 | L20: 13 | M20: 17.2 | N20: 12 | O20: 2 | P20: 3
B21: 3 | C21: Goderville (E1) | D21: 16 | E21: F4 | F21: 58 | G21: - | H21: T. Bachelot | I21: S. Wattel | J21: (17)6p1p9p | K21: 37 | L21: 32 | M21: 79.7 | N21: 12 | O21: 2 | P21: 1
B22: 4 | C22: Jevousvoisencore Logo oeilleres australiennes | D22: 13 | E22: H4 | F22: 58 | G22: - | H22: G. Benoist | I22: Y. Barberot | J22: 0p3p(17)6p | K22: 37 | L22: 15 | M22: 21 | N22: 10 | O22: 1 | P22: 5
B23: 5 | C23: Sommery (E1) | D23: 6 | E23: F4 | F23: 57.5 | G23: - | H23: C. Demuro | I23: Y. Barberot | J23: 9p(17)2p6p | K23: 36.5 | L23: 11 | M23: 9.4 | N23: 9 | O23: 2 | P23: 4
B24: 6 | C24: Youmakemecrazy | D24: 8 | E24: H4 | F24: 57.5 | G24: - | H24: O. Peslier | I24: F. Rohaut | J24: 9p1p0p2p | K24: 36.5 | L24: 17 | M24: 13.8 | N24: 8 | O24: 2 | P24: 3
B25: 7 | C25: Vienna Woods | D25: 10 | E25: F4 | F25: 57 | G25: - | H25: M. Guyon | I25: Y. Barberot | J25: 0p(17)4p0p | K25: 36 | L25: 21 | M25: 23.5 | N25: 12 | O25: 2 | P25: 2
B26: 8 | C26: Fortune de Mer | D26: 11 | E26: F4 | F26: 56.5 | G26: - | H26: Mlle M. Eon | I26: A. Couétil | J26: 1p(17)8p5p | K26: 35.5 | L26: 16 | M26: 6.6 | N26: 10 | O26: 2 | P26: 2
B27: 9 | C27: Hard Talk | D27: 15 | E27: H4 | F27: 56.5 | G27: - | H27: A. Hamelin | I27: W. Gülcher | J27: 6p0p4p5p | K27: 35.5 | L27: 15 | M27: 14.1 | N27: 13 | O27: 0 | P27: 6
B28: 10 | C28: Garopaba | D28: 14 | E28: F4 | F28: 56 | G28: - | H28: C. Soumillon | I28: M. Delzangles | J28: 2p8p1p1p5p | K28: 35 | L28: 4.7 | M28: 7.2 | N28: 8 | O28: 3 | P28: 1
B29: 11 | C29: Lettyt Storm | D29: 1 | E29: M4 | F29: 56 | G29: - | H29: F. Lefebvre | I29: Mlle C. O'Halloran | J29: 1p(17)1p3p | K29: 35 | L29: 10 | M29: 8.4 | N29: 7 | O29: 3 | P29: 2
B30: 12 | C30: Full Dance | D30: 9 | E30: H4 | F30: 55.5 | G30: - | H30: A. Lemaitre | I30: A. Bonin | J30: 0p0p0p(17) | K30: 34.5 | L30: 28 | M30: 33.2 | N30: 16 | O30: 2 | P30: 2
B31: 13 | C31: Rock Your Dream | D31: 5 | E31: H4 | F31: 55.5 | G31: - | H31: P. Bazire | I31: D. & P. Prod'homme | J31: 0p1p1p5p | K31: 34.5 | L31: 33 | M31: 21.8 | N31: 8 | O31: 2 | P31: 1
B32: 14 | C32: Présidente Line | D32: 7 | E32: F4 | F32: 55.5 | G32: - | H32: M. Androuin | I32: A. Couétil | J32: 2p(17)9p1p | K32: 34.5 | L32: 27 | M32: 20.9 | N32: 8 | O32: 1 | P32: 4
B33: 15 | C33: Groovy Filly Logo oeilleres australiennes | D33: 4 | E33: F4 | F33: 55.5 | G33: - | H33: T. Thulliez | I33: Y. Gourraud | J33: 0p9p(17)4p | K33: 34.5 | L33: 20 | M33: 22.4 | N33: 5 | O33: 0 | P33: 1
B34: 16 | C34: Etatinka | D34: 2 | E34: F4 | F34: 55 | G34: - | H34: M. Barzalona | I34: L. Gadbin | J34: 5p7p5p9p | K34: 34 | L34: 10 | M34: 10.6 | N34: 14 | O34: 3 | P34: 1

Sheet Feuil1
A1: N° | B1: Cheval | D1: Poids | E1: Corde | F1: S/A | G1: Jockey | H1: Entraîneur | I1: Record | J1: Gain | K1: Oeill. | L1: Dernières performances
A2: 1 | B2: BHAGEERATHI | D2: 61 | E2: 3 | F2: F4 | G2: BOUDOT PC. | H2: FABRE MME A. | J2: 59 705 € | L2: 4p 3p (17) 2p 1p 5p 9p 8p 7p 0p (16) 1p 2p 8p
A3: 2 | B3: MOST EMPOWERED | D3: 60 | E3: 12 | F3: F4 | G3: PASQUIER S. | H3: DELCHER SANCHEZ M. | J3: 56 600 € | L3: 1p 0p 0p (17) 1p 6p 4p 9p 2p 2p 2p 0p (16) 7p
A4: 3 | B4: GODERVILLE | D4: 58 | E4: 16 | F4: F4 | G4: BACHELOT T. | H4: WATTEL S. (E1) | J4: 47 685 € | L4: (17) 6p 1p 9p 9p 2p 1p 5p 7p 4p 4p 6p (16) 6p
A5: 4 | B5: JEVOUSVOISENCORE | D5: 58 | E5: 13 | F5: H4 | G5: BENOIST G. | H5: BARBEROT (S) Y. | J5: 33 800 € | K5: A | L5: 0p 3p (17) 6p 2p 0p 3p 3p 1p 4p 3p
A6: 5 | B6: SOMMERY | D6: 57.5 | E6: 6 | F6: F4 | G6: DEMURO C. | H6: BARBEROT (S) Y. (E1) | J6: 40 050 € | L6: 9p (17) 2p 6p 2p 1p 3p 1p 2p 0p
A7: 6 | B7: YOUMAKEMECRAZY | D7: 57.5 | E7: 8 | F7: H4 | G7: PESLIER O. | H7: ROHAUT (S) F. | J7: 24 900 € | L7: 9p 1p 0p 2p (17) 5p 3p 1p 3p
A8: 7 | B8: VIENNA WOODS | D8: 57 | E8: 10 | F8: F4 | G8: GUYON M. | H8: BARBEROT (S) Y. | J8: 51 200 € | L8: 0p (17) 4p 0p 3p 6p 1p 1p 4p 3p 7p 5p 7p
A9: 8 | B9: FORTUNE DE MER | D9: 56.5 | E9: 11 | F9: F4 | G9: EON MLLE M. | H9: COUETIL (S) A. | J9: 34 600 € | L9: 1p (17) 8p 5p 7p 2p 5p 6p 1p 3p (16) 0p
A10: 9 | B10: HARD TALK | D10: 56.5 | E10: 15 | F10: H4 | G10: HAMELIN A. | H10: GULCHER W. | J10: 35 965 € | L10: 6p 0p 4p 5p (17) 2p 3p 2p 5p 2p 3p 2p (16) 4p
A11: 10 | B11: GAROPABA | D11: 56 | E11: 14 | F11: F4 | G11: SOUMILLON C. | H11: DELZANGLES M. | J11: 38 480 € | L11: 2p 8p 1p 1p 5p (17) 4p 1p 6p
A12: 11 | B12: LETTYT STORM | D12: 56 | E12: 1 | F12: M4 | G12: LEFEBVRE F. | H12: O'HALLORAN MLLE C. | J12: 25 800 € | L12: 1p (17) 1p 3p 1p 4p 7p 3p
A13: 12 | B13: FULL DANCE | D13: 55.5 | E13: 9 | F13: H4 | G13: LEMAITRE A. | H13: BONIN (S) A. | J13: 44 335 € | L13: 0p 0p 0p (17) 7p 5p 1p 5p 4p 1p 2p 7p 6p
A14: 13 | B14: ROCK YOUR DREAM | D14: 55.5 | E14: 5 | F14: H4 | G14: BAZIRE P. | H14: PROD'HOMME (S) D&P. | J14: 28 250 € | L14: 0p 1p 1p 5p (17) 2p 7p 9p 5p
A15: 14 | B15: PRESIDENTE LINE | D15: 55.5 | E15: 7 | F15: F4 | G15: ANDROUIN M. | H15: COUETIL (S) A. | J15: 19 650 € | L15: 2p (17) 9p 1p 3p 4p 5p 2p 3p
A16: 15 | B16: GROOVY FILLY | D16: 55.5 | E16: 4 | F16: F4 | G16: THULLIEZ T. | H16: GOURRAUD (S) Y. | J16: 8 750 € | K16: A | L16: 0p 9p (17) 4p 3p 4p
A17: 16 | B17: ETATINKA | D17: 55 | E17: 2 | F17: F4 | G17: BARZALONA M. | H17: GADBIN (S) L. | J17: 62 370 € | L17: 5p 7p 5p 9p (17) 7p 1p 1p 8p 1p 4p 5p 5p
